Service Area,Dept,Capital/Revenue,Expenses Type,Detailed Expenses Type,Date,Amount,Supplier Name,Supplier ID
CS,,Revenue,COMMUNICATIONS & COMP,I.T. EQUIPMENT & MAINTENANCE,08.Feb.17,183.42,DANWOOD GROUP LTD,Invoice
CS,,Revenue,COMMUNICATIONS & COMP,I.T. EQUIPMENT & MAINTENANCE,08.Feb.17,72.70,DANWOOD GROUP LTD,Invoice
CS,,Revenue,COMMUNICATIONS & COMP,I.T. EQUIPMENT & MAINTENANCE,08.Feb.17,91.71,DANWOOD GROUP LTD,Invoice
CS,,Revenue,COMMUNICATIONS & COMP,I.T. EQUIPMENT & MAINTENANCE,08.Feb.17,91.71,DANWOOD GROUP LTD,Invoice
CS,,Revenue,COMMUNICATIONS & COMP,I.T. EQUIPMENT & MAINTENANCE,13.Feb.17,153.75,DANWOOD GROUP LTD,Invoice
CS,,Revenue,COMMUNICATIONS & COMP,I.T. EQUIPMENT & MAINTENANCE,13.Feb.17,153.75,DANWOOD GROUP LTD,Invoice
CS,,Revenue,COMMUNICATIONS & COMP,I.T. EQUIPMENT & MAINTENANCE,13.Feb.17,153.75,DANWOOD GROUP LTD,Invoice
CS,,Revenue,COMMUNICATIONS & COMP,I.T. SOFTWARE,09.Feb.17,1200.00,CONCERTO SUPPORT SERVICES LTD,Invoice
CS,,Revenue,SERVICES,CONSULTANTS FEES,02.Feb.17,6557.80,QUATRO PUBLIC RELATIONS,Invoice
CS,,Revenue,SERVICES,CONSULTANTS FEES,02.Feb.17,7475.01,TIBBALDS,Invoice
CS,,Revenue,PRINTING STAT & GEN OFFICE EXP,PRINTING AND STATIONERY,09.Feb.17,1084.13,ADARE SEC LIMITED,Invoice
CS,,Revenue,COMMUNICATIONS & COMP,COMMUNICATIONS - POSTAGE,13.Feb.17,1579.60,ROYAL MAIL,Invoice
CS,,Revenue,COMMUNICATIONS & COMP,COMMUNICATIONS - POSTAGE,13.Feb.17,4.06,ROYAL MAIL,Invoice
CS,,Revenue,COMMUNICATIONS & COMP,COMMUNICATIONS - POSTAGE,22.Feb.17,775.06,ROYAL MAIL,Invoice
CS,,Revenue,COMMUNICATIONS & COMP,XPRESS COMPUTER,09.Feb.17,550.00,XPRESS SOFTWARE SOLUTIONS LTD,Invoice
CS,,Revenue,"EQUIPMENT, FURNITURE & MATS",FLOWERS,17.Feb.17,646.00,PATRICIA WONG,Invoice
PH,,Revenue,HEALTH,GP LCS CONTRACTS,06.Feb.17,1814.00,CHARTFIELD SURGERY Y01132,Invoice
PH,,Revenue,HEALTH,EMERG HORMONAL CONTRACEPTION,09.Feb.17,690.00,PEARL CHEMIST GROUP T/A BARRONS CHEMIST,Invoice
PH,,Revenue,HEALTH,EMERG HORMONAL CONTRACEPTION,09.Feb.17,2185.00,PEARL CHEMIST LTD,Invoice
PH,,Revenue,HEALTH,EMERG HORMONAL CONTRACEPTION,24.Feb.17,1265.00,PEARL CHEMIST LTD,Invoice
PH,,Revenue,HEALTH,EMERG HORMONAL CONTRACEPTION,09.Feb.17,759.00,PEARL CHEMIST LTD FDV93 T/A LORDS PHARMA,Invoice
PH,,Revenue,HEALTH,EMERG HORMONAL CONTRACEPTION,24.Feb.17,1196.00,PEARL CHEMIST LTD FDV93 T/A LORDS PHARMA,Invoice
PH,,Revenue,HEALTH,EMERG HORMONAL CONTRACEPTION,24.Feb.17,345.00,PEARL CHEMIST LTD FHL06 T/A AUCKLAND ROG,Invoice
PH,,Revenue,HEALTH,EMERG HORMONAL CONTRACEPTION,24.Feb.17,322.00,PEARL CHEMIST LTD FHL06 T/A AUCKLAND ROG,Invoice
PH,,Revenue,HEALTH,EMERG HORMONAL CONTRACEPTION,20.Feb.17,1081.00,WANDSWORTH PHARMACY FGJ32,Invoice
PH,,Revenue,HEALTH,HIV RAPID TESTING PILOT,14.Feb.17,7000.00,PASSANTE HEALTHCARE LTD,Invoice
PH,,Revenue,HEALTH,CHLAMYDIA SCREENING,24.Feb.17,20.00,PEARL CHEMIST LTD,Invoice
PH,,Revenue,HEALTH,CHLAMYDIA SCREENING,24.Feb.17,90.00,PEARL CHEMIST LTD FDV93 T/A LORDS PHARMA,Invoice
PH,,Revenue,HEALTH,CHLAMYDIA SCREENING,24.Feb.17,10.00,PEARL CHEMIST LTD FHL06 T/A AUCKLAND ROG,Invoice
PH,,Revenue,HEALTH,CHLAMYDIA SCREENING,24.Feb.17,10.00,PEARL CHEMIST LTD FHL06 T/A AUCKLAND ROG,Invoice
PH,,Revenue,HEALTH,ADVICE AND ADVOCACY SERVICES,24.Feb.17,7500.00,WEM CONSULTANCY LTD,Invoice
PH,,Revenue,HEALTH,LOCALLY ENHANCED SERVICES,06.Feb.17,3964.06,CHARTFIELD SURGERY Y01132,Invoice
PH,,Revenue,HEALTH,PHARMACY LCS,09.Feb.17,63.00,PEARL CHEMIST LTD,Invoice
PH,,Revenue,HEALTH,ADULT WEIGHT MGT SERVICE,09.Feb.17,953.00,HEALTHY EATING SOLUTIONS LTD.,Invoice
PH,,Revenue,HEALTH,PHARMACY LCS,09.Feb.17,420.00,PEARL CHEMIST LTD,Invoice
PH,,Revenue,HEALTH,PHARMACY LCS,24.Feb.17,210.00,PEARL CHEMIST LTD,Invoice
PH,,Revenue,HEALTH,PHARMACY LCS,09.Feb.17,280.00,PEARL CHEMIST LTD FDV93 T/A LORDS PHARMA,Invoice
PH,,Revenue,HEALTH,PHARMACY LCS,24.Feb.17,280.00,PEARL CHEMIST LTD FDV93 T/A LORDS PHARMA,Invoice
PH,,Revenue,HEALTH,PHARMACY LCS,24.Feb.17,70.00,PEARL CHEMIST LTD FHL06 T/A AUCKLAND ROG,Invoice
PH,,Revenue,HEALTH,PHARMACY LCS,24.Feb.17,140.00,PEARL CHEMIST LTD FHL06 T/A AUCKLAND ROG,Invoice
PH,,Revenue,HEALTH,GP LCS CONTRACTS,06.Feb.17,210.00,CHARTFIELD SURGERY Y01132,Invoice
PH,,Revenue,RENTS,VENUE HIRE - EXTERNAL,20.Feb.17,550.00,ST MARKS CHURCH,Invoice
PH,,Revenue,SERVICES,PROJECT WORK,20.Feb.17,573.00,BALHAM PARK SURGERY,Invoice
PH,,Revenue,SERVICES,PROJECT WORK,20.Feb.17,1490.00,THE HOPE ATRIUM,Invoice
PH,,Revenue,HEALTH,SCREENING IN COMMUNTIES,06.Feb.17,16797.00,WILLIAMS & ASSOCIATES,Invoice
PH,,Revenue,VOL ASS,THIRD PARTY PYMT - VOL ASS,01.Feb.17,11633.00,THINKING WORKS,Invoice
PH,,Revenue,HEALTH,THIRD PARTY PYMT - HEALTH,24.Feb.17,1268.50,PEARL CHEMIST LTD,Invoice
PH,,Revenue,SERVICES,PROJECT WORK,01.Feb.17,2994.00,AGE UK WANDSWORTH,Invoice
NGF HS,,Revenue,SERVICES,HIPS,07.Feb.17,720.00,GORDON BROWN,Invoice
NGF CS,,Revenue,PRIVATE,GENERAL CONTRACT WORK,10.Feb.17,752.50,WINDOWFLOWERS LTD,Invoice
NGF CS,,Revenue,PRIVATE,REFUSE COLLECTN & PEST CONTROL,07.Feb.17,534.79,SITA UK LTD,Invoice
NGF CS,,Revenue,PRIVATE,REFUSE COLLECTN & PEST CONTROL,07.Feb.17,1202.69,SITA UK LTD,Invoice
NGF CS,,Revenue,PRIVATE,REFUSE COLLECTN & PEST CONTROL,07.Feb.17,690.92,SITA UK LTD,Invoice
NGF CS,,Revenue,PRIVATE,REFUSE COLLECTN & PEST CONTROL,07.Feb.17,690.83,SITA UK LTD,Invoice
NGF CS,,Revenue,CLEANING & DOMESTIC SUPPLIES,CLEANING CONTRACT,21.Feb.17,44241.23,KINGDOM SECURITY LTD,Invoice
NGF CS,,Revenue,CLEANING & DOMESTIC SUPPLIES,CLEANING CONTRACT,22.Feb.17,43943.38,KINGDOM SECURITY LTD,Invoice
NGF CS,,Revenue,CLEANING & DOMESTIC SUPPLIES,CLEANING CONTRACT,06.Feb.17,901.35,PHS GROUP PLC,Invoice
NGF CS,,Revenue,CLEANING & DOMESTIC SUPPLIES,CLEANING CONTRACT,22.Feb.17,1470.80,PHS GROUP PLC,Invoice
NGF CS,,Revenue,CLEANING & DOMESTIC SUPPLIES,CLEANING CONTRACT,23.Feb.17,515.25,PHS GROUP PLC,Invoice
NGF CS,,Revenue,CLEANING & DOMESTIC SUPPLIES,CLEANING CONTRACT,23.Feb.17,515.25,PHS GROUP PLC,Invoice
NGF CS,,Revenue,CLEANING & DOMESTIC SUPPLIES,WINDOW CLEANING,22.Feb.17,995.75,PARKERS CLEANING CONTRACTORS LTD,Invoice
NGF CS,,Revenue,"EQUIPMENT, FURNITURE & MATS","EQUIPMENT, FURNITURE & MATS",17.Feb.17,463.05,CONDECO LIMITED,Invoice
NGF CS,,Revenue,"EQUIPMENT, FURNITURE & MATS","EQUIPMENT, FURNITURE & MATS",20.Feb.17,1429.47,CONDECO LIMITED,Invoice
NGF CS,,Revenue,"EQUIPMENT, FURNITURE & MATS","EQUIPMENT, FURNITURE & MATS",20.Feb.17,590.00,THE GREEN TEAM (GMC) LIMITED,Invoice
NGF CS,FINANCE,Revenue,DIRECT2,CAP COST-PENSION FUND BENEFITS,10.Feb.17,1772.83,WANDSWORTH COUNCIL PENSION FUND,Invoice
NGF CS,,Revenue,"EQUIPMENT, FURNITURE & MATS","EQUIPMENT, FURNITURE & MATS",21.Feb.17,0.00,ARGOS BUSINESS SOLUTIONS,Invoice
NGF CS,,Revenue,"EQUIPMENT, FURNITURE & MATS","EQUIPMENT, FURNITURE & MATS",21.Feb.17,9.99,ARGOS BUSINESS SOLUTIONS,Invoice
NGF CS,,Revenue,"EQUIPMENT, FURNITURE & MATS","EQUIPMENT, FURNITURE & MATS",21.Feb.17,0.00,ARGOS BUSINESS SOLUTIONS,Invoice
NGF CS,,Revenue,"EQUIPMENT, FURNITURE & MATS","EQUIPMENT, FURNITURE & MATS",21.Feb.17,0.00,ARGOS BUSINESS SOLUTIONS,Invoice
NGF CS,,Revenue,MISC,MISCELLANEOUS EXPENSES,13.Feb.17,124.28,DANWOOD GROUP LTD,Invoice
NGF CS,,Revenue,MISC,MISCELLANEOUS EXPENSES,13.Feb.17,124.28,DANWOOD GROUP LTD,Invoice
NGF CS,,Revenue,MISC,MISCELLANEOUS EXPENSES,13.Feb.17,124.28,DANWOOD GROUP LTD,Invoice
NGF CS,,Revenue,MISC,MISCELLANEOUS EXPENSES,13.Feb.17,124.28,DANWOOD GROUP LTD,Invoice
NGF CS,,Revenue,WATER,SEWERAGE & ENVIRONMENTAL SVCS,27.Feb.17,2674.49,BIFFA WASTE SERVICES LTD,Invoice
NGF CS,FINANCE,Revenue,"REPAIRS, ALTERATIONS & MTCE","REPS, ALTS & MTCE-BUILDINGS",06.Feb.17,232.83,DEBA UK LTD,Invoice
NGF CS,FINANCE,Revenue,"REPAIRS, ALTERATIONS & MTCE","REPS, ALTS & MTCE-BUILDINGS",20.Feb.17,194.03,DEBA UK LTD,Invoice
NGF CS,,Revenue,PRINTING STAT & GEN OFFICE EXP,PHOTOCOPYING,13.Feb.17,585.32,DANWOOD GROUP LTD,Invoice
NGF CS,,Revenue,INDIRECT,TRAINING - EXTERNAL COURSES,28.Feb.17,750.00,CIPFA BUSINESS LTD,Invoice
NGF CS,,Revenue,OTHER AGENCIES,DISBURSEMENTS,20.Feb.17,500.00,1 GARDEN COURT CHAMBERS,Invoice
NGF CS,,Revenue,OTHER AGENCIES,DISBURSEMENTS,06.Feb.17,8600.00,1 KING'S BENCH WALK,Invoice
NGF CS,,Revenue,OTHER AGENCIES,DISBURSEMENTS,20.Feb.17,940.00,11 KBW LTD,Invoice
NGF CS,,Revenue,OTHER AGENCIES,DISBURSEMENTS,03.Feb.17,500.00,4 BRICK COURT MANAGEMENT LIMITED,Invoice
NGF CS,,Revenue,OTHER AGENCIES,DISBURSEMENTS,03.Feb.17,800.00,4 BRICK COURT MANAGEMENT LIMITED,Invoice
NGF CS,,Revenue,OTHER AGENCIES,DISBURSEMENTS,06.Feb.17,800.00,4 BRICK COURT MANAGEMENT LIMITED,Invoice
NGF CS,,Revenue,OTHER AGENCIES,DISBURSEMENTS,06.Feb.17,1135.00,4 BRICK COURT MANAGEMENT LIMITED,Invoice
NGF CS,,Revenue,OTHER AGENCIES,DISBURSEMENTS,06.Feb.17,800.00,4 BRICK COURT MANAGEMENT LIMITED,Invoice
NGF CS,,Revenue,OTHER AGENCIES,DISBURSEMENTS,06.Feb.17,425.00,4 BRICK COURT MANAGEMENT LIMITED,Invoice
NGF CS,,Revenue,OTHER AGENCIES,DISBURSEMENTS,06.Feb.17,2450.00,4 BRICK COURT MANAGEMENT LIMITED,Invoice
NGF CS,,Revenue,OTHER AGENCIES,DISBURSEMENTS,06.Feb.17,1550.00,4 BRICK COURT MANAGEMENT LIMITED,Invoice
NGF CS,,Revenue,OTHER AGENCIES,DISBURSEMENTS,06.Feb.17,900.00,4 BRICK COURT MANAGEMENT LIMITED,Invoice
NGF CS,,Revenue,OTHER AGENCIES,DISBURSEMENTS,06.Feb.17,1600.00,4 BRICK COURT MANAGEMENT LIMITED,Invoice
NGF CS,,Revenue,OTHER AGENCIES,DISBURSEMENTS,09.Feb.17,1500.00,4 BRICK COURT MANAGEMENT LIMITED,Invoice
NGF CS,,Revenue,OTHER AGENCIES,DISBURSEMENTS,09.Feb.17,500.00,4 BRICK COURT MANAGEMENT LIMITED,Invoice
NGF CS,,Revenue,OTHER AGENCIES,DISBURSEMENTS,09.Feb.17,650.00,4 BRICK COURT MANAGEMENT LIMITED,Invoice
NGF CS,,Revenue,OTHER AGENCIES,DISBURSEMENTS,20.Feb.17,425.00,4 BRICK COURT MANAGEMENT LIMITED,Invoice
NGF CS,,Revenue,OTHER AGENCIES,DISBURSEMENTS,20.Feb.17,500.00,4 BRICK COURT MANAGEMENT LIMITED,Invoice
NGF CS,,Revenue,OTHER AGENCIES,DISBURSEMENTS,20.Feb.17,1650.00,42 BEDFORD ROW CHAMBERS,Invoice
NGF CS,,Revenue,OTHER AGENCIES,DISBURSEMENTS,23.Feb.17,750.00,42 BEDFORD ROW CHAMBERS,Invoice
NGF CS,,Revenue,OTHER AGENCIES,DISBURSEMENTS,28.Feb.17,1797.35,ANNA FREUD CENTRE,Invoice
NGF CS,,Revenue,OTHER AGENCIES,DISBURSEMENTS,09.Feb.17,672.00,ASHFORDS,Invoice
NGF CS,,Revenue,OTHER AGENCIES,DISBURSEMENTS,09.Feb.17,5982.50,ASHFORDS,Invoice
NGF CS,,Revenue,OTHER AGENCIES,DISBURSEMENTS,09.Feb.17,6.00,ASHFORDS,Invoice
NGF CS,,Revenue,OTHER AGENCIES,DISBURSEMENTS,09.Feb.17,6405.00,ASHFORDS,Invoice
NGF CS,,Revenue,OTHER AGENCIES,DISBURSEMENTS,20.Feb.17,2350.00,CORNERSTONE BACS,Invoice
NGF CS,,Revenue,OTHER AGENCIES,DISBURSEMENTS,22.Feb.17,1294.25,DR A C JAMES,Invoice
NGF CS,,Revenue,OTHER AGENCIES,DISBURSEMENTS,22.Feb.17,487.50,DR MATTHEW CASTLE & DR RACHEL JONES,Invoice
NGF CS,,Revenue,OTHER AGENCIES,DISBURSEMENTS,01.Feb.17,723.75,DR P MAGGS CONSULTANT PSYCHOLOGIST,Invoice
NGF CS,,Revenue,OTHER AGENCIES,DISBURSEMENTS,03.Feb.17,650.00,FIELD COURT CHAMBERS,Invoice
NGF CS,,Revenue,OTHER AGENCIES,DISBURSEMENTS,06.Feb.17,600.00,FIVE PAPER,Invoice
NGF CS,,Revenue,OTHER AGENCIES,DISBURSEMENTS,20.Feb.17,1500.00,FIVE PAPER,Invoice
NGF CS,,Revenue,OTHER AGENCIES,DISBURSEMENTS,20.Feb.17,1675.00,FIVE PAPER,Invoice
NGF CS,,Revenue,OTHER AGENCIES,DISBURSEMENTS,20.Feb.17,420.00,FIVE PAPER,Invoice
NGF CS,,Revenue,OTHER AGENCIES,DISBURSEMENTS,20.Feb.17,1600.00,FOURTEEN,Invoice
NGF CS,,Revenue,OTHER AGENCIES,DISBURSEMENTS,23.Feb.17,600.00,FOURTEEN,Invoice
NGF CS,,Revenue,OTHER AGENCIES,DISBURSEMENTS,20.Feb.17,1000.00,GARDEN COURT CHAMBERS,Invoice
NGF CS,,Revenue,OTHER AGENCIES,DISBURSEMENTS,22.Feb.17,895.25,HEALTHCARE SOUTH WEST LTD,Invoice
NGF CS,,Revenue,OTHER AGENCIES,DISBURSEMENTS,22.Feb.17,617.00,LEXTOX,Invoice
NGF CS,,Revenue,OTHER AGENCIES,DISBURSEMENTS,03.Feb.17,500.00,NEW COURT CHAMBERS,Invoice
NGF CS,,Revenue,OTHER AGENCIES,DISBURSEMENTS,09.Feb.17,425.00,NEW COURT CHAMBERS,Invoice
NGF CS,,Revenue,OTHER AGENCIES,DISBURSEMENTS,09.Feb.17,500.00,NEW COURT CHAMBERS,Invoice
NGF CS,,Revenue,OTHER AGENCIES,DISBURSEMENTS,20.Feb.17,521.40,PARSONS MARSHALL PSYCHOLOGY LTD,Invoice
NGF CS,,Revenue,OTHER AGENCIES,DISBURSEMENTS,20.Feb.17,283.86,SEARCHFLOW LIMITED,Invoice
NGF CS,,Revenue,OTHER AGENCIES,DISBURSEMENTS,20.Feb.17,530.00,SEARCHFLOW LIMITED,Invoice
NGF CS,,Revenue,OTHER AGENCIES,DISBURSEMENTS,20.Feb.17,288.78,SEARCHFLOW LIMITED,Invoice
NGF CS,,Revenue,OTHER AGENCIES,DISBURSEMENTS,20.Feb.17,470.00,SEARCHFLOW LIMITED,Invoice
NGF CS,,Revenue,OTHER AGENCIES,DISBURSEMENTS,13.Feb.17,446.50,SHARPE PRITCHARD LLP,Invoice
NGF CS,,Revenue,OTHER AGENCIES,DISBURSEMENTS,20.Feb.17,715.14,WB GURNEY & SONS LLP,Invoice
NGF CS,,Revenue,PRIVATE,CONTRACT 7 - VNEB LEGAL,22.Feb.17,770.73,WINCKWORTH SHERWOOD LLP,Invoice
NGF CS,,Revenue,PRIVATE,CONTRACT 7 - VNEB LEGAL,28.Feb.17,1635.00,WINCKWORTH SHERWOOD LLP,Invoice
NGF CS,,Revenue,PRIVATE,CONTRACT 4- LITIGATION,13.Feb.17,6352.00,SHARPE PRITCHARD LLP,Invoice
NGF CS,,Revenue,PRIVATE,CONTRACT 4- LITIGATION,15.Feb.17,18415.52,SHARPE PRITCHARD LLP,Invoice
NGF CS,,Revenue,PRIVATE,"CONTRACT 6- HWYS, PLAN ETC",13.Feb.17,4500.00,FURLEY PAGE LLP,Invoice
NGF CS,,Revenue,PRIVATE,"CONTRACT 6- HWYS, PLAN ETC",15.Feb.17,11810.00,SHARPE PRITCHARD LLP,Invoice
NGF CS,,Revenue,PRIVATE,LOT 1 - LLORD SERVS PROP MGMT,22.Feb.17,15646.85,LAMBERT SMITH HAMPTON,Invoice
NGF CS,,Revenue,PRIVATE,LOT 2 - GEN VALUATIONS,28.Feb.17,8717.60,G L HEARN LTD,Invoice
NGF CS,,Revenue,PRIVATE,LOT 2 - GEN VALUATIONS,28.Feb.17,10092.50,G L HEARN LTD,Invoice
NGF CS,,Revenue,PRIVATE,LOT 2 - GEN VALUATIONS,28.Feb.17,2555.37,LAMBERT SMITH HAMPTON,Invoice
NGF CS,,Revenue,PRIVATE,LOT 4 - STAT VALS & PROP ADVIC,28.Feb.17,4020.80,G L HEARN LTD,Invoice
NGF CS,,Revenue,PRINTING STAT & GEN OFFICE EXP,OUTWORK - WEB OFFSET,02.Feb.17,4208.00,WARNERS MIDLANDS PLC,Invoice
NGF CS,,Revenue,PRINTING STAT & GEN OFFICE EXP,OUTWORK - LITHO,20.Feb.17,423.07,DELTOR COMMUNICATIONS LTD,Invoice
NGF CS,,Revenue,PRINTING STAT & GEN OFFICE EXP,OUTWORK - LITHO,20.Feb.17,535.98,HALSTAN & CO LTD,Invoice
NGF CS,,Revenue,PRINTING STAT & GEN OFFICE EXP,OUTWORK - LITHO,02.Feb.17,712.00,IMPRESS PRINT SERVICES LTD,Invoice
NGF CS,,Revenue,PRINTING STAT & GEN OFFICE EXP,OUTWORK - LITHO,20.Feb.17,715.00,IMPRESS PRINT SERVICES LTD,Invoice
NGF CS,,Revenue,PRINTING STAT & GEN OFFICE EXP,OUTWORK - LITHO,20.Feb.17,523.00,IMPRESS PRINT SERVICES LTD,Invoice
NGF CS,,Revenue,PRINTING STAT & GEN OFFICE EXP,OUTWORK - LITHO,02.Feb.17,2059.45,KALL KWIK,Invoice
NGF CS,,Revenue,PRINTING STAT & GEN OFFICE EXP,OUTWORK - LITHO,02.Feb.17,1377.48,KALL KWIK,Invoice
NGF CS,,Revenue,PRINTING STAT & GEN OFFICE EXP,OUTWORK - LITHO,02.Feb.17,479.97,KALL KWIK,Invoice
NGF CS,,Revenue,PRINTING STAT & GEN OFFICE EXP,OUTWORK - LITHO,20.Feb.17,1122.18,KALL KWIK,Invoice
NGF CS,,Revenue,PRINTING STAT & GEN OFFICE EXP,OUTWORK - LITHO,20.Feb.17,1205.31,KALL KWIK,Invoice
NGF CS,,Revenue,PRINTING STAT & GEN OFFICE EXP,OUTWORK - LITHO,20.Feb.17,1337.49,KALL KWIK,Invoice
NGF CS,,Revenue,PRINTING STAT & GEN OFFICE EXP,OUTWORK - LITHO,20.Feb.17,646.00,SLS PRINT,Invoice
NGF CS,,Revenue,PRINTING STAT & GEN OFFICE EXP,OUTWORK - EXTERN NON FRAMEWORK,20.Feb.17,1120.00,JKN DIGITAL LTD,Invoice
NGF CS,,Revenue,PRINTING STAT & GEN OFFICE EXP,URGENT PRINT CONTRACT,02.Feb.17,1161.29,KALL KWIK,Invoice
NGF CS,,Revenue,PRINTING STAT & GEN OFFICE EXP,URGENT PRINT CONTRACT,20.Feb.17,1804.36,KALL KWIK,Invoice
NGF CS,,Revenue,PRINTING STAT & GEN OFFICE EXP,URGENT PRINT CONTRACT,20.Feb.17,1396.89,KALL KWIK,Invoice
NGF CS,,Revenue,PRINTING STAT & GEN OFFICE EXP,URGENT PRINT CONTRACT,20.Feb.17,796.19,KALL KWIK,Invoice
NGF CS,,Revenue,"EQUIPMENT, FURNITURE & MATS",EQUIP.FURN & MATS-REPS & MTCE,28.Feb.17,95.00,SINGLE SOURCE BINDING,Invoice
NGF CS,,Revenue,"EQUIPMENT, FURNITURE & MATS",EQUIP.FURN & MATS-REPS & MTCE,28.Feb.17,20.00,SINGLE SOURCE BINDING,Invoice
NGF CS,,Revenue,"EQUIPMENT, FURNITURE & MATS",EQUIP.FURN & MATS-REPS & MTCE,28.Feb.17,345.00,SINGLE SOURCE BINDING,Invoice
NGF CS,,Revenue,INDIRECT,IN-SERVICE TRAINING-SLA,16.Feb.17,1525.00,IT GOVERNANCE LIMITED,Invoice
NGF CS,,Revenue,INDIRECT,IN-SERVICE TRAINING-SLA,22.Feb.17,677.00,SAFA TRAINING & CONSULTANCY LTD,Invoice
NGF CS,,Revenue,INDIRECT,IN-SERVICE TRAINING-SLA,14.Feb.17,450.00,TATTERSALL TRAINING,Invoice
NGF CS,,Revenue,INDIRECT,IN-SERVICE TRAINING-SLA,17.Feb.17,230.00,TRAINING OUTSOURCE LIMITED,Invoice
NGF CS,,Revenue,INDIRECT,IN-SERVICE TRAINING-SLA,17.Feb.17,230.00,TRAINING OUTSOURCE LIMITED,Invoice
NGF CS,,Revenue,INDIRECT,IN-SERVICE TRAINING-SLA,17.Feb.17,460.00,TRAINING OUTSOURCE LIMITED,Invoice
NGF CS,,Revenue,INDIRECT,IN-SERVICE TRAINING-SLA,17.Feb.17,230.00,TRAINING OUTSOURCE LIMITED,Invoice
NGF CS,,Revenue,INDIRECT,IN-SERVICE TRAINING-SLA,24.Feb.17,230.00,TRAINING OUTSOURCE LIMITED,Invoice
NGF CS,,Revenue,INDIRECT,IN-SERVICE TRAINING-SLA,24.Feb.17,230.00,TRAINING OUTSOURCE LIMITED,Invoice
NGF CS,,Revenue,INDIRECT,IN-SERVICE TRAINING-SLA,24.Feb.17,230.00,TRAINING OUTSOURCE LIMITED,Invoice
NGF CS,,Revenue,INDIRECT,CHILDCARE VOUCHERS,22.Feb.17,580.82,COMPUTERSHARE VOUCHER SERVICES,Invoice
NGF CS,,Revenue,INDIRECT,CHILDCARE VOUCHERS,28.Feb.17,99.69,COMPUTERSHARE VOUCHER SERVICES,Invoice
NGF CS,,Revenue,INDIRECT,TRAINING - APPROVED QUALS,13.Feb.17,2950.00,CROYDON COLLEGE,Invoice
NGF CS,,Revenue,COMMUNICATIONS & COMP,I.T. SOFTWARE,16.Feb.17,5500.00,TEXTHELP LTD,Invoice
NGF CS,,Revenue,COMMUNICATIONS & COMP,I.T. SOFTWARE,16.Feb.17,500.00,TEXTHELP LTD,Invoice
NGF CS,,Revenue,MISC,MISCELLANEOUS EXPENSES,16.Feb.17,1379.75,EDENRED UK GROUP LTD,Invoice
NGF CDC,,Revenue,MISC,MISCELLANEOUS EXPENSES,06.Feb.17,510.78,ABC CATERING & PARTY EQUIPMENT HIRE LTD,Invoice
NGF CDC,ADMINISTRATION,Revenue,MISC,MISCELLANEOUS EXPENSES,22.Feb.17,1087.02,Mayor�s Charity Bank Account,Invoice
NGF CS,,Revenue,MISC,MISCELLANEOUS EXPENSES,24.Feb.17,1100.00,ELEANOR FOX,Invoice
NGF CS,,Revenue,MISC,MISCELLANEOUS EXPENSES,17.Feb.17,1320.00,SOUTHWARK NEWSPAPER LTD,Invoice
NGF CS,,Revenue,COMMUNICATIONS & COMP,I.T. EQUIPMENT & MAINTENANCE,21.Feb.17,497.20,ACS LTD,Invoice
NGF CS,,Revenue,COMMUNICATIONS & COMP,I.T. EQUIPMENT & MAINTENANCE,21.Feb.17,9.95,ACS LTD,Invoice
NGF CS,,Revenue,COMMUNICATIONS & COMP,I.T. EQUIPMENT & MAINTENANCE,23.Feb.17,518.00,E FILE UK LTD,Invoice
NGF CS,,Revenue,COMMUNICATIONS & COMP,I.T. EQUIPMENT & MAINTENANCE,23.Feb.17,551.00,XMA LIMITED,Invoice
NGF CS,,Revenue,"EQUIPMENT, FURNITURE & MATS",CONSUMABLES,13.Feb.17,8334.71,BT PAYMENT SERVICES LTD,Invoice
NGF CS,,Revenue,"EQUIPMENT, FURNITURE & MATS",CONSUMABLES,13.Feb.17,14735.21,BT PAYMENT SERVICES LTD,Invoice
NGF CS,,Revenue,"EQUIPMENT, FURNITURE & MATS",CONSUMABLES,24.Feb.17,500.00,BT PAYMENT SERVICES LTD,Invoice
NGF CS,,Revenue,"EQUIPMENT, FURNITURE & MATS","EQUIPMENT, FURNITURE & MATS",23.Feb.17,6800.00,BERKLEY TECHNICAL SERVICES LTD,Invoice
NGF CS,,Revenue,"EQUIPMENT, FURNITURE & MATS","EQUIPMENT, FURNITURE & MATS",23.Feb.17,33600.00,BERKLEY TECHNICAL SERVICES LTD,Invoice
NGF CS,,Revenue,"EQUIPMENT, FURNITURE & MATS","EQUIPMENT, FURNITURE & MATS",22.Feb.17,3520.00,TRANSWORLDCOM LIMITED,Invoice
NGF CS,,Revenue,"EQUIPMENT, FURNITURE & MATS","EQUIPMENT, FURNITURE & MATS",22.Feb.17,1125.00,TRANSWORLDCOM LIMITED,Invoice
NGF CS,,Revenue,"EQUIPMENT, FURNITURE & MATS","EQUIPMENT, FURNITURE & MATS",13.Feb.17,500.00,VOICE CONNECT LTD,Invoice
NGF CS,,Revenue,"EQUIPMENT, FURNITURE & MATS","EQUIPMENT, FURNITURE & MATS",23.Feb.17,2973.70,CLICKATELL LIMITED,Invoice
NGF CS,,Revenue,"EQUIPMENT, FURNITURE & MATS","EQUIPMENT, FURNITURE & MATS",06.Feb.17,2975.01,DANWOOD GROUP LTD,Invoice
NGF CS,,Revenue,"EQUIPMENT, FURNITURE & MATS","EQUIPMENT, FURNITURE & MATS",23.Feb.17,2678.56,ESSENTIAL NET LTD,Invoice
NGF CS,,Revenue,"EQUIPMENT, FURNITURE & MATS","EQUIPMENT, FURNITURE & MATS",23.Feb.17,2232.14,ESSENTIAL NET LTD,Invoice
NGF CS,,Revenue,"EQUIPMENT, FURNITURE & MATS","EQUIPMENT, FURNITURE & MATS",24.Feb.17,91736.40,MICROSOFT LTD,Invoice
NGF CS,,Revenue,"EQUIPMENT, FURNITURE & MATS","EQUIPMENT, FURNITURE & MATS",16.Feb.17,500.00,TEXTHELP LTD,Invoice
NGF CS,,Revenue,"EQUIPMENT, FURNITURE & MATS","EQUIPMENT, FURNITURE & MATS",16.Feb.17,5500.00,TEXTHELP LTD,Invoice
NGF CS,,Revenue,"EQUIPMENT, FURNITURE & MATS","EQUIPMENT, FURNITURE & MATS",14.Feb.17,3000.00,JADU LIMITED LCB,Invoice
NGF CS,,Revenue,COMMUNICATIONS & COMP,I.T. SLA RECHARGE,20.Feb.17,795.00,REPROPOINT,Invoice
NGF CS,,Revenue,COMMUNICATIONS & COMP,I.T. - SYSTEMS DEVELOPMENT,17.Feb.17,429.60,CIVICA UK LTD,Invoice
NGF CS,,Revenue,COMMUNICATIONS & COMP,I.T. - SYSTEMS DEVELOPMENT,28.Feb.17,15750.00,EBASE TECHNOLOGY LTD,Invoice
NGF CS,,Revenue,COMMUNICATIONS & COMP,I.T. EQUIPMENT & MAINTENANCE,06.Feb.17,4050.00,I3IT LIMITED,Invoice
NGF CS,,Revenue,COMMUNICATIONS & COMP,I.T. EQUIPMENT & MAINTENANCE,08.Feb.17,4500.00,I3IT LIMITED,Invoice
NGF CS,,Revenue,COMMUNICATIONS & COMP,I.T. EQUIPMENT & MAINTENANCE,23.Feb.17,4500.00,I3IT LIMITED,Invoice
NGF CS,,Revenue,COMMUNICATIONS & COMP,I.T. EQUIPMENT & MAINTENANCE,08.Feb.17,6000.00,OBSTAR LTD,Invoice
NGF CS,,Revenue,COMMUNICATIONS & COMP,I.T. EQUIPMENT & MAINTENANCE,28.Feb.17,8000.00,OBSTAR LTD,Invoice
NGF CS,,Revenue,COMMUNICATIONS & COMP,I.T. EQUIPMENT & MAINTENANCE,08.Feb.17,570.00,SAN DIVISION,Invoice
NGF CS,,Revenue,COMMUNICATIONS & COMP,I.T. EQUIPMENT & MAINTENANCE,08.Feb.17,2280.00,SAN DIVISION,Invoice
NGF CS,,Revenue,COMMUNICATIONS & COMP,I.T. EQUIPMENT & MAINTENANCE,16.Feb.17,2090.00,SAN DIVISION,Invoice
NGF CS,,Revenue,COMMUNICATIONS & COMP,I.T. EQUIPMENT & MAINTENANCE,23.Feb.17,1900.00,SAN DIVISION,Invoice
NGF CS,,Revenue,COMMUNICATIONS & COMP,I.T. EQUIPMENT & MAINTENANCE,28.Feb.17,1900.00,SAN DIVISION,Invoice
NGF CS,,Revenue,COMMUNICATIONS & COMP,I.T. EQUIPMENT & MAINTENANCE,07.Feb.17,1293.00,XMA LIMITED,Invoice
NGF CS,,Revenue,COMMUNICATIONS & COMP,I.T. EQUIPMENT & MAINTENANCE,10.Feb.17,450.00,XMA LIMITED,Invoice
NGF CS,,Revenue,SERVICES,SERVICES - GENERAL,28.Feb.17,3031.27,SAP (UK) LTD,Invoice
CS,,Revenue,INDIRECT,STAFF ADVERTISING - VACANCIES,06.Feb.17,2430.25,PENNA PLC,Invoice
CS,,Revenue,INDIRECT,STAFF ADVERTISING - VACANCIES,09.Feb.17,774.44,PENNA PLC,Invoice
CS,,Revenue,INDIRECT,STAFF ADVERTISING - VACANCIES,09.Feb.17,505.00,PENNA PLC,Invoice
CS,,Revenue,INDIRECT,STAFF ADVERTISING - VACANCIES,09.Feb.17,1890.00,PENNA PLC,Invoice
CS,,Revenue,INDIRECT,STAFF ADVERTISING - VACANCIES,17.Feb.17,1413.60,PENNA PLC,Invoice
CS,,Revenue,INDIRECT,STAFF ADVERTISING - VACANCIES,22.Feb.17,1108.56,PENNA PLC,Invoice
CS,,Revenue,PRINTING STAT & GEN OFFICE EXP,PUBLICITY,20.Feb.17,2201.28,NEWSQUEST MEDIA GROUP,Invoice
ASC,SOCIAL SERVICES,Revenue,PRIVATE,EXTERNAL RESIDENTIAL CARE,24.Feb.17,-86468.57,LONDON CARE PARTNERSHIP LTD,Invoice
ASC,SOCIAL SERVICES,Revenue,VOL ASS,SUPPORTED HOUSING PROGRAMME,09.Feb.17,198.72,THE BRANDON TRUST,Invoice
ASC,SOCIAL SERVICES,Revenue,VOL ASS,SUPPORTED HOUSING PROGRAMME,09.Feb.17,66.24,THE BRANDON TRUST,Invoice
ASC,SOCIAL SERVICES,Revenue,CUSTOMER & CLIENT RECPTS - EXT,CL CONT EXTERNAL RESIDENTIAL,24.Feb.17,-522.80,BIRCC,Invoice
ASC,SOCIAL SERVICES,Revenue,HIRE,HIRE - TRANSPORT,03.Feb.17,428.40,247 TRANSPORT SOLUTIONS LTD,Invoice
ASC,SOCIAL SERVICES,Revenue,HIRE,HIRE - TRANSPORT,14.Feb.17,504.00,A STAR TRANSPORT LTD,Invoice
ASC,SOCIAL SERVICES,Revenue,HIRE,HIRE - TRANSPORT,14.Feb.17,960.00,A STAR TRANSPORT LTD,Invoice
ASC,SOCIAL SERVICES,Revenue,HIRE,HIRE - TRANSPORT,14.Feb.17,960.00,A STAR TRANSPORT LTD,Invoice
ASC,SOCIAL SERVICES,Revenue,HIRE,HIRE - TRANSPORT,27.Feb.17,969.00,A STAR TRANSPORT LTD,Invoice
ASC,SOCIAL SERVICES,Revenue,HIRE,HIRE - TRANSPORT,27.Feb.17,1033.33,A STAR TRANSPORT LTD,Invoice
ASC,SOCIAL SERVICES,Revenue,HIRE,HIRE - TRANSPORT,27.Feb.17,1333.33,A STAR TRANSPORT LTD,Invoice
ASC,SOCIAL SERVICES,Revenue,HIRE,HIRE - TRANSPORT,27.Feb.17,1520.00,A STAR TRANSPORT LTD,Invoice
ASC,SOCIAL SERVICES,Revenue,HIRE,HIRE - TRANSPORT,27.Feb.17,1140.00,A STAR TRANSPORT LTD,Invoice
ASC,SOCIAL SERVICES,Revenue,HIRE,HIRE - TRANSPORT,27.Feb.17,788.16,A STAR TRANSPORT LTD,Invoice
ASC,SOCIAL SERVICES,Revenue,HIRE,HIRE - TRANSPORT,27.Feb.17,1400.00,A STAR TRANSPORT LTD,Invoice
ASC,SOCIAL SERVICES,Revenue,HIRE,HIRE - TRANSPORT,27.Feb.17,926.00,A STAR TRANSPORT LTD,Invoice
ASC,SOCIAL SERVICES,Revenue,HIRE,HIRE - TRANSPORT,27.Feb.17,1350.00,A STAR TRANSPORT LTD,Invoice
ASC,SOCIAL SERVICES,Revenue,HIRE,HIRE - TRANSPORT,27.Feb.17,616.32,A STAR TRANSPORT LTD,Invoice
ASC,SOCIAL SERVICES,Revenue,HIRE,HIRE - TRANSPORT,27.Feb.17,528.00,A STAR TRANSPORT LTD,Invoice
ASC,SOCIAL SERVICES,Revenue,HIRE,HIRE - TRANSPORT,27.Feb.17,432.00,A STAR TRANSPORT LTD,Invoice
ASC,SOCIAL SERVICES,Revenue,HIRE,HIRE - TRANSPORT,27.Feb.17,2080.00,A STAR TRANSPORT LTD,Invoice
ASC,SOCIAL SERVICES,Revenue,HIRE,HIRE - TRANSPORT,27.Feb.17,1160.00,A STAR TRANSPORT LTD,Invoice
ASC,SOCIAL SERVICES,Revenue,HIRE,HIRE - TRANSPORT,27.Feb.17,630.00,A STAR TRANSPORT LTD,Invoice
ASC,SOCIAL SERVICES,Revenue,HIRE,HIRE - TRANSPORT,27.Feb.17,630.00,A STAR TRANSPORT LTD,Invoice
ASC,SOCIAL SERVICES,Revenue,HIRE,HIRE - TRANSPORT,27.Feb.17,1026.00,A STAR TRANSPORT LTD,Invoice
ASC,SOCIAL SERVICES,Revenue,HIRE,HIRE - TRANSPORT,27.Feb.17,919.00,A STAR TRANSPORT LTD,Invoice
ASC,SOCIAL SERVICES,Revenue,HIRE,HIRE - TRANSPORT,27.Feb.17,575.60,A STAR TRANSPORT LTD,Invoice
ASC,SOCIAL SERVICES,Revenue,HIRE,HIRE - TRANSPORT,27.Feb.17,591.00,A STAR TRANSPORT LTD,Invoice
ASC,SOCIAL SERVICES,Revenue,HIRE,HIRE - TRANSPORT,27.Feb.17,528.00,A STAR TRANSPORT LTD,Invoice
ASC,SOCIAL SERVICES,Revenue,HIRE,HIRE - TRANSPORT,27.Feb.17,576.00,A STAR TRANSPORT LTD,Invoice
ASC,SOCIAL SERVICES,Revenue,HIRE,HIRE - TRANSPORT,27.Feb.17,504.00,A STAR TRANSPORT LTD,Invoice
ASC,SOCIAL SERVICES,Revenue,HIRE,HIRE - TRANSPORT,27.Feb.17,568.00,A STAR TRANSPORT LTD,Invoice
ASC,SOCIAL SERVICES,Revenue,HIRE,HIRE - TRANSPORT,27.Feb.17,568.00,A STAR TRANSPORT LTD,Invoice
ASC,SOCIAL SERVICES,Revenue,HIRE,HIRE - TRANSPORT,27.Feb.17,880.00,A STAR TRANSPORT LTD,Invoice
ASC,SOCIAL SERVICES,Revenue,HIRE,HIRE - TRANSPORT,27.Feb.17,562.00,A STAR TRANSPORT LTD,Invoice
ASC,SOCIAL SERVICES,Revenue,HIRE,HIRE - TRANSPORT,27.Feb.17,1152.00,A STAR TRANSPORT LTD,Invoice
ASC,SOCIAL SERVICES,Revenue,HIRE,HIRE - TRANSPORT,27.Feb.17,800.00,A STAR TRANSPORT LTD,Invoice
ASC,SOCIAL SERVICES,Revenue,HIRE,HIRE - TRANSPORT,27.Feb.17,1000.00,A STAR TRANSPORT LTD,Invoice
ASC,SOCIAL SERVICES,Revenue,HIRE,HIRE - TRANSPORT,27.Feb.17,1000.00,A STAR TRANSPORT LTD,Invoice
ASC,SOCIAL SERVICES,Revenue,HIRE,HIRE - TRANSPORT,27.Feb.17,512.00,A STAR TRANSPORT LTD,Invoice
ASC,SOCIAL SERVICES,Revenue,HIRE,HIRE - TRANSPORT,27.Feb.17,512.00,A STAR TRANSPORT LTD,Invoice
ASC,SOCIAL SERVICES,Revenue,HIRE,HIRE - TRANSPORT,27.Feb.17,480.00,A STAR TRANSPORT LTD,Invoice
ASC,SOCIAL SERVICES,Revenue,HIRE,HIRE - TRANSPORT,27.Feb.17,480.00,A STAR TRANSPORT LTD,Invoice
ASC,SOCIAL SERVICES,Revenue,HIRE,HIRE - TRANSPORT,27.Feb.17,644.00,A STAR TRANSPORT LTD,Invoice
ASC,SOCIAL SERVICES,Revenue,HIRE,HIRE - TRANSPORT,13.Feb.17,691.54,ADDISON LEE LTD,Invoice
ASC,SOCIAL SERVICES,Revenue,HIRE,HIRE - TRANSPORT,13.Feb.17,479.00,ADDISON LEE LTD,Invoice
ASC,SOCIAL SERVICES,Revenue,HIRE,HIRE - TRANSPORT,14.Feb.17,762.34,ADDISON LEE LTD,Invoice
ASC,SOCIAL SERVICES,Revenue,HIRE,HIRE - TRANSPORT,09.Feb.17,614.71,BECKETT CORPORATION LTD T/A TINAS CARS,Invoice
ASC,SOCIAL SERVICES,Revenue,HIRE,HIRE - TRANSPORT,09.Feb.17,599.26,BECKETT CORPORATION LTD T/A TINAS CARS,Invoice
ASC,SOCIAL SERVICES,Revenue,HIRE,HIRE - TRANSPORT,09.Feb.17,1487.70,BECKETT CORPORATION LTD T/A TINAS CARS,Invoice
ASC,SOCIAL SERVICES,Revenue,HIRE,HIRE - TRANSPORT,09.Feb.17,135.44,BECKETT CORPORATION LTD T/A TINAS CARS,Invoice
ASC,SOCIAL SERVICES,Revenue,HIRE,HIRE - TRANSPORT,09.Feb.17,490.72,BECKETT CORPORATION LTD T/A TINAS CARS,Invoice
ASC,SOCIAL SERVICES,Revenue,HIRE,HIRE - TRANSPORT,09.Feb.17,420.00,BECKETT CORPORATION LTD T/A TINAS CARS,Invoice
ASC,SOCIAL SERVICES,Revenue,HIRE,HIRE - TRANSPORT,09.Feb.17,540.00,BECKETT CORPORATION LTD T/A TINAS CARS,Invoice
ASC,SOCIAL SERVICES,Revenue,HIRE,HIRE - TRANSPORT,09.Feb.17,596.00,BECKETT CORPORATION LTD T/A TINAS CARS,Invoice
ASC,SOCIAL SERVICES,Revenue,HIRE,HIRE - TRANSPORT,09.Feb.17,596.00,BECKETT CORPORATION LTD T/A TINAS CARS,Invoice
ASC,SOCIAL SERVICES,Revenue,HIRE,HIRE - TRANSPORT,09.Feb.17,596.00,BECKETT CORPORATION LTD T/A TINAS CARS,Invoice
ASC,SOCIAL SERVICES,Revenue,HIRE,HIRE - TRANSPORT,09.Feb.17,1440.00,BECKETT CORPORATION LTD T/A TINAS CARS,Invoice
ASC,SOCIAL SERVICES,Revenue,HIRE,HIRE - TRANSPORT,09.Feb.17,1610.00,BECKETT CORPORATION LTD T/A TINAS CARS,Invoice
ASC,SOCIAL SERVICES,Revenue,HIRE,HIRE - TRANSPORT,09.Feb.17,1485.00,BECKETT CORPORATION LTD T/A TINAS CARS,Invoice
ASC,SOCIAL SERVICES,Revenue,HIRE,HIRE - TRANSPORT,09.Feb.17,910.00,BECKETT CORPORATION LTD T/A TINAS CARS,Invoice
ASC,SOCIAL SERVICES,Revenue,HIRE,HIRE - TRANSPORT,09.Feb.17,563.00,BECKETT CORPORATION LTD T/A TINAS CARS,Invoice
ASC,SOCIAL SERVICES,Revenue,HIRE,HIRE - TRANSPORT,09.Feb.17,563.00,BECKETT CORPORATION LTD T/A TINAS CARS,Invoice
ASC,SOCIAL SERVICES,Revenue,HIRE,HIRE - TRANSPORT,09.Feb.17,563.00,BECKETT CORPORATION LTD T/A TINAS CARS,Invoice
ASC,SOCIAL SERVICES,Revenue,HIRE,HIRE - TRANSPORT,09.Feb.17,840.00,BECKETT CORPORATION LTD T/A TINAS CARS,Invoice
ASC,SOCIAL SERVICES,Revenue,HIRE,HIRE - TRANSPORT,09.Feb.17,840.00,BECKETT CORPORATION LTD T/A TINAS CARS,Invoice
ASC,SOCIAL SERVICES,Revenue,HIRE,HIRE - TRANSPORT,03.Feb.17,614.60,HEALTHCARE & TRANSPORT SERVICES (HATS),Invoice
ASC,SOCIAL SERVICES,Revenue,HIRE,HIRE - TRANSPORT,13.Feb.17,553.85,HEALTHCARE & TRANSPORT SERVICES (HATS),Invoice
ASC,SOCIAL SERVICES,Revenue,HIRE,HIRE - TRANSPORT,13.Feb.17,614.60,HEALTHCARE & TRANSPORT SERVICES (HATS),Invoice
ASC,SOCIAL SERVICES,Revenue,HIRE,HIRE - TRANSPORT,13.Feb.17,614.60,HEALTHCARE & TRANSPORT SERVICES (HATS),Invoice
ASC,SOCIAL SERVICES,Revenue,HIRE,HIRE - TRANSPORT,16.Feb.17,614.60,HEALTHCARE & TRANSPORT SERVICES (HATS),Invoice
ASC,SOCIAL SERVICES,Revenue,HIRE,HIRE - TRANSPORT,22.Feb.17,614.60,HEALTHCARE & TRANSPORT SERVICES (HATS),Invoice
ASC,SOCIAL SERVICES,Revenue,HIRE,HIRE - TRANSPORT,03.Feb.17,624.50,PARKER CARS LIMITED,Invoice
ASC,SOCIAL SERVICES,Revenue,HIRE,HIRE - TRANSPORT,03.Feb.17,544.00,PARKER CARS LIMITED,Invoice
ASC,SOCIAL SERVICES,Revenue,HIRE,HIRE - TRANSPORT,03.Feb.17,793.80,PARKER CARS LIMITED,Invoice
ASC,SOCIAL SERVICES,Revenue,HIRE,HIRE - TRANSPORT,03.Feb.17,715.00,PARKER CARS LIMITED,Invoice
ASC,SOCIAL SERVICES,Revenue,HIRE,HIRE - TRANSPORT,03.Feb.17,446.40,PARKER CARS LIMITED,Invoice
ASC,SOCIAL SERVICES,Revenue,HIRE,HIRE - TRANSPORT,03.Feb.17,776.00,PARKER CARS LIMITED,Invoice
ASC,SOCIAL SERVICES,Revenue,HIRE,HIRE - TRANSPORT,03.Feb.17,648.90,PARKER CARS LIMITED,Invoice
ASC,SOCIAL SERVICES,Revenue,HIRE,HIRE - TRANSPORT,03.Feb.17,612.00,PARKER CARS LIMITED,Invoice
ASC,SOCIAL SERVICES,Revenue,HIRE,HIRE - TRANSPORT,03.Feb.17,594.00,PARKER CARS LIMITED,Invoice
ASC,SOCIAL SERVICES,Revenue,HIRE,HIRE - TRANSPORT,03.Feb.17,735.00,SWALLOWNEST & AIRPORT TAXI LTD,Invoice
ASC,SOCIAL SERVICES,Revenue,HIRE,HIRE - TRANSPORT,09.Feb.17,760.00,WANDSWORTH COMMUNITY TRANSPORT,Invoice
ASC,SOCIAL SERVICES,Revenue,HIRE,HIRE - TRANSPORT,13.Feb.17,760.00,WANDSWORTH COMMUNITY TRANSPORT,Invoice
ASC,SOCIAL SERVICES,Revenue,HIRE,NEW TRANSPORT CONTRACT,09.Feb.17,1487.70,BECKETT CORPORATION LTD T/A TINAS CARS,Invoice
ASC,SOCIAL SERVICES,Revenue,HIRE,NEW TRANSPORT CONTRACT,09.Feb.17,337.66,BECKETT CORPORATION LTD T/A TINAS CARS,Invoice
ASC,,Revenue,HIRE,NEW TRANSPORT CONTRACT,02.Feb.17,8498.50,CT PLUS CIC,Invoice
ASC,,Revenue,HIRE,NEW TRANSPORT CONTRACT,28.Feb.17,8498.50,CT PLUS CIC,Invoice
ASC,SOCIAL SERVICES,Revenue,HEALTH,EXT RES S28A 100% OLD LONGSTAY,24.Feb.17,3515.56,PARKGATE MANOR,Invoice
ASC,SOCIAL SERVICES,Revenue,HEALTH,EXT RES S28A 100% OLD LONGSTAY,02.Feb.17,6372.67,VOYAGE CARE LTD,Invoice
ASC,SOCIAL SERVICES,Revenue,HEALTH,EXT RES S28A 100% OLD LONGSTAY,02.Feb.17,9358.32,VOYAGE CARE LTD,Invoice
ASC,SOCIAL SERVICES,Revenue,HEALTH,EXTERNAL RESIDENTIAL CARE S28A,24.Feb.17,6563.20,PROGRESS HOUSING LULWORTH,Invoice
ASC,SOCIAL SERVICES,Revenue,HEALTH,EXT RES CARE S28A 100%,13.Feb.17,4026.40,CMG HOMES LTD,Invoice
ASC,SOCIAL SERVICES,Revenue,HEALTH,EXT RES CARE S28A 100%,24.Feb.17,6135.84,HOME FROM HOME CARE LIMITED,Invoice
ASC,SOCIAL SERVICES,Revenue,HEALTH,EXT RES S28A OLD LONG STAY,09.Feb.17,2709.00,ASHTON CARE,Invoice
ASC,SOCIAL SERVICES,Revenue,HEALTH,EXT RES S28A OLD LONG STAY,02.Feb.17,2975.96,ELEANOR NURSING & SOCIAL CARE,Invoice
ASC,SOCIAL SERVICES,Revenue,HEALTH,EXT RES S28A OLD LONG STAY,02.Feb.17,2975.96,ELEANOR NURSING & SOCIAL CARE,Invoice
ASC,SOCIAL SERVICES,Revenue,HEALTH,EXT RES S28A OLD LONG STAY,02.Feb.17,4790.16,METROPOLITAN HOUSING TRUST,Invoice
ASC,SOCIAL SERVICES,Revenue,HEALTH,EXT RES S28A OLD LONG STAY,24.Feb.17,4790.16,METROPOLITAN HOUSING TRUST,Invoice
ASC,,Revenue,INDEPENDENT UNITS,DAY CARE MUTUAL,10.Feb.17,133423.12,ONE TRUST,Invoice
ASC,SOCIAL SERVICES,Revenue,OTHER AGENCIES,EXTERNAL OUTREACH,16.Feb.17,2185.32,C M CARE LTD,Invoice
ASC,SOCIAL SERVICES,Revenue,OTHER AGENCIES,EXTERNAL OUTREACH,16.Feb.17,1501.76,C M CARE LTD,Invoice
ASC,SOCIAL SERVICES,Revenue,OTHER AGENCIES,EXTERNAL OUTREACH,16.Feb.17,1540.00,C M CARE LTD,Invoice
ASC,SOCIAL SERVICES,Revenue,OTHER AGENCIES,EXTERNAL OUTREACH,16.Feb.17,638.08,GENERATE OPPORTUNITIES LTD,Invoice
ASC,SOCIAL SERVICES,Revenue,OTHER AGENCIES,EXTERNAL OUTREACH,16.Feb.17,797.60,GENERATE OPPORTUNITIES LTD,Invoice
ASC,SOCIAL SERVICES,Revenue,OTHER AGENCIES,EXTERNAL OUTREACH,16.Feb.17,957.12,GENERATE OPPORTUNITIES LTD,Invoice
ASC,SOCIAL SERVICES,Revenue,OTHER AGENCIES,EXTERNAL OUTREACH,16.Feb.17,1196.40,GENERATE OPPORTUNITIES LTD,Invoice
ASC,SOCIAL SERVICES,Revenue,OTHER AGENCIES,EXTERNAL OUTREACH,16.Feb.17,2800.00,GENERATE OPPORTUNITIES LTD,Invoice
ASC,SOCIAL SERVICES,Revenue,OTHER AGENCIES,EXTERNAL OUTREACH,17.Feb.17,638.08,GENERATE OPPORTUNITIES LTD,Invoice
ASC,SOCIAL SERVICES,Revenue,OTHER AGENCIES,EXTERNAL OUTREACH,08.Feb.17,720.00,LIVE TOO LIMITED,Invoice
ASC,SOCIAL SERVICES,Revenue,OTHER AGENCIES,EXTERNAL OUTREACH,03.Feb.17,543.20,METRO HOMECARE,Invoice
ASC,SOCIAL SERVICES,Revenue,OTHER AGENCIES,EXTERNAL OUTREACH,03.Feb.17,543.20,METRO HOMECARE,Invoice
ASC,SOCIAL SERVICES,Revenue,OTHER AGENCIES,EXTERNAL OUTREACH,24.Feb.17,664.62,METROPOLITAN HOUSING TRUST,Invoice
ASC,SOCIAL SERVICES,Revenue,OTHER AGENCIES,EXTERNAL OUTREACH,06.Feb.17,950.00,PROTOCOL EDUCATION  LTD,Invoice
ASC,SOCIAL SERVICES,Revenue,OTHER AGENCIES,EXTERNAL OUTREACH,13.Feb.17,950.00,PROTOCOL EDUCATION  LTD,Invoice
ASC,SOCIAL SERVICES,Revenue,OTHER AGENCIES,EXTERNAL OUTREACH,16.Feb.17,950.00,PROTOCOL EDUCATION  LTD,Invoice
ASC,SOCIAL SERVICES,Revenue,OTHER AGENCIES,EXTERNAL OUTREACH,24.Feb.17,950.00,PROTOCOL EDUCATION  LTD,Invoice
ASC,SOCIAL SERVICES,Revenue,OTHER AGENCIES,EXTERNAL OUTREACH,09.Feb.17,456.32,RAINBOW MEDICAL SERVICES,Invoice
ASC,SOCIAL SERVICES,Revenue,OTHER AGENCIES,EXTERNAL OUTREACH,09.Feb.17,2258.62,RAINBOW MEDICAL SERVICES,Invoice
ASC,SOCIAL SERVICES,Revenue,OTHER AGENCIES,EXTERNAL OUTREACH,08.Feb.17,800.40,REED,Invoice
ASC,SOCIAL SERVICES,Revenue,OTHER AGENCIES,EXTERNAL OUTREACH,09.Feb.17,2640.00,RELIABLE PERSONNEL LTD,Invoice
ASC,SOCIAL SERVICES,Revenue,OTHER AGENCIES,EXTERNAL OUTREACH,17.Feb.17,1440.00,ROYAL ASSOCIATION FOR DEAF PEOPLE,Invoice
ASC,SOCIAL SERVICES,Revenue,OTHER AGENCIES,EXTERNAL OUTREACH,09.Feb.17,533.12,THE BRANDON TRUST,Invoice
ASC,SOCIAL SERVICES,Revenue,OTHER AGENCIES,EXTERNAL OUTREACH,09.Feb.17,757.92,THE BRANDON TRUST,Invoice
ASC,SOCIAL SERVICES,Revenue,OTHER AGENCIES,EXTERNAL OUTREACH,09.Feb.17,884.04,THE BRANDON TRUST,Invoice
ASC,SOCIAL SERVICES,Revenue,OTHER AGENCIES,EXTERNAL OUTREACH,09.Feb.17,631.60,THE BRANDON TRUST,Invoice
ASC,SOCIAL SERVICES,Revenue,OTHER AGENCIES,EXTERNAL OUTREACH,09.Feb.17,884.24,THE BRANDON TRUST,Invoice
ASC,SOCIAL SERVICES,Revenue,OTHER AGENCIES,EXTERNAL OUTREACH,09.Feb.17,568.44,THE BRANDON TRUST,Invoice
ASC,SOCIAL SERVICES,Revenue,OTHER AGENCIES,EXTERNAL OUTREACH,09.Feb.17,591.04,THE BRANDON TRUST,Invoice
ASC,SOCIAL SERVICES,Revenue,OTHER AGENCIES,EXTERNAL OUTREACH,09.Feb.17,947.40,THE BRANDON TRUST,Invoice
ASC,SOCIAL SERVICES,Revenue,OTHER AGENCIES,EXTERNAL OUTREACH,09.Feb.17,1170.80,THE BRANDON TRUST,Invoice
ASC,SOCIAL SERVICES,Revenue,OTHER AGENCIES,EXTERNAL OUTREACH,09.Feb.17,189.48,THE BRANDON TRUST,Invoice
ASC,SOCIAL SERVICES,Revenue,OTHER AGENCIES,EXTERNAL OUTREACH,09.Feb.17,694.76,THE BRANDON TRUST,Invoice
ASC,SOCIAL SERVICES,Revenue,OTHER AGENCIES,EXTERNAL OUTREACH,09.Feb.17,1199.52,THE BRANDON TRUST,Invoice
ASC,SOCIAL SERVICES,Revenue,OTHER AGENCIES,EXTERNAL OUTREACH,09.Feb.17,599.76,THE BRANDON TRUST,Invoice
ASC,SOCIAL SERVICES,Revenue,OTHER AGENCIES,EXTERNAL OUTREACH,09.Feb.17,1999.20,THE BRANDON TRUST,Invoice
ASC,SOCIAL SERVICES,Revenue,OTHER AGENCIES,EXTERNAL OUTREACH,09.Feb.17,533.12,THE BRANDON TRUST,Invoice
ASC,SOCIAL SERVICES,Revenue,OTHER AGENCIES,EXTERNAL OUTREACH,09.Feb.17,999.60,THE BRANDON TRUST,Invoice
ASC,SOCIAL SERVICES,Revenue,OTHER AGENCIES,EXTERNAL OUTREACH,09.Feb.17,666.40,THE BRANDON TRUST,Invoice
ASC,SOCIAL SERVICES,Revenue,OTHER AGENCIES,EXTERNAL OUTREACH,09.Feb.17,1062.40,THE BRANDON TRUST,Invoice
ASC,SOCIAL SERVICES,Revenue,OTHER AGENCIES,EXTERNAL OUTREACH,27.Feb.17,723.52,THE BRANDON TRUST,Invoice
ASC,SOCIAL SERVICES,Revenue,PRIVATE,EXTERNAL DAYCARE,01.Feb.17,573.36,ACT TOO LTD,Invoice
ASC,SOCIAL SERVICES,Revenue,PRIVATE,EXTERNAL DAYCARE,09.Feb.17,557.88,ACT TOO LTD,Invoice
ASC,SOCIAL SERVICES,Revenue,PRIVATE,EXTERNAL DAYCARE,09.Feb.17,557.88,ACT TOO LTD,Invoice
ASC,SOCIAL SERVICES,Revenue,PRIVATE,EXTERNAL DAYCARE,09.Feb.17,557.88,ACT TOO LTD,Invoice
ASC,SOCIAL SERVICES,Revenue,PRIVATE,EXTERNAL DAYCARE,09.Feb.17,929.80,ACT TOO LTD,Invoice
ASC,SOCIAL SERVICES,Revenue,PRIVATE,EXTERNAL DAYCARE,09.Feb.17,557.88,ACT TOO LTD,Invoice
ASC,SOCIAL SERVICES,Revenue,PRIVATE,EXTERNAL DAYCARE,09.Feb.17,743.84,ACT TOO LTD,Invoice
ASC,SOCIAL SERVICES,Revenue,PRIVATE,EXTERNAL DAYCARE,09.Feb.17,557.88,ACT TOO LTD,Invoice
ASC,SOCIAL SERVICES,Revenue,PRIVATE,EXTERNAL DAYCARE,09.Feb.17,557.88,ACT TOO LTD,Invoice
ASC,SOCIAL SERVICES,Revenue,PRIVATE,EXTERNAL DAYCARE,09.Feb.17,557.88,ACT TOO LTD,Invoice
ASC,SOCIAL SERVICES,Revenue,PRIVATE,EXTERNAL DAYCARE,09.Feb.17,764.48,ACT TOO LTD,Invoice
ASC,SOCIAL SERVICES,Revenue,PRIVATE,EXTERNAL DAYCARE,09.Feb.17,764.48,ACT TOO LTD,Invoice
ASC,SOCIAL SERVICES,Revenue,PRIVATE,EXTERNAL DAYCARE,09.Feb.17,573.36,ACT TOO LTD,Invoice
ASC,SOCIAL SERVICES,Revenue,PRIVATE,EXTERNAL DAYCARE,09.Feb.17,955.60,ACT TOO LTD,Invoice
ASC,SOCIAL SERVICES,Revenue,PRIVATE,EXTERNAL DAYCARE,09.Feb.17,764.48,ACT TOO LTD,Invoice
ASC,SOCIAL SERVICES,Revenue,PRIVATE,EXTERNAL DAYCARE,09.Feb.17,955.60,ACT TOO LTD,Invoice
ASC,SOCIAL SERVICES,Revenue,PRIVATE,EXTERNAL DAYCARE,09.Feb.17,764.48,ACT TOO LTD,Invoice
ASC,SOCIAL SERVICES,Revenue,PRIVATE,EXTERNAL DAYCARE,09.Feb.17,743.84,ACT TOO LTD,Invoice
ASC,SOCIAL SERVICES,Revenue,PRIVATE,EXTERNAL DAYCARE,09.Feb.17,929.80,ACT TOO LTD,Invoice
ASC,SOCIAL SERVICES,Revenue,PRIVATE,EXTERNAL DAYCARE,09.Feb.17,929.80,ACT TOO LTD,Invoice
ASC,SOCIAL SERVICES,Revenue,PRIVATE,EXTERNAL DAYCARE,09.Feb.17,743.84,ACT TOO LTD,Invoice
ASC,SOCIAL SERVICES,Revenue,PRIVATE,EXTERNAL DAYCARE,09.Feb.17,557.88,ACT TOO LTD,Invoice
ASC,SOCIAL SERVICES,Revenue,PRIVATE,EXTERNAL DAYCARE,09.Feb.17,743.84,ACT TOO LTD,Invoice
ASC,SOCIAL SERVICES,Revenue,PRIVATE,EXTERNAL DAYCARE,09.Feb.17,557.88,ACT TOO LTD,Invoice
ASC,SOCIAL SERVICES,Revenue,PRIVATE,EXTERNAL DAYCARE,09.Feb.17,557.88,ACT TOO LTD,Invoice
ASC,SOCIAL SERVICES,Revenue,PRIVATE,EXTERNAL DAYCARE,09.Feb.17,557.88,ACT TOO LTD,Invoice
ASC,SOCIAL SERVICES,Revenue,PRIVATE,EXTERNAL DAYCARE,09.Feb.17,743.84,ACT TOO LTD,Invoice
ASC,SOCIAL SERVICES,Revenue,PRIVATE,EXTERNAL DAYCARE,09.Feb.17,557.88,ACT TOO LTD,Invoice
ASC,SOCIAL SERVICES,Revenue,PRIVATE,EXTERNAL DAYCARE,09.Feb.17,557.88,ACT TOO LTD,Invoice
ASC,SOCIAL SERVICES,Revenue,PRIVATE,EXTERNAL DAYCARE,09.Feb.17,573.36,ACT TOO LTD,Invoice
ASC,SOCIAL SERVICES,Revenue,PRIVATE,EXTERNAL DAYCARE,09.Feb.17,573.36,ACT TOO LTD,Invoice
ASC,SOCIAL SERVICES,Revenue,PRIVATE,EXTERNAL DAYCARE,24.Feb.17,1904.20,CMG HOMES LTD,Invoice
ASC,SOCIAL SERVICES,Revenue,PRIVATE,EXTERNAL DAYCARE,03.Feb.17,856.66,CREST COOPERATIVE LTD,Invoice
ASC,SOCIAL SERVICES,Revenue,PRIVATE,EXTERNAL DAYCARE,24.Feb.17,973.60,DOLPHIN HOMES LTD,Invoice
ASC,SOCIAL SERVICES,Revenue,PRIVATE,EXTERNAL DAYCARE,14.Feb.17,840.00,DORSET SCOPE,Invoice
ASC,SOCIAL SERVICES,Revenue,PRIVATE,EXTERNAL DAYCARE,16.Feb.17,640.00,GENERATE OPPORTUNITIES LTD,Invoice
ASC,SOCIAL SERVICES,Revenue,PRIVATE,EXTERNAL DAYCARE,16.Feb.17,576.00,GENERATE OPPORTUNITIES LTD,Invoice
ASC,SOCIAL SERVICES,Revenue,PRIVATE,EXTERNAL DAYCARE,16.Feb.17,576.00,GENERATE OPPORTUNITIES LTD,Invoice
ASC,SOCIAL SERVICES,Revenue,PRIVATE,EXTERNAL DAYCARE,16.Feb.17,152.00,GENERATE OPPORTUNITIES LTD,Invoice
ASC,SOCIAL SERVICES,Revenue,PRIVATE,EXTERNAL DAYCARE,24.Feb.17,856.24,HEATHCOTES(SOUTHERN)LTD,Invoice
ASC,SOCIAL SERVICES,Revenue,PRIVATE,EXTERNAL DAYCARE,17.Feb.17,602.56,HIGH HURLANDS HOMES,Invoice
ASC,SOCIAL SERVICES,Revenue,PRIVATE,EXTERNAL DAYCARE,09.Feb.17,706.02,LUCKETTS FARM LIMNITED T/A THE JOHN GRAH,Invoice
ASC,SOCIAL SERVICES,Revenue,PRIVATE,EXTERNAL DAYCARE,13.Feb.17,611.80,MENCAP OPEN DOOR,Invoice
ASC,SOCIAL SERVICES,Revenue,PRIVATE,EXTERNAL DAYCARE,13.Feb.17,515.20,MENCAP OPEN DOOR,Invoice
ASC,SOCIAL SERVICES,Revenue,PRIVATE,EXTERNAL DAYCARE,13.Feb.17,611.80,MENCAP OPEN DOOR,Invoice
ASC,SOCIAL SERVICES,Revenue,PRIVATE,EXTERNAL DAYCARE,09.Feb.17,3807.80,NAS SERVICES LIMITED,Invoice
ASC,SOCIAL SERVICES,Revenue,PRIVATE,EXTERNAL DAYCARE,09.Feb.17,1594.76,NAS SERVICES LIMITED,Invoice
ASC,SOCIAL SERVICES,Revenue,PRIVATE,EXTERNAL DAYCARE,09.Feb.17,3745.00,NAS SERVICES LIMITED,Invoice
ASC,SOCIAL SERVICES,Revenue,PRIVATE,EXTERNAL DAYCARE,09.Feb.17,2264.08,NAS SERVICES LIMITED,Invoice
ASC,SOCIAL SERVICES,Revenue,PRIVATE,EXTERNAL DAYCARE,10.Feb.17,1594.76,NAS SERVICES LIMITED,Invoice
ASC,SOCIAL SERVICES,Revenue,PRIVATE,EXTERNAL DAYCARE,10.Feb.17,1594.76,NAS SERVICES LIMITED,Invoice
ASC,SOCIAL SERVICES,Revenue,PRIVATE,EXTERNAL DAYCARE,14.Feb.17,2331.00,NAS SERVICES LIMITED,Invoice
ASC,SOCIAL SERVICES,Revenue,PRIVATE,EXTERNAL DAYCARE,13.Feb.17,2014.16,NORWOOD SCHOOLS LTD,Invoice
ASC,SOCIAL SERVICES,Revenue,PRIVATE,EXTERNAL DAYCARE,13.Feb.17,2070.04,NORWOOD SCHOOLS LTD,Invoice
ASC,SOCIAL SERVICES,Revenue,PRIVATE,EXTERNAL DAYCARE,16.Feb.17,525.70,O A ROWE,Invoice
ASC,SOCIAL SERVICES,Revenue,PRIVATE,EXTERNAL DAYCARE,16.Feb.17,797.47,ORIONE CARE,Invoice
ASC,SOCIAL SERVICES,Revenue,PRIVATE,EXTERNAL DAYCARE,16.Feb.17,562.92,ORIONE CARE,Invoice
ASC,SOCIAL SERVICES,Revenue,PRIVATE,EXTERNAL DAYCARE,01.Feb.17,540.00,PROSPECTS,Invoice
ASC,SOCIAL SERVICES,Revenue,PRIVATE,EXTERNAL DAYCARE,01.Feb.17,540.00,PROSPECTS,Invoice
ASC,SOCIAL SERVICES,Revenue,PRIVATE,EXTERNAL DAYCARE,17.Feb.17,540.00,PROSPECTS,Invoice
ASC,SOCIAL SERVICES,Revenue,PRIVATE,EXTERNAL DAYCARE,02.Feb.17,1177.40,RIDGEWOOD CARE SERVICES LTD,Invoice
ASC,SOCIAL SERVICES,Revenue,PRIVATE,EXTERNAL DAYCARE,16.Feb.17,1200.00,RIDGEWOOD CARE SERVICES LTD,Invoice
ASC,SOCIAL SERVICES,Revenue,PRIVATE,EXTERNAL DAYCARE,22.Feb.17,848.00,SCOPE,Invoice
ASC,SOCIAL SERVICES,Revenue,PRIVATE,EXTERNAL DAYCARE,22.Feb.17,848.00,SCOPE,Invoice
ASC,SOCIAL SERVICES,Revenue,PRIVATE,EXTERNAL DAYCARE,03.Feb.17,1188.55,SHARE COMMUNITY,Invoice
ASC,SOCIAL SERVICES,Revenue,PRIVATE,EXTERNAL DAYCARE,07.Feb.17,718.12,SHARE COMMUNITY,Invoice
ASC,SOCIAL SERVICES,Revenue,PRIVATE,EXTERNAL DAYCARE,07.Feb.17,718.12,SHARE COMMUNITY,Invoice
ASC,SOCIAL SERVICES,Revenue,PRIVATE,EXTERNAL DAYCARE,07.Feb.17,718.12,SHARE COMMUNITY,Invoice
ASC,SOCIAL SERVICES,Revenue,PRIVATE,EXTERNAL DAYCARE,07.Feb.17,957.48,SHARE COMMUNITY,Invoice
ASC,SOCIAL SERVICES,Revenue,PRIVATE,EXTERNAL DAYCARE,07.Feb.17,957.48,SHARE COMMUNITY,Invoice
ASC,SOCIAL SERVICES,Revenue,PRIVATE,EXTERNAL DAYCARE,07.Feb.17,950.84,SHARE COMMUNITY,Invoice
ASC,SOCIAL SERVICES,Revenue,PRIVATE,EXTERNAL DAYCARE,07.Feb.17,718.12,SHARE COMMUNITY,Invoice
ASC,SOCIAL SERVICES,Revenue,PRIVATE,EXTERNAL DAYCARE,07.Feb.17,718.12,SHARE COMMUNITY,Invoice
ASC,SOCIAL SERVICES,Revenue,PRIVATE,EXTERNAL DAYCARE,07.Feb.17,718.08,SHARE COMMUNITY,Invoice
ASC,SOCIAL SERVICES,Revenue,PRIVATE,EXTERNAL DAYCARE,09.Feb.17,718.12,SHARE COMMUNITY,Invoice
ASC,SOCIAL SERVICES,Revenue,PRIVATE,EXTERNAL DAYCARE,09.Feb.17,957.52,SHARE COMMUNITY,Invoice
ASC,SOCIAL SERVICES,Revenue,PRIVATE,EXTERNAL DAYCARE,09.Feb.17,718.12,SHARE COMMUNITY,Invoice
ASC,SOCIAL SERVICES,Revenue,PRIVATE,EXTERNAL DAYCARE,09.Feb.17,957.44,SHARE COMMUNITY,Invoice
ASC,SOCIAL SERVICES,Revenue,PRIVATE,EXTERNAL DAYCARE,09.Feb.17,718.08,SHARE COMMUNITY,Invoice
ASC,SOCIAL SERVICES,Revenue,PRIVATE,EXTERNAL DAYCARE,09.Feb.17,1196.88,SHARE COMMUNITY,Invoice
ASC,SOCIAL SERVICES,Revenue,PRIVATE,EXTERNAL DAYCARE,09.Feb.17,718.12,SHARE COMMUNITY,Invoice
ASC,SOCIAL SERVICES,Revenue,PRIVATE,EXTERNAL DAYCARE,09.Feb.17,1196.88,SHARE COMMUNITY,Invoice
ASC,SOCIAL SERVICES,Revenue,PRIVATE,EXTERNAL DAYCARE,09.Feb.17,535.36,SHARE COMMUNITY,Invoice
ASC,SOCIAL SERVICES,Revenue,PRIVATE,EXTERNAL DAYCARE,09.Feb.17,957.52,SHARE COMMUNITY,Invoice
ASC,SOCIAL SERVICES,Revenue,PRIVATE,EXTERNAL DAYCARE,09.Feb.17,718.12,SHARE COMMUNITY,Invoice
ASC,SOCIAL SERVICES,Revenue,PRIVATE,EXTERNAL DAYCARE,09.Feb.17,598.44,SHARE COMMUNITY,Invoice
ASC,SOCIAL SERVICES,Revenue,PRIVATE,EXTERNAL DAYCARE,09.Feb.17,718.12,SHARE COMMUNITY,Invoice
ASC,SOCIAL SERVICES,Revenue,PRIVATE,EXTERNAL DAYCARE,09.Feb.17,718.12,SHARE COMMUNITY,Invoice
ASC,SOCIAL SERVICES,Revenue,PRIVATE,EXTERNAL DAYCARE,09.Feb.17,1196.88,SHARE COMMUNITY,Invoice
ASC,SOCIAL SERVICES,Revenue,PRIVATE,EXTERNAL DAYCARE,09.Feb.17,718.12,SHARE COMMUNITY,Invoice
ASC,SOCIAL SERVICES,Revenue,PRIVATE,EXTERNAL DAYCARE,09.Feb.17,718.12,SHARE COMMUNITY,Invoice
ASC,SOCIAL SERVICES,Revenue,PRIVATE,EXTERNAL DAYCARE,09.Feb.17,957.52,SHARE COMMUNITY,Invoice
ASC,SOCIAL SERVICES,Revenue,PRIVATE,EXTERNAL DAYCARE,09.Feb.17,718.12,SHARE COMMUNITY,Invoice
ASC,SOCIAL SERVICES,Revenue,PRIVATE,EXTERNAL DAYCARE,14.Feb.17,1057.00,ST DAVIDS CARE IN THE COMMUNITY,Invoice
ASC,SOCIAL SERVICES,Revenue,PRIVATE,EXTERNAL DAYCARE,14.Feb.17,1057.00,ST DAVIDS CARE IN THE COMMUNITY,Invoice
ASC,SOCIAL SERVICES,Revenue,PRIVATE,EXTERNAL DAYCARE,14.Feb.17,1057.00,ST DAVIDS CARE IN THE COMMUNITY,Invoice
ASC,SOCIAL SERVICES,Revenue,PRIVATE,EXTERNAL DAYCARE,23.Feb.17,1748.96,ST MARYS RESIDENTIAL HOME,Invoice
ASC,SOCIAL SERVICES,Revenue,PRIVATE,EXTERNAL DAYCARE,23.Feb.17,713.44,ST MARYS RESIDENTIAL HOME,Invoice
ASC,SOCIAL SERVICES,Revenue,PRIVATE,EXTERNAL DAYCARE,23.Feb.17,963.36,ST MARYS RESIDENTIAL HOME,Invoice
ASC,SOCIAL SERVICES,Revenue,PRIVATE,EXTERNAL DAYCARE,23.Feb.17,538.00,ST MARYS RESIDENTIAL HOME,Invoice
ASC,SOCIAL SERVICES,Revenue,PRIVATE,EXTERNAL DAYCARE,07.Feb.17,1597.96,STALLCOMBE HOUSE,Invoice
ASC,SOCIAL SERVICES,Revenue,PRIVATE,EXTERNAL DAYCARE,08.Feb.17,1597.96,STALLCOMBE HOUSE,Invoice
ASC,SOCIAL SERVICES,Revenue,PRIVATE,EXTERNAL DAYCARE,23.Feb.17,788.80,SURREY & BORDERS PARTNERSHIP NHS TRUST,Invoice
ASC,SOCIAL SERVICES,Revenue,PRIVATE,EXTERNAL DAYCARE,16.Feb.17,1260.00,SURREY CHOICES,Invoice
ASC,SOCIAL SERVICES,Revenue,PRIVATE,EXTERNAL DAYCARE,08.Feb.17,550.00,THE CAMDEN SOCIETY,Invoice
ASC,SOCIAL SERVICES,Revenue,PRIVATE,EXTERNAL DAYCARE,13.Feb.17,650.00,THE CAMDEN SOCIETY,Invoice
ASC,SOCIAL SERVICES,Revenue,PRIVATE,EXTERNAL DAYCARE,13.Feb.17,650.00,THE CAMDEN SOCIETY,Invoice
ASC,SOCIAL SERVICES,Revenue,PRIVATE,EXTERNAL DAYCARE,13.Feb.17,650.00,THE CAMDEN SOCIETY,Invoice
ASC,SOCIAL SERVICES,Revenue,PRIVATE,EXTERNAL DAYCARE,13.Feb.17,650.00,THE CAMDEN SOCIETY,Invoice
ASC,SOCIAL SERVICES,Revenue,PRIVATE,EXTERNAL DAYCARE,13.Feb.17,650.00,THE CAMDEN SOCIETY,Invoice
ASC,SOCIAL SERVICES,Revenue,PRIVATE,EXTERNAL DAYCARE,13.Feb.17,650.00,THE CAMDEN SOCIETY,Invoice
ASC,SOCIAL SERVICES,Revenue,PRIVATE,EXTERNAL DAYCARE,13.Feb.17,650.00,THE CAMDEN SOCIETY,Invoice
ASC,SOCIAL SERVICES,Revenue,PRIVATE,EXTERNAL DAYCARE,13.Feb.17,650.00,THE CAMDEN SOCIETY,Invoice
ASC,SOCIAL SERVICES,Revenue,PRIVATE,EXTERNAL DAYCARE,16.Feb.17,715.00,THE HOME FARM TRUST LTD,Invoice
ASC,SOCIAL SERVICES,Revenue,PRIVATE,EXTERNAL DAYCARE,24.Feb.17,1057.20,THE MANOR HOUSE,Invoice
ASC,SOCIAL SERVICES,Revenue,PRIVATE,EXTERNAL DAYCARE,24.Feb.17,1398.90,THE REGARD PARTNERSHIP,Invoice
ASC,SOCIAL SERVICES,Revenue,PRIVATE,EXTERNAL DAYCARE,24.Feb.17,1398.90,THE REGARD PARTNERSHIP,Invoice
ASC,SOCIAL SERVICES,Revenue,PRIVATE,EXTERNAL DAYCARE,24.Feb.17,1398.90,THE REGARD PARTNERSHIP,Invoice
ASC,SOCIAL SERVICES,Revenue,PRIVATE,EXTERNAL DAYCARE,27.Feb.17,528.00,THRIVE,Invoice
ASC,SOCIAL SERVICES,Revenue,PRIVATE,EXTERNAL DAYCARE,24.Feb.17,531.04,UNITED RESPONSE,Invoice
ASC,SOCIAL SERVICES,Revenue,PRIVATE,EXTERNAL DAYCARE,01.Feb.17,1831.17,VOYAGE CARE LTD,Invoice
ASC,SOCIAL SERVICES,Revenue,PRIVATE,EXTERNAL DAYCARE,08.Feb.17,1134.08,WORKSHOP 305,Invoice
ASC,SOCIAL SERVICES,Revenue,PRIVATE,EXTERNAL DAYCARE,08.Feb.17,969.60,WORKSHOP 305,Invoice
ASC,SOCIAL SERVICES,Revenue,PRIVATE,EXTERNAL DAYCARE,08.Feb.17,545.40,WORKSHOP 305,Invoice
ASC,SOCIAL SERVICES,Revenue,PRIVATE,EXTERNAL DAYCARE,08.Feb.17,727.20,WORKSHOP 305,Invoice
ASC,SOCIAL SERVICES,Revenue,PRIVATE,EXTERNAL DAYCARE,08.Feb.17,850.56,WORKSHOP 305,Invoice
ASC,SOCIAL SERVICES,Revenue,PRIVATE,EXTERNAL DAYCARE,08.Feb.17,727.20,WORKSHOP 305,Invoice
ASC,SOCIAL SERVICES,Revenue,PRIVATE,EXTERNAL DAYCARE,08.Feb.17,727.20,WORKSHOP 305,Invoice
ASC,SOCIAL SERVICES,Revenue,PRIVATE,EXTERNAL DAYCARE,08.Feb.17,727.20,WORKSHOP 305,Invoice
ASC,SOCIAL SERVICES,Revenue,PRIVATE,EXTERNAL DAYCARE,08.Feb.17,727.20,WORKSHOP 305,Invoice
ASC,SOCIAL SERVICES,Revenue,PRIVATE,EXTERNAL DAYCARE,08.Feb.17,727.20,WORKSHOP 305,Invoice
ASC,SOCIAL SERVICES,Revenue,PRIVATE,EXTERNAL DAYCARE,08.Feb.17,969.60,WORKSHOP 305,Invoice
ASC,SOCIAL SERVICES,Revenue,PRIVATE,EXTERNAL HOMECARE,09.Feb.17,1108.12,CARE OUTLOOK LTD,Invoice
ASC,SOCIAL SERVICES,Revenue,PRIVATE,EXTERNAL HOMECARE,10.Feb.17,754.20,DAY AND NITE CARE,Invoice
ASC,SOCIAL SERVICES,Revenue,PRIVATE,EXTERNAL HOMECARE,27.Feb.17,754.20,DAY AND NITE CARE,Invoice
ASC,SOCIAL SERVICES,Revenue,PRIVATE,EXTERNAL HOMECARE,17.Feb.17,502.88,HEALTH CARE SOLUTIONS,Invoice
ASC,SOCIAL SERVICES,Revenue,PRIVATE,EXTERNAL HOMECARE,22.Feb.17,502.88,HEALTH CARE SOLUTIONS,Invoice
ASC,SOCIAL SERVICES,Revenue,PRIVATE,EXTERNAL HOMECARE,22.Feb.17,502.88,HEALTH CARE SOLUTIONS,Invoice
ASC,SOCIAL SERVICES,Revenue,PRIVATE,EXTERNAL HOMECARE,20.Feb.17,595.00,LIM INDEPENDENT LIVEING & COMMUNITY CARE,Invoice
ASC,SOCIAL SERVICES,Revenue,PRIVATE,EXTERNAL HOMECARE,01.Feb.17,644.40,MUSHKIL AASAAN LTD,Invoice
ASC,SOCIAL SERVICES,Revenue,PRIVATE,EXTERNAL HOMECARE,09.Feb.17,2300.34,RAINBOW MEDICAL SERVICES,Invoice
ASC,SOCIAL SERVICES,Revenue,PRIVATE,EXTERNAL HOMECARE,24.Feb.17,1180.00,RAINBOW MEDICAL SERVICES,Invoice
ASC,SOCIAL SERVICES,Revenue,PRIVATE,EXTERNAL HOMECARE,24.Feb.17,964.90,RAINBOW MEDICAL SERVICES,Invoice
ASC,SOCIAL SERVICES,Revenue,PRIVATE,EXTERNAL HOMECARE,08.Feb.17,690.00,SOMA HEALTHCARE LTD,Invoice
ASC,SOCIAL SERVICES,Revenue,PRIVATE,EXTERNAL HOMECARE,17.Feb.17,690.00,SOMA HEALTHCARE LTD,Invoice
ASC,SOCIAL SERVICES,Revenue,PRIVATE,EXTERNAL HOMECARE,14.Feb.17,1377.00,SUPREME CARE SERVICE LTD,Invoice
ASC,SOCIAL SERVICES,Revenue,PRIVATE,EXTERNAL HOMECARE,14.Feb.17,737.18,SUPREME CARE SERVICE LTD,Invoice
ASC,SOCIAL SERVICES,Revenue,PRIVATE,EXTERNAL HOMECARE,06.Feb.17,507.17,WESTMINSTER HOMECARE LTD,Invoice
ASC,SOCIAL SERVICES,Revenue,PRIVATE,EXTERNAL HOMECARE,17.Feb.17,523.19,WESTMINSTER HOMECARE LTD,Invoice
ASC,SOCIAL SERVICES,Revenue,PRIVATE,EXTERNAL NURSING CARE,09.Feb.17,6853.64,ACTION ON HEARING LOSS,Invoice
ASC,SOCIAL SERVICES,Revenue,PRIVATE,EXTERNAL NURSING CARE,24.Feb.17,3256.52,BUPA CARE SERVICES BACS RECEIPTS,Invoice
ASC,SOCIAL SERVICES,Revenue,PRIVATE,EXTERNAL NURSING CARE,24.Feb.17,3256.52,BUPA CARE SERVICES BACS RECEIPTS,Invoice
ASC,SOCIAL SERVICES,Revenue,PRIVATE,EXTERNAL NURSING CARE,24.Feb.17,3557.00,BUPA CARE SERVICES BACS RECEIPTS,Invoice
ASC,SOCIAL SERVICES,Revenue,PRIVATE,EXTERNAL NURSING CARE,24.Feb.17,3553.15,BUPA CARE SERVICES BACS RECEIPTS,Invoice
ASC,SOCIAL SERVICES,Revenue,PRIVATE,EXTERNAL NURSING CARE,14.Feb.17,9108.12,CHOICE SUPPORT,Invoice
ASC,SOCIAL SERVICES,Revenue,PRIVATE,EXTERNAL NURSING CARE,17.Feb.17,5663.36,HIGH HURLANDS HOMES,Invoice
ASC,SOCIAL SERVICES,Revenue,PRIVATE,EXTERNAL NURSING CARE,24.Feb.17,3546.80,ROSEDENE NURSING HOME,Invoice
ASC,SOCIAL SERVICES,Revenue,PRIVATE,EXTERNAL NURSING CARE,24.Feb.17,8314.32,SUSSEX HEALTH CARE,Invoice
ASC,SOCIAL SERVICES,Revenue,PRIVATE,EXTERNAL NURSING CARE,24.Feb.17,8187.36,THE COMMUNITY CARE COMPANY UK LTD,Invoice
ASC,SOCIAL SERVICES,Revenue,PRIVATE,EXTERNAL NURSING CARE,02.Feb.17,4155.11,TREETOPS NURSING HOME,Invoice
ASC,SOCIAL SERVICES,Revenue,PRIVATE,EXTERNAL NURSING CARE,23.Feb.17,1093.61,TREETOPS NURSING HOME,Invoice
ASC,SOCIAL SERVICES,Revenue,PRIVATE,EXTERNAL NURSING CARE,23.Feb.17,3753.00,TREETOPS NURSING HOME,Invoice
ASC,SOCIAL SERVICES,Revenue,PRIVATE,EXTERNAL NURSING CARE,02.Feb.17,4767.17,VOYAGE CARE LTD,Invoice
ASC,SOCIAL SERVICES,Revenue,PRIVATE,EXTERNAL NURSING CARE,02.Feb.17,6091.57,VOYAGE CARE LTD,Invoice
ASC,SOCIAL SERVICES,Revenue,PRIVATE,EXTERNAL RESIDENTIAL CARE,24.Feb.17,13090.46,ACH OF LONDON LLP,Invoice
ASC,SOCIAL SERVICES,Revenue,PRIVATE,EXTERNAL RESIDENTIAL CARE,24.Feb.17,12668.18,ACH OF LONDON LLP,Invoice
ASC,SOCIAL SERVICES,Revenue,PRIVATE,EXTERNAL RESIDENTIAL CARE,24.Feb.17,13090.46,ACH OF LONDON LLP,Invoice
ASC,SOCIAL SERVICES,Revenue,PRIVATE,EXTERNAL RESIDENTIAL CARE,24.Feb.17,13090.46,ACH OF LONDON LLP,Invoice
ASC,SOCIAL SERVICES,Revenue,PRIVATE,EXTERNAL RESIDENTIAL CARE,24.Feb.17,4677.20,ACORN VILLAGE LIMITED,Invoice
ASC,SOCIAL SERVICES,Revenue,PRIVATE,EXTERNAL RESIDENTIAL CARE,09.Feb.17,4400.00,ACTION ON HEARING LOSS,Invoice
ASC,SOCIAL SERVICES,Revenue,PRIVATE,EXTERNAL RESIDENTIAL CARE,24.Feb.17,7543.12,AIMS CARE PARTNERSHIP,Invoice
ASC,SOCIAL SERVICES,Revenue,PRIVATE,EXTERNAL RESIDENTIAL CARE,09.Feb.17,4598.80,ALLIED CARE LTD T/A ASHSTEAD HOUSE LTD,Invoice
ASC,SOCIAL SERVICES,Revenue,PRIVATE,EXTERNAL RESIDENTIAL CARE,24.Feb.17,10288.12,ASHCROFT CARE SERVICES,Invoice
ASC,SOCIAL SERVICES,Revenue,PRIVATE,EXTERNAL RESIDENTIAL CARE,24.Feb.17,3586.32,BEECH LODGE,Invoice
ASC,SOCIAL SERVICES,Revenue,PRIVATE,EXTERNAL RESIDENTIAL CARE,24.Feb.17,3586.32,BEECH LODGE,Invoice
ASC,SOCIAL SERVICES,Revenue,PRIVATE,EXTERNAL RESIDENTIAL CARE,24.Feb.17,3586.32,BEECH LODGE,Invoice
ASC,SOCIAL SERVICES,Revenue,PRIVATE,EXTERNAL RESIDENTIAL CARE,24.Feb.17,6040.72,BIRCC,Invoice
ASC,SOCIAL SERVICES,Revenue,PRIVATE,EXTERNAL RESIDENTIAL CARE,09.Feb.17,2866.16,BROOKDALE CARE,Invoice
ASC,SOCIAL SERVICES,Revenue,PRIVATE,EXTERNAL RESIDENTIAL CARE,09.Feb.17,2619.73,BROOKDALE CARE,Invoice
ASC,SOCIAL SERVICES,Revenue,PRIVATE,EXTERNAL RESIDENTIAL CARE,09.Feb.17,22493.76,BROOKDALE CARE,Invoice
ASC,SOCIAL SERVICES,Revenue,PRIVATE,EXTERNAL RESIDENTIAL CARE,16.Feb.17,7800.00,C.H.O.I.C.E LIMITED,Invoice
ASC,SOCIAL SERVICES,Revenue,PRIVATE,EXTERNAL RESIDENTIAL CARE,16.Feb.17,7471.92,C.H.O.I.C.E LIMITED,Invoice
ASC,SOCIAL SERVICES,Revenue,PRIVATE,EXTERNAL RESIDENTIAL CARE,16.Feb.17,12666.60,C.H.O.I.C.E LIMITED,Invoice
ASC,SOCIAL SERVICES,Revenue,PRIVATE,EXTERNAL RESIDENTIAL CARE,09.Feb.17,4783.16,CAMERON LODGE LIMITED,Invoice
ASC,SOCIAL SERVICES,Revenue,PRIVATE,EXTERNAL RESIDENTIAL CARE,24.Feb.17,3615.52,CENTRUST CARE HOMES LTD,Invoice
ASC,SOCIAL SERVICES,Revenue,PRIVATE,EXTERNAL RESIDENTIAL CARE,24.Feb.17,3604.52,CHERRY LODGE,Invoice
ASC,SOCIAL SERVICES,Revenue,PRIVATE,EXTERNAL RESIDENTIAL CARE,13.Feb.17,5844.60,CMG HOMES LTD,Invoice
ASC,SOCIAL SERVICES,Revenue,PRIVATE,EXTERNAL RESIDENTIAL CARE,13.Feb.17,4059.04,CMG HOMES LTD,Invoice
ASC,SOCIAL SERVICES,Revenue,PRIVATE,EXTERNAL RESIDENTIAL CARE,13.Feb.17,6233.72,CMG HOMES LTD,Invoice
ASC,SOCIAL SERVICES,Revenue,PRIVATE,EXTERNAL RESIDENTIAL CARE,13.Feb.17,5762.48,CMG HOMES LTD,Invoice
ASC,SOCIAL SERVICES,Revenue,PRIVATE,EXTERNAL RESIDENTIAL CARE,13.Feb.17,8365.08,CMG HOMES LTD,Invoice
ASC,SOCIAL SERVICES,Revenue,PRIVATE,EXTERNAL RESIDENTIAL CARE,13.Feb.17,5033.92,CMG HOMES LTD,Invoice
ASC,SOCIAL SERVICES,Revenue,PRIVATE,EXTERNAL RESIDENTIAL CARE,13.Feb.17,4821.28,CMG HOMES LTD,Invoice
ASC,SOCIAL SERVICES,Revenue,PRIVATE,EXTERNAL RESIDENTIAL CARE,13.Feb.17,7403.60,CMG HOMES LTD,Invoice
ASC,SOCIAL SERVICES,Revenue,PRIVATE,EXTERNAL RESIDENTIAL CARE,24.Feb.17,7400.00,CONDOVER COLLEGE LTD,Invoice
ASC,SOCIAL SERVICES,Revenue,PRIVATE,EXTERNAL RESIDENTIAL CARE,23.Feb.17,3523.28,CRAEGMOOR OLD RECTORY BREDE PRIORY,Invoice
ASC,SOCIAL SERVICES,Revenue,PRIVATE,EXTERNAL RESIDENTIAL CARE,23.Feb.17,9861.00,"CRAEGMOOR, PARKCARE HOMES (NO2) LTD TA W",Invoice
ASC,SOCIAL SERVICES,Revenue,PRIVATE,EXTERNAL RESIDENTIAL CARE,16.Feb.17,3538.40,CSS LTD T/A  THF CARE ESTATES LTD,Invoice
ASC,SOCIAL SERVICES,Revenue,PRIVATE,EXTERNAL RESIDENTIAL CARE,24.Feb.17,4946.29,DOLPHIN HOMES LTD,Invoice
ASC,SOCIAL SERVICES,Revenue,PRIVATE,EXTERNAL RESIDENTIAL CARE,24.Feb.17,3893.95,DOLPHIN HOMES LTD,Invoice
ASC,SOCIAL SERVICES,Revenue,PRIVATE,EXTERNAL RESIDENTIAL CARE,14.Feb.17,4057.99,DOWNING (CHERTSEY ROAD) LTD,Invoice
ASC,SOCIAL SERVICES,Revenue,PRIVATE,EXTERNAL RESIDENTIAL CARE,24.Feb.17,3665.28,DOWNING (CHERTSEY ROAD) LTD,Invoice
ASC,SOCIAL SERVICES,Revenue,PRIVATE,EXTERNAL RESIDENTIAL CARE,24.Feb.17,3160.12,EAST VIEW HOUSING MANAGEMENT LTD,Invoice
ASC,SOCIAL SERVICES,Revenue,PRIVATE,EXTERNAL RESIDENTIAL CARE,14.Feb.17,5980.80,ENHAM,Invoice
ASC,SOCIAL SERVICES,Revenue,PRIVATE,EXTERNAL RESIDENTIAL CARE,23.Feb.17,5685.62,ESSEX CARE CONSORTIUM,Invoice
ASC,SOCIAL SERVICES,Revenue,PRIVATE,EXTERNAL RESIDENTIAL CARE,14.Feb.17,10189.32,EVERGREEN PARTNERSHIP,Invoice
ASC,SOCIAL SERVICES,Revenue,PRIVATE,EXTERNAL RESIDENTIAL CARE,24.Feb.17,7272.00,FIRCROFT,Invoice
ASC,SOCIAL SERVICES,Revenue,PRIVATE,EXTERNAL RESIDENTIAL CARE,08.Feb.17,4536.96,FLORENCE AVENUE CARE HOME,Invoice
ASC,SOCIAL SERVICES,Revenue,PRIVATE,EXTERNAL RESIDENTIAL CARE,08.Feb.17,4536.96,FLORENCE AVENUE CARE HOME,Invoice
ASC,SOCIAL SERVICES,Revenue,PRIVATE,EXTERNAL RESIDENTIAL CARE,28.Feb.17,4536.96,FLORENCE AVENUE CARE HOME,Invoice
ASC,SOCIAL SERVICES,Revenue,PRIVATE,EXTERNAL RESIDENTIAL CARE,24.Feb.17,4398.48,FRANCES TAYLOR FOUNDATION,Invoice
ASC,SOCIAL SERVICES,Revenue,PRIVATE,EXTERNAL RESIDENTIAL CARE,24.Feb.17,3950.60,FRANCES TAYLOR FOUNDATION,Invoice
ASC,SOCIAL SERVICES,Revenue,PRIVATE,EXTERNAL RESIDENTIAL CARE,24.Feb.17,3812.04,FRANCES TAYLOR FOUNDATION,Invoice
ASC,SOCIAL SERVICES,Revenue,PRIVATE,EXTERNAL RESIDENTIAL CARE,24.Feb.17,23735.88,GLENCARE GROUP,Invoice
ASC,SOCIAL SERVICES,Revenue,PRIVATE,EXTERNAL RESIDENTIAL CARE,24.Feb.17,6100.08,GLENCARE GROUP,Invoice
ASC,SOCIAL SERVICES,Revenue,PRIVATE,EXTERNAL RESIDENTIAL CARE,23.Feb.17,2774.84,HASTINGS & BEXHILL MENCAP SOCIETY,Invoice
ASC,SOCIAL SERVICES,Revenue,PRIVATE,EXTERNAL RESIDENTIAL CARE,03.Feb.17,9264.40,HEATHCOTES(SOUTHERN)LTD,Invoice
ASC,SOCIAL SERVICES,Revenue,PRIVATE,EXTERNAL RESIDENTIAL CARE,03.Feb.17,7239.32,HEATHCOTES(SOUTHERN)LTD,Invoice
ASC,SOCIAL SERVICES,Revenue,PRIVATE,EXTERNAL RESIDENTIAL CARE,23.Feb.17,7233.97,HEATHCOTES(SOUTHERN)LTD,Invoice
ASC,SOCIAL SERVICES,Revenue,PRIVATE,EXTERNAL RESIDENTIAL CARE,08.Feb.17,3233.21,HEYWOODS GRANGE LTD,Invoice
ASC,SOCIAL SERVICES,Revenue,PRIVATE,EXTERNAL RESIDENTIAL CARE,24.Feb.17,2338.76,HEYWOODS GRANGE LTD,Invoice
ASC,SOCIAL SERVICES,Revenue,PRIVATE,EXTERNAL RESIDENTIAL CARE,02.Feb.17,12738.34,ILG LTD,Invoice
ASC,SOCIAL SERVICES,Revenue,PRIVATE,EXTERNAL RESIDENTIAL CARE,24.Feb.17,4569.40,IN CHORUS LTD,Invoice
ASC,SOCIAL SERVICES,Revenue,PRIVATE,EXTERNAL RESIDENTIAL CARE,21.Feb.17,4056.00,KENILWORTH RESIDENTIAL HOME,Invoice
ASC,SOCIAL SERVICES,Revenue,PRIVATE,EXTERNAL RESIDENTIAL CARE,21.Feb.17,4184.75,KENILWORTH RESIDENTIAL HOME,Invoice
ASC,SOCIAL SERVICES,Revenue,PRIVATE,EXTERNAL RESIDENTIAL CARE,24.Feb.17,3786.08,LAETUS LODGE,Invoice
ASC,SOCIAL SERVICES,Revenue,PRIVATE,EXTERNAL RESIDENTIAL CARE,24.Feb.17,6139.12,LAETUS LODGE,Invoice
ASC,SOCIAL SERVICES,Revenue,PRIVATE,EXTERNAL RESIDENTIAL CARE,24.Feb.17,3694.80,LAETUS LODGE,Invoice
ASC,SOCIAL SERVICES,Revenue,PRIVATE,EXTERNAL RESIDENTIAL CARE,24.Feb.17,4825.76,LAETUS LODGE,Invoice
ASC,SOCIAL SERVICES,Revenue,PRIVATE,EXTERNAL RESIDENTIAL CARE,24.Feb.17,5277.24,LAETUS LODGE,Invoice
ASC,SOCIAL SERVICES,Revenue,PRIVATE,EXTERNAL RESIDENTIAL CARE,24.Feb.17,7502.16,LAETUS LODGE,Invoice
ASC,SOCIAL SERVICES,Revenue,PRIVATE,EXTERNAL RESIDENTIAL CARE,24.Feb.17,6236.68,LAETUS LODGE,Invoice
ASC,SOCIAL SERVICES,Revenue,PRIVATE,EXTERNAL RESIDENTIAL CARE,16.Feb.17,4996.64,LARKFIELD HALL LTD T/A PEPENBURY,Invoice
ASC,SOCIAL SERVICES,Revenue,PRIVATE,EXTERNAL RESIDENTIAL CARE,02.Feb.17,6447.78,LEONARD CHESHIRE,Invoice
ASC,SOCIAL SERVICES,Revenue,PRIVATE,EXTERNAL RESIDENTIAL CARE,02.Feb.17,4359.84,LEONARD CHESHIRE,Invoice
ASC,SOCIAL SERVICES,Revenue,PRIVATE,EXTERNAL RESIDENTIAL CARE,02.Feb.17,4702.61,LEONARD CHESHIRE,Invoice
ASC,SOCIAL SERVICES,Revenue,PRIVATE,EXTERNAL RESIDENTIAL CARE,06.Feb.17,22328.23,LIFESTYLE CARE MANAGEMENT LTD,Invoice
ASC,SOCIAL SERVICES,Revenue,PRIVATE,EXTERNAL RESIDENTIAL CARE,02.Feb.17,2395.60,LIVABILITY,Invoice
ASC,SOCIAL SERVICES,Revenue,PRIVATE,EXTERNAL RESIDENTIAL CARE,24.Feb.17,8869.46,LONDON CARE PARTNERSHIP LTD,Invoice
ASC,SOCIAL SERVICES,Revenue,PRIVATE,EXTERNAL RESIDENTIAL CARE,24.Feb.17,9848.14,LONDON CARE PARTNERSHIP LTD,Invoice
ASC,SOCIAL SERVICES,Revenue,PRIVATE,EXTERNAL RESIDENTIAL CARE,24.Feb.17,9009.00,LONDON CARE PARTNERSHIP LTD,Invoice
ASC,SOCIAL SERVICES,Revenue,PRIVATE,EXTERNAL RESIDENTIAL CARE,24.Feb.17,9126.86,LONDON CARE PARTNERSHIP LTD,Invoice
ASC,SOCIAL SERVICES,Revenue,PRIVATE,EXTERNAL RESIDENTIAL CARE,24.Feb.17,9126.86,LONDON CARE PARTNERSHIP LTD,Invoice
ASC,SOCIAL SERVICES,Revenue,PRIVATE,EXTERNAL RESIDENTIAL CARE,24.Feb.17,9362.57,LONDON CARE PARTNERSHIP LTD,Invoice
ASC,SOCIAL SERVICES,Revenue,PRIVATE,EXTERNAL RESIDENTIAL CARE,24.Feb.17,96561.86,LONDON CARE PARTNERSHIP LTD,Invoice
ASC,SOCIAL SERVICES,Revenue,PRIVATE,EXTERNAL RESIDENTIAL CARE,02.Feb.17,7849.44,LORING HALL LIMITED,Invoice
ASC,SOCIAL SERVICES,Revenue,PRIVATE,EXTERNAL RESIDENTIAL CARE,24.Feb.17,11556.16,LOVING CARE LTD,Invoice
ASC,SOCIAL SERVICES,Revenue,PRIVATE,EXTERNAL RESIDENTIAL CARE,24.Feb.17,11549.40,LOVING CARE LTD,Invoice
ASC,SOCIAL SERVICES,Revenue,PRIVATE,EXTERNAL RESIDENTIAL CARE,24.Feb.17,11237.60,LOVING CARE LTD,Invoice
ASC,SOCIAL SERVICES,Revenue,PRIVATE,EXTERNAL RESIDENTIAL CARE,24.Feb.17,11507.76,LOVING CARE LTD,Invoice
ASC,SOCIAL SERVICES,Revenue,PRIVATE,EXTERNAL RESIDENTIAL CARE,24.Feb.17,11705.40,LOVING CARE LTD,Invoice
ASC,SOCIAL SERVICES,Revenue,PRIVATE,EXTERNAL RESIDENTIAL CARE,24.Feb.17,11705.40,LOVING CARE LTD,Invoice
ASC,SOCIAL SERVICES,Revenue,PRIVATE,EXTERNAL RESIDENTIAL CARE,24.Feb.17,11248.32,LOVING CARE LTD,Invoice
ASC,SOCIAL SERVICES,Revenue,PRIVATE,EXTERNAL RESIDENTIAL CARE,06.Feb.17,5582.92,M JINGREE T/A SUNLIGHT HOUSE,Invoice
ASC,SOCIAL SERVICES,Revenue,PRIVATE,EXTERNAL RESIDENTIAL CARE,02.Feb.17,3797.24,MACINTYRE CARE,Invoice
ASC,SOCIAL SERVICES,Revenue,PRIVATE,EXTERNAL RESIDENTIAL CARE,23.Feb.17,5262.60,MACINTYRE CARE,Invoice
ASC,SOCIAL SERVICES,Revenue,PRIVATE,EXTERNAL RESIDENTIAL CARE,23.Feb.17,3797.24,MACINTYRE CARE,Invoice
ASC,SOCIAL SERVICES,Revenue,PRIVATE,EXTERNAL RESIDENTIAL CARE,23.Feb.17,5244.40,MACINTYRE CARE,Invoice
ASC,SOCIAL SERVICES,Revenue,PRIVATE,EXTERNAL RESIDENTIAL CARE,23.Feb.17,3788.24,MACINTYRE CARE,Invoice
ASC,SOCIAL SERVICES,Revenue,PRIVATE,EXTERNAL RESIDENTIAL CARE,23.Feb.17,3851.96,MACINTYRE CARE,Invoice
ASC,SOCIAL SERVICES,Revenue,PRIVATE,EXTERNAL RESIDENTIAL CARE,23.Feb.17,5048.84,MACINTYRE CARE,Invoice
ASC,SOCIAL SERVICES,Revenue,PRIVATE,EXTERNAL RESIDENTIAL CARE,23.Feb.17,5148.16,MACINTYRE CARE,Invoice
ASC,SOCIAL SERVICES,Revenue,PRIVATE,EXTERNAL RESIDENTIAL CARE,23.Feb.17,2324.48,MACINTYRE CARE,Invoice
ASC,SOCIAL SERVICES,Revenue,PRIVATE,EXTERNAL RESIDENTIAL CARE,23.Feb.17,8135.00,MACINTYRE CARE,Invoice
ASC,SOCIAL SERVICES,Revenue,PRIVATE,EXTERNAL RESIDENTIAL CARE,23.Feb.17,5080.88,MACINTYRE CARE,Invoice
ASC,SOCIAL SERVICES,Revenue,PRIVATE,EXTERNAL RESIDENTIAL CARE,23.Feb.17,5484.04,MACINTYRE CARE,Invoice
ASC,SOCIAL SERVICES,Revenue,PRIVATE,EXTERNAL RESIDENTIAL CARE,23.Feb.17,4956.84,MACINTYRE CARE,Invoice
ASC,SOCIAL SERVICES,Revenue,PRIVATE,EXTERNAL RESIDENTIAL CARE,23.Feb.17,4338.96,MACINTYRE CARE,Invoice
ASC,SOCIAL SERVICES,Revenue,PRIVATE,EXTERNAL RESIDENTIAL CARE,23.Feb.17,4958.24,MACINTYRE CARE,Invoice
ASC,SOCIAL SERVICES,Revenue,PRIVATE,EXTERNAL RESIDENTIAL CARE,23.Feb.17,4958.24,MACINTYRE CARE,Invoice
ASC,SOCIAL SERVICES,Revenue,PRIVATE,EXTERNAL RESIDENTIAL CARE,23.Feb.17,4956.84,MACINTYRE CARE,Invoice
ASC,SOCIAL SERVICES,Revenue,PRIVATE,EXTERNAL RESIDENTIAL CARE,23.Feb.17,4956.84,MACINTYRE CARE,Invoice
ASC,SOCIAL SERVICES,Revenue,PRIVATE,EXTERNAL RESIDENTIAL CARE,23.Feb.17,4956.84,MACINTYRE CARE,Invoice
ASC,SOCIAL SERVICES,Revenue,PRIVATE,EXTERNAL RESIDENTIAL CARE,24.Feb.17,5483.96,MACINTYRE CARE,Invoice
ASC,SOCIAL SERVICES,Revenue,PRIVATE,EXTERNAL RESIDENTIAL CARE,24.Feb.17,5080.88,MACINTYRE CARE,Invoice
ASC,SOCIAL SERVICES,Revenue,PRIVATE,EXTERNAL RESIDENTIAL CARE,02.Feb.17,4790.16,METROPOLITAN HOUSING TRUST,Invoice
ASC,SOCIAL SERVICES,Revenue,PRIVATE,EXTERNAL RESIDENTIAL CARE,02.Feb.17,3685.12,METROPOLITAN HOUSING TRUST,Invoice
ASC,SOCIAL SERVICES,Revenue,PRIVATE,EXTERNAL RESIDENTIAL CARE,02.Feb.17,3685.12,METROPOLITAN HOUSING TRUST,Invoice
ASC,SOCIAL SERVICES,Revenue,PRIVATE,EXTERNAL RESIDENTIAL CARE,02.Feb.17,3685.12,METROPOLITAN HOUSING TRUST,Invoice
ASC,SOCIAL SERVICES,Revenue,PRIVATE,EXTERNAL RESIDENTIAL CARE,02.Feb.17,3685.28,METROPOLITAN HOUSING TRUST,Invoice
ASC,SOCIAL SERVICES,Revenue,PRIVATE,EXTERNAL RESIDENTIAL CARE,02.Feb.17,3685.12,METROPOLITAN HOUSING TRUST,Invoice
ASC,SOCIAL SERVICES,Revenue,PRIVATE,EXTERNAL RESIDENTIAL CARE,02.Feb.17,3685.12,METROPOLITAN HOUSING TRUST,Invoice
ASC,SOCIAL SERVICES,Revenue,PRIVATE,EXTERNAL RESIDENTIAL CARE,02.Feb.17,3838.72,METROPOLITAN HOUSING TRUST,Invoice
ASC,SOCIAL SERVICES,Revenue,PRIVATE,EXTERNAL RESIDENTIAL CARE,02.Feb.17,3685.12,METROPOLITAN HOUSING TRUST,Invoice
ASC,SOCIAL SERVICES,Revenue,PRIVATE,EXTERNAL RESIDENTIAL CARE,02.Feb.17,4790.16,METROPOLITAN HOUSING TRUST,Invoice
ASC,SOCIAL SERVICES,Revenue,PRIVATE,EXTERNAL RESIDENTIAL CARE,02.Feb.17,4756.88,METROPOLITAN HOUSING TRUST,Invoice
ASC,SOCIAL SERVICES,Revenue,PRIVATE,EXTERNAL RESIDENTIAL CARE,02.Feb.17,4790.16,METROPOLITAN HOUSING TRUST,Invoice
ASC,SOCIAL SERVICES,Revenue,PRIVATE,EXTERNAL RESIDENTIAL CARE,02.Feb.17,4502.60,METROPOLITAN HOUSING TRUST,Invoice
ASC,SOCIAL SERVICES,Revenue,PRIVATE,EXTERNAL RESIDENTIAL CARE,02.Feb.17,4790.16,METROPOLITAN HOUSING TRUST,Invoice
ASC,SOCIAL SERVICES,Revenue,PRIVATE,EXTERNAL RESIDENTIAL CARE,02.Feb.17,4790.16,METROPOLITAN HOUSING TRUST,Invoice
ASC,SOCIAL SERVICES,Revenue,PRIVATE,EXTERNAL RESIDENTIAL CARE,02.Feb.17,4790.16,METROPOLITAN HOUSING TRUST,Invoice
ASC,SOCIAL SERVICES,Revenue,PRIVATE,EXTERNAL RESIDENTIAL CARE,22.Feb.17,1197.54,METROPOLITAN HOUSING TRUST,Invoice
ASC,SOCIAL SERVICES,Revenue,PRIVATE,EXTERNAL RESIDENTIAL CARE,02.Feb.17,1706.53,METROPOLITAN HOUSING TRUST,Invoice
ASC,SOCIAL SERVICES,Revenue,PRIVATE,EXTERNAL RESIDENTIAL CARE,16.Feb.17,3797.73,METROPOLITAN HOUSING TRUST,Invoice
ASC,SOCIAL SERVICES,Revenue,PRIVATE,EXTERNAL RESIDENTIAL CARE,24.Feb.17,3685.12,METROPOLITAN HOUSING TRUST,Invoice
ASC,SOCIAL SERVICES,Revenue,PRIVATE,EXTERNAL RESIDENTIAL CARE,24.Feb.17,3812.04,METROPOLITAN HOUSING TRUST,Invoice
ASC,SOCIAL SERVICES,Revenue,PRIVATE,EXTERNAL RESIDENTIAL CARE,24.Feb.17,3685.12,METROPOLITAN HOUSING TRUST,Invoice
ASC,SOCIAL SERVICES,Revenue,PRIVATE,EXTERNAL RESIDENTIAL CARE,24.Feb.17,3685.28,METROPOLITAN HOUSING TRUST,Invoice
ASC,SOCIAL SERVICES,Revenue,PRIVATE,EXTERNAL RESIDENTIAL CARE,24.Feb.17,3685.12,METROPOLITAN HOUSING TRUST,Invoice
ASC,SOCIAL SERVICES,Revenue,PRIVATE,EXTERNAL RESIDENTIAL CARE,24.Feb.17,3685.12,METROPOLITAN HOUSING TRUST,Invoice
ASC,SOCIAL SERVICES,Revenue,PRIVATE,EXTERNAL RESIDENTIAL CARE,24.Feb.17,3685.12,METROPOLITAN HOUSING TRUST,Invoice
ASC,SOCIAL SERVICES,Revenue,PRIVATE,EXTERNAL RESIDENTIAL CARE,24.Feb.17,3838.72,METROPOLITAN HOUSING TRUST,Invoice
ASC,SOCIAL SERVICES,Revenue,PRIVATE,EXTERNAL RESIDENTIAL CARE,24.Feb.17,3685.12,METROPOLITAN HOUSING TRUST,Invoice
ASC,SOCIAL SERVICES,Revenue,PRIVATE,EXTERNAL RESIDENTIAL CARE,24.Feb.17,4790.16,METROPOLITAN HOUSING TRUST,Invoice
ASC,SOCIAL SERVICES,Revenue,PRIVATE,EXTERNAL RESIDENTIAL CARE,24.Feb.17,4756.88,METROPOLITAN HOUSING TRUST,Invoice
ASC,SOCIAL SERVICES,Revenue,PRIVATE,EXTERNAL RESIDENTIAL CARE,24.Feb.17,4790.16,METROPOLITAN HOUSING TRUST,Invoice
ASC,SOCIAL SERVICES,Revenue,PRIVATE,EXTERNAL RESIDENTIAL CARE,24.Feb.17,4502.60,METROPOLITAN HOUSING TRUST,Invoice
ASC,SOCIAL SERVICES,Revenue,PRIVATE,EXTERNAL RESIDENTIAL CARE,24.Feb.17,4790.16,METROPOLITAN HOUSING TRUST,Invoice
ASC,SOCIAL SERVICES,Revenue,PRIVATE,EXTERNAL RESIDENTIAL CARE,24.Feb.17,4790.16,METROPOLITAN HOUSING TRUST,Invoice
ASC,SOCIAL SERVICES,Revenue,PRIVATE,EXTERNAL RESIDENTIAL CARE,24.Feb.17,4790.16,METROPOLITAN HOUSING TRUST,Invoice
ASC,SOCIAL SERVICES,Revenue,PRIVATE,EXTERNAL RESIDENTIAL CARE,06.Feb.17,7603.86,MIGHOUSE RESIDENTIAL CARE HOME LTD,Invoice
ASC,SOCIAL SERVICES,Revenue,PRIVATE,EXTERNAL RESIDENTIAL CARE,10.Feb.17,5525.62,NAS SERVICES LIMITED,Invoice
ASC,SOCIAL SERVICES,Revenue,PRIVATE,EXTERNAL RESIDENTIAL CARE,14.Feb.17,5553.76,NAS SERVICES LIMITED,Invoice
ASC,SOCIAL SERVICES,Revenue,PRIVATE,EXTERNAL RESIDENTIAL CARE,14.Feb.17,6485.84,NAS SERVICES LIMITED,Invoice
ASC,SOCIAL SERVICES,Revenue,PRIVATE,EXTERNAL RESIDENTIAL CARE,03.Feb.17,12804.00,NASH CARE HOMES LIMITED,Invoice
ASC,SOCIAL SERVICES,Revenue,PRIVATE,EXTERNAL RESIDENTIAL CARE,24.Feb.17,6024.20,NATIONAL SOCIETY FOR EPILEPSY,Invoice
ASC,SOCIAL SERVICES,Revenue,PRIVATE,EXTERNAL RESIDENTIAL CARE,13.Feb.17,6197.52,NORWOOD SCHOOLS LTD,Invoice
ASC,SOCIAL SERVICES,Revenue,PRIVATE,EXTERNAL RESIDENTIAL CARE,13.Feb.17,6454.68,NORWOOD SCHOOLS LTD,Invoice
ASC,SOCIAL SERVICES,Revenue,PRIVATE,EXTERNAL RESIDENTIAL CARE,24.Feb.17,3959.20,NUTLEY HALL LTD,Invoice
ASC,SOCIAL SERVICES,Revenue,PRIVATE,EXTERNAL RESIDENTIAL CARE,24.Feb.17,6895.72,PATHWAY HEALTHCARE,Invoice
ASC,SOCIAL SERVICES,Revenue,PRIVATE,EXTERNAL RESIDENTIAL CARE,24.Feb.17,6488.92,PATHWAY HEALTHCARE,Invoice
ASC,SOCIAL SERVICES,Revenue,PRIVATE,EXTERNAL RESIDENTIAL CARE,21.Feb.17,3135.60,POTENSIAL LTD,Invoice
ASC,SOCIAL SERVICES,Revenue,PRIVATE,EXTERNAL RESIDENTIAL CARE,24.Feb.17,7691.34,PROGRESS HOUSING MARLOW,Invoice
ASC,SOCIAL SERVICES,Revenue,PRIVATE,EXTERNAL RESIDENTIAL CARE,24.Feb.17,3166.72,PROSPECTS,Invoice
ASC,SOCIAL SERVICES,Revenue,PRIVATE,EXTERNAL RESIDENTIAL CARE,07.Feb.17,36944.61,QUALITIES SERVICES LTD,Invoice
ASC,SOCIAL SERVICES,Revenue,PRIVATE,EXTERNAL RESIDENTIAL CARE,02.Feb.17,8318.91,RALEIGH HOUSE LTD,Invoice
ASC,SOCIAL SERVICES,Revenue,PRIVATE,EXTERNAL RESIDENTIAL CARE,24.Feb.17,7764.31,RALEIGH HOUSE LTD,Invoice
ASC,SOCIAL SERVICES,Revenue,PRIVATE,EXTERNAL RESIDENTIAL CARE,08.Feb.17,4062.44,RESIDENTIAL CARE SERVICES T/A FRANKLYN L,Invoice
ASC,SOCIAL SERVICES,Revenue,PRIVATE,EXTERNAL RESIDENTIAL CARE,24.Feb.17,7140.20,RESIDENTIAL COMMUNITY CARE,Invoice
ASC,SOCIAL SERVICES,Revenue,PRIVATE,EXTERNAL RESIDENTIAL CARE,24.Feb.17,7123.76,RESIDENTIAL COMMUNITY CARE,Invoice
ASC,SOCIAL SERVICES,Revenue,PRIVATE,EXTERNAL RESIDENTIAL CARE,02.Feb.17,6522.60,RIDGEWOOD CARE SERVICES LTD,Invoice
ASC,SOCIAL SERVICES,Revenue,PRIVATE,EXTERNAL RESIDENTIAL CARE,16.Feb.17,3557.60,RIDGEWOOD CARE SERVICES LTD,Invoice
ASC,SOCIAL SERVICES,Revenue,PRIVATE,EXTERNAL RESIDENTIAL CARE,16.Feb.17,3766.44,RIDGEWOOD CARE SERVICES LTD,Invoice
ASC,SOCIAL SERVICES,Revenue,PRIVATE,EXTERNAL RESIDENTIAL CARE,13.Feb.17,6162.48,ROYAL MENCAP SOCIETY,Invoice
ASC,SOCIAL SERVICES,Revenue,PRIVATE,EXTERNAL RESIDENTIAL CARE,13.Feb.17,4181.68,ROYAL MENCAP SOCIETY,Invoice
ASC,SOCIAL SERVICES,Revenue,PRIVATE,EXTERNAL RESIDENTIAL CARE,24.Feb.17,2499.08,SANCTUARY HOME CARE LTD,Invoice
ASC,SOCIAL SERVICES,Revenue,PRIVATE,EXTERNAL RESIDENTIAL CARE,24.Feb.17,2381.52,SCOPE,Invoice
ASC,SOCIAL SERVICES,Revenue,PRIVATE,EXTERNAL RESIDENTIAL CARE,24.Feb.17,2538.68,SCOPE,Invoice
ASC,SOCIAL SERVICES,Revenue,PRIVATE,EXTERNAL RESIDENTIAL CARE,23.Feb.17,7794.20,SEEABILITY,Invoice
ASC,SOCIAL SERVICES,Revenue,PRIVATE,EXTERNAL RESIDENTIAL CARE,27.Feb.17,6909.88,SEEABILITY,Invoice
ASC,SOCIAL SERVICES,Revenue,PRIVATE,EXTERNAL RESIDENTIAL CARE,27.Feb.17,7234.09,SEEABILITY,Invoice
ASC,SOCIAL SERVICES,Revenue,PRIVATE,EXTERNAL RESIDENTIAL CARE,24.Feb.17,9544.00,SEQUENCE CARE GROUP,Invoice
ASC,SOCIAL SERVICES,Revenue,PRIVATE,EXTERNAL RESIDENTIAL CARE,24.Feb.17,1902.76,ST DAVIDS CARE IN THE COMMUNITY,Invoice
ASC,SOCIAL SERVICES,Revenue,PRIVATE,EXTERNAL RESIDENTIAL CARE,24.Feb.17,2387.54,ST DAVIDS CARE IN THE COMMUNITY,Invoice
ASC,SOCIAL SERVICES,Revenue,PRIVATE,EXTERNAL RESIDENTIAL CARE,24.Feb.17,2123.11,ST DAVIDS CARE IN THE COMMUNITY,Invoice
ASC,SOCIAL SERVICES,Revenue,PRIVATE,EXTERNAL RESIDENTIAL CARE,02.Feb.17,3292.35,ST MARYS RESIDENTIAL HOME,Invoice
ASC,SOCIAL SERVICES,Revenue,PRIVATE,EXTERNAL RESIDENTIAL CARE,02.Feb.17,2781.63,ST MARYS RESIDENTIAL HOME,Invoice
ASC,SOCIAL SERVICES,Revenue,PRIVATE,EXTERNAL RESIDENTIAL CARE,02.Feb.17,3749.13,ST MARYS RESIDENTIAL HOME,Invoice
ASC,SOCIAL SERVICES,Revenue,PRIVATE,EXTERNAL RESIDENTIAL CARE,24.Feb.17,3603.44,ST MARYS RESIDENTIAL HOME,Invoice
ASC,SOCIAL SERVICES,Revenue,PRIVATE,EXTERNAL RESIDENTIAL CARE,24.Feb.17,3546.08,ST MARYS RESIDENTIAL HOME,Invoice
ASC,SOCIAL SERVICES,Revenue,PRIVATE,EXTERNAL RESIDENTIAL CARE,24.Feb.17,3246.92,ST MARYS RESIDENTIAL HOME,Invoice
ASC,SOCIAL SERVICES,Revenue,PRIVATE,EXTERNAL RESIDENTIAL CARE,24.Feb.17,3375.88,ST MARYS RESIDENTIAL HOME,Invoice
ASC,SOCIAL SERVICES,Revenue,PRIVATE,EXTERNAL RESIDENTIAL CARE,24.Feb.17,2771.89,ST MARYS RESIDENTIAL HOME,Invoice
ASC,SOCIAL SERVICES,Revenue,PRIVATE,EXTERNAL RESIDENTIAL CARE,24.Feb.17,4663.69,ST MARYS RESIDENTIAL HOME,Invoice
ASC,SOCIAL SERVICES,Revenue,PRIVATE,EXTERNAL RESIDENTIAL CARE,24.Feb.17,3633.60,ST MARYS RESIDENTIAL HOME,Invoice
ASC,SOCIAL SERVICES,Revenue,PRIVATE,EXTERNAL RESIDENTIAL CARE,24.Feb.17,3258.64,ST MARYS RESIDENTIAL HOME,Invoice
ASC,SOCIAL SERVICES,Revenue,PRIVATE,EXTERNAL RESIDENTIAL CARE,24.Feb.17,3457.60,ST MARYS RESIDENTIAL HOME,Invoice
ASC,SOCIAL SERVICES,Revenue,PRIVATE,EXTERNAL RESIDENTIAL CARE,24.Feb.17,3222.40,ST MARYS RESIDENTIAL HOME,Invoice
ASC,SOCIAL SERVICES,Revenue,PRIVATE,EXTERNAL RESIDENTIAL CARE,24.Feb.17,3457.60,ST MARYS RESIDENTIAL HOME,Invoice
ASC,SOCIAL SERVICES,Revenue,PRIVATE,EXTERNAL RESIDENTIAL CARE,24.Feb.17,2104.21,ST MARYS RESIDENTIAL HOME,Invoice
ASC,SOCIAL SERVICES,Revenue,PRIVATE,EXTERNAL RESIDENTIAL CARE,07.Feb.17,3291.71,STALLCOMBE HOUSE,Invoice
ASC,SOCIAL SERVICES,Revenue,PRIVATE,EXTERNAL RESIDENTIAL CARE,07.Feb.17,5487.22,STALLCOMBE HOUSE,Invoice
ASC,SOCIAL SERVICES,Revenue,PRIVATE,EXTERNAL RESIDENTIAL CARE,07.Feb.17,5730.57,STALLCOMBE HOUSE,Invoice
ASC,SOCIAL SERVICES,Revenue,PRIVATE,EXTERNAL RESIDENTIAL CARE,13.Feb.17,5622.80,SURREY & BORDERS PARTNERSHIP NHS TRUST,Invoice
ASC,SOCIAL SERVICES,Revenue,PRIVATE,EXTERNAL RESIDENTIAL CARE,13.Feb.17,8982.39,SURREY & BORDERS PARTNERSHIP NHS TRUST,Invoice
ASC,SOCIAL SERVICES,Revenue,PRIVATE,EXTERNAL RESIDENTIAL CARE,24.Feb.17,13801.00,SURREY & BORDERS PARTNERSHIP NHS TRUST,Invoice
ASC,SOCIAL SERVICES,Revenue,PRIVATE,EXTERNAL RESIDENTIAL CARE,02.Feb.17,6234.50,SUSSEX AUTISTIC COMMUNITY TRUST(CARE SER,Invoice
ASC,SOCIAL SERVICES,Revenue,PRIVATE,EXTERNAL RESIDENTIAL CARE,09.Feb.17,6408.96,THE BRANDON TRUST,Invoice
ASC,SOCIAL SERVICES,Revenue,PRIVATE,EXTERNAL RESIDENTIAL CARE,02.Feb.17,5594.12,THE CHESTNUTS,Invoice
ASC,SOCIAL SERVICES,Revenue,PRIVATE,EXTERNAL RESIDENTIAL CARE,24.Feb.17,5645.68,THE COMMUNITY CARE COMPANY UK LTD,Invoice
ASC,SOCIAL SERVICES,Revenue,PRIVATE,EXTERNAL RESIDENTIAL CARE,24.Feb.17,5149.08,THE COMMUNITY CARE COMPANY UK LTD,Invoice
ASC,SOCIAL SERVICES,Revenue,PRIVATE,EXTERNAL RESIDENTIAL CARE,24.Feb.17,6497.12,THE COMMUNITY CARE COMPANY UK LTD,Invoice
ASC,SOCIAL SERVICES,Revenue,PRIVATE,EXTERNAL RESIDENTIAL CARE,24.Feb.17,5476.00,THE COMMUNITY CARE COMPANY UK LTD,Invoice
ASC,SOCIAL SERVICES,Revenue,PRIVATE,EXTERNAL RESIDENTIAL CARE,24.Feb.17,6571.16,THE COMMUNITY CARE COMPANY UK LTD,Invoice
ASC,SOCIAL SERVICES,Revenue,PRIVATE,EXTERNAL RESIDENTIAL CARE,24.Feb.17,7011.68,THE DISABILITIES TRUST,Invoice
ASC,SOCIAL SERVICES,Revenue,PRIVATE,EXTERNAL RESIDENTIAL CARE,23.Feb.17,3985.04,THE LEO TRUST,Invoice
ASC,SOCIAL SERVICES,Revenue,PRIVATE,EXTERNAL RESIDENTIAL CARE,24.Feb.17,2739.92,THE MANOR HOUSE,Invoice
ASC,SOCIAL SERVICES,Revenue,PRIVATE,EXTERNAL RESIDENTIAL CARE,28.Feb.17,9223.48,THE MAPLES,Invoice
ASC,SOCIAL SERVICES,Revenue,PRIVATE,EXTERNAL RESIDENTIAL CARE,28.Feb.17,9223.48,THE MAPLES,Invoice
ASC,SOCIAL SERVICES,Revenue,PRIVATE,EXTERNAL RESIDENTIAL CARE,24.Feb.17,7633.22,THE REGARD PARTNERSHIP,Invoice
ASC,SOCIAL SERVICES,Revenue,PRIVATE,EXTERNAL RESIDENTIAL CARE,24.Feb.17,6401.96,THE REGARD PARTNERSHIP,Invoice
ASC,SOCIAL SERVICES,Revenue,PRIVATE,EXTERNAL RESIDENTIAL CARE,24.Feb.17,6401.96,THE REGARD PARTNERSHIP,Invoice
ASC,SOCIAL SERVICES,Revenue,PRIVATE,EXTERNAL RESIDENTIAL CARE,24.Feb.17,7185.09,THE REGARD PARTNERSHIP,Invoice
ASC,SOCIAL SERVICES,Revenue,PRIVATE,EXTERNAL RESIDENTIAL CARE,24.Feb.17,7287.04,THE REGARD PARTNERSHIP,Invoice
ASC,SOCIAL SERVICES,Revenue,PRIVATE,EXTERNAL RESIDENTIAL CARE,24.Feb.17,7203.91,THE REGARD PARTNERSHIP,Invoice
ASC,SOCIAL SERVICES,Revenue,PRIVATE,EXTERNAL RESIDENTIAL CARE,24.Feb.17,8029.66,THE REGARD PARTNERSHIP,Invoice
ASC,SOCIAL SERVICES,Revenue,PRIVATE,EXTERNAL RESIDENTIAL CARE,27.Feb.17,6401.96,THE REGARD PARTNERSHIP,Invoice
ASC,SOCIAL SERVICES,Revenue,PRIVATE,EXTERNAL RESIDENTIAL CARE,27.Feb.17,8029.66,THE REGARD PARTNERSHIP,Invoice
ASC,SOCIAL SERVICES,Revenue,PRIVATE,EXTERNAL RESIDENTIAL CARE,23.Feb.17,4664.20,THE WELL HOUSE,Invoice
ASC,SOCIAL SERVICES,Revenue,PRIVATE,EXTERNAL RESIDENTIAL CARE,23.Feb.17,4403.64,THE WELL HOUSE,Invoice
ASC,SOCIAL SERVICES,Revenue,PRIVATE,EXTERNAL RESIDENTIAL CARE,24.Feb.17,9192.52,THE WEST OF ENGLAND SCHOOL & COLLEGE,Invoice
ASC,SOCIAL SERVICES,Revenue,PRIVATE,EXTERNAL RESIDENTIAL CARE,24.Feb.17,7840.12,THE WEST OF ENGLAND SCHOOL & COLLEGE,Invoice
ASC,SOCIAL SERVICES,Revenue,PRIVATE,EXTERNAL RESIDENTIAL CARE,24.Feb.17,7447.56,TOTTERDOWN,Invoice
ASC,SOCIAL SERVICES,Revenue,PRIVATE,EXTERNAL RESIDENTIAL CARE,24.Feb.17,3696.92,TOTTERDOWN,Invoice
ASC,SOCIAL SERVICES,Revenue,PRIVATE,EXTERNAL RESIDENTIAL CARE,24.Feb.17,4868.04,TRACS,Invoice
ASC,SOCIAL SERVICES,Revenue,PRIVATE,EXTERNAL RESIDENTIAL CARE,24.Feb.17,3162.56,UNITED RESPONSE,Invoice
ASC,SOCIAL SERVICES,Revenue,PRIVATE,EXTERNAL RESIDENTIAL CARE,02.Feb.17,6257.08,VOYAGE CARE LTD,Invoice
ASC,SOCIAL SERVICES,Revenue,PRIVATE,EXTERNAL RESIDENTIAL CARE,02.Feb.17,6392.03,VOYAGE CARE LTD,Invoice
ASC,SOCIAL SERVICES,Revenue,PRIVATE,EXTERNAL RESIDENTIAL CARE,02.Feb.17,8770.83,VOYAGE CARE LTD,Invoice
ASC,SOCIAL SERVICES,Revenue,PRIVATE,EXTERNAL RESIDENTIAL CARE,02.Feb.17,7315.65,VOYAGE CARE LTD,Invoice
ASC,SOCIAL SERVICES,Revenue,PRIVATE,EXTERNAL RESIDENTIAL CARE,06.Feb.17,6271.61,VOYAGE CARE LTD,Invoice
ASC,SOCIAL SERVICES,Revenue,PRIVATE,EXTERNAL RESIDENTIAL CARE,06.Feb.17,6271.61,VOYAGE CARE LTD,Invoice
ASC,SOCIAL SERVICES,Revenue,PRIVATE,EXTERNAL RESIDENTIAL CARE,08.Feb.17,4835.04,WHITE ROSE CARE,Invoice
ASC,SOCIAL SERVICES,Revenue,PRIVATE,EXTERNAL RESIDENTIAL CARE,08.Feb.17,4835.04,WHITE ROSE CARE,Invoice
ASC,SOCIAL SERVICES,Revenue,PRIVATE,EXTERNAL RESIDENTIAL CARE,08.Feb.17,4835.04,WHITE ROSE CARE,Invoice
ASC,SOCIAL SERVICES,Revenue,PRIVATE,EXTERNAL RESIDENTIAL CARE,03.Feb.17,5133.28,WHITMORE VALE HOUSING ASSOCIATION LTD,Invoice
ASC,SOCIAL SERVICES,Revenue,PRIVATE,EXTERNAL RESIDENTIAL CARE,03.Feb.17,5133.28,WHITMORE VALE HOUSING ASSOCIATION LTD,Invoice
ASC,SOCIAL SERVICES,Revenue,PRIVATE,EXTERNAL RESIDENTIAL CARE,24.Feb.17,9614.32,ZERO THREE CARE HOMES LLP,Invoice
ASC,SOCIAL SERVICES,Revenue,PRIVATE,EXTERNAL RESI RESPITE CARE,20.Feb.17,1726.80,SEASHELL TRUST,Invoice
ASC,SOCIAL SERVICES,Revenue,PRIVATE,EXTERNAL RESI RESPITE CARE,09.Feb.17,2720.96,THE BRANDON TRUST,Invoice
ASC,SOCIAL SERVICES,Revenue,PRIVATE,ONE TO ONE CARE,09.Feb.17,3131.52,CAMERON LODGE LIMITED,Invoice
ASC,SOCIAL SERVICES,Revenue,PRIVATE,ONE TO ONE CARE,23.Feb.17,3000.00,CRAEGMOOR OLD RECTORY BREDE PRIORY,Invoice
ASC,SOCIAL SERVICES,Revenue,PRIVATE,ONE TO ONE CARE,16.Feb.17,835.84,CSS LTD T/A  THF CARE ESTATES LTD,Invoice
ASC,SOCIAL SERVICES,Revenue,PRIVATE,ONE TO ONE CARE,14.Feb.17,2884.77,DOWNING (CHERTSEY ROAD) LTD,Invoice
ASC,SOCIAL SERVICES,Revenue,PRIVATE,ONE TO ONE CARE,24.Feb.17,2605.60,DOWNING (CHERTSEY ROAD) LTD,Invoice
ASC,SOCIAL SERVICES,Revenue,PRIVATE,ONE TO ONE CARE,03.Feb.17,177.00,FRONTIER SUPPORT SERVICES LTD,Invoice
ASC,SOCIAL SERVICES,Revenue,PRIVATE,ONE TO ONE CARE,03.Feb.17,177.00,FRONTIER SUPPORT SERVICES LTD,Invoice
ASC,SOCIAL SERVICES,Revenue,PRIVATE,ONE TO ONE CARE,09.Feb.17,716.24,FRONTIER SUPPORT SERVICES LTD,Invoice
ASC,SOCIAL SERVICES,Revenue,PRIVATE,ONE TO ONE CARE,09.Feb.17,500.14,FRONTIER SUPPORT SERVICES LTD,Invoice
ASC,SOCIAL SERVICES,Revenue,PRIVATE,ONE TO ONE CARE,09.Feb.17,177.00,FRONTIER SUPPORT SERVICES LTD,Invoice
ASC,SOCIAL SERVICES,Revenue,PRIVATE,ONE TO ONE CARE,01.Feb.17,759.84,HARINGEY ASSOCIATION FOR INDEPENDENT LIV,Invoice
ASC,SOCIAL SERVICES,Revenue,PRIVATE,ONE TO ONE CARE,01.Feb.17,949.80,HARINGEY ASSOCIATION FOR INDEPENDENT LIV,Invoice
ASC,SOCIAL SERVICES,Revenue,PRIVATE,ONE TO ONE CARE,01.Feb.17,949.80,HARINGEY ASSOCIATION FOR INDEPENDENT LIV,Invoice
ASC,SOCIAL SERVICES,Revenue,PRIVATE,ONE TO ONE CARE,16.Feb.17,807.84,LARKFIELD HALL LTD T/A PEPENBURY,Invoice
ASC,SOCIAL SERVICES,Revenue,PRIVATE,ONE TO ONE CARE,06.Feb.17,547.60,LIFEWAYS COMMUNITY CARE LTD,Invoice
ASC,SOCIAL SERVICES,Revenue,PRIVATE,ONE TO ONE CARE,23.Feb.17,1364.04,MACINTYRE CARE,Invoice
ASC,SOCIAL SERVICES,Revenue,PRIVATE,ONE TO ONE CARE,23.Feb.17,1364.04,MACINTYRE CARE,Invoice
ASC,SOCIAL SERVICES,Revenue,PRIVATE,ONE TO ONE CARE,23.Feb.17,1928.52,MACINTYRE CARE,Invoice
ASC,SOCIAL SERVICES,Revenue,PRIVATE,ONE TO ONE CARE,23.Feb.17,1364.04,MACINTYRE CARE,Invoice
ASC,SOCIAL SERVICES,Revenue,PRIVATE,ONE TO ONE CARE,23.Feb.17,701.52,MACINTYRE CARE,Invoice
ASC,SOCIAL SERVICES,Revenue,PRIVATE,ONE TO ONE CARE,09.Feb.17,1844.64,METROPOLITAN HOUSING TRUST,Invoice
ASC,SOCIAL SERVICES,Revenue,PRIVATE,ONE TO ONE CARE,24.Feb.17,2548.80,METROPOLITAN HOUSING TRUST,Invoice
ASC,SOCIAL SERVICES,Revenue,PRIVATE,ONE TO ONE CARE,24.Feb.17,1755.84,METROPOLITAN HOUSING TRUST,Invoice
ASC,SOCIAL SERVICES,Revenue,PRIVATE,ONE TO ONE CARE,24.Feb.17,1844.64,METROPOLITAN HOUSING TRUST,Invoice
ASC,SOCIAL SERVICES,Revenue,PRIVATE,ONE TO ONE CARE,24.Feb.17,2049.60,METROPOLITAN HOUSING TRUST,Invoice
ASC,SOCIAL SERVICES,Revenue,PRIVATE,ONE TO ONE CARE,09.Feb.17,2206.75,RAINBOW MEDICAL SERVICES,Invoice
ASC,SOCIAL SERVICES,Revenue,PRIVATE,ONE TO ONE CARE,24.Feb.17,630.56,ST MARYS RESIDENTIAL HOME,Invoice
ASC,SOCIAL SERVICES,Revenue,PRIVATE,ONE TO ONE CARE,24.Feb.17,590.15,ST MARYS RESIDENTIAL HOME,Invoice
ASC,SOCIAL SERVICES,Revenue,PRIVATE,ONE TO ONE CARE,07.Feb.17,2497.36,STALLCOMBE HOUSE,Invoice
ASC,SOCIAL SERVICES,Revenue,PRIVATE,ONE TO ONE CARE,09.Feb.17,331.20,THE BRANDON TRUST,Invoice
ASC,SOCIAL SERVICES,Revenue,PRIVATE,ONE TO ONE CARE,09.Feb.17,1987.20,THE BRANDON TRUST,Invoice
ASC,SOCIAL SERVICES,Revenue,PRIVATE,ONE TO ONE CARE,09.Feb.17,1312.00,THE BRANDON TRUST,Invoice
ASC,SOCIAL SERVICES,Revenue,PRIVATE,ONE TO ONE CARE,09.Feb.17,2450.88,THE BRANDON TRUST,Invoice
ASC,SOCIAL SERVICES,Revenue,PRIVATE,ONE TO ONE CARE,09.Feb.17,568.44,THE BRANDON TRUST,Invoice
ASC,SOCIAL SERVICES,Revenue,PRIVATE,ONE TO ONE CARE,09.Feb.17,331.20,THE BRANDON TRUST,Invoice
ASC,SOCIAL SERVICES,Revenue,PRIVATE,ONE TO ONE CARE,09.Feb.17,331.20,THE BRANDON TRUST,Invoice
ASC,SOCIAL SERVICES,Revenue,PRIVATE,ONE TO ONE CARE,24.Feb.17,1059.08,THE COMMUNITY CARE COMPANY UK LTD,Invoice
ASC,SOCIAL SERVICES,Revenue,PRIVATE,ONE TO ONE CARE,24.Feb.17,1207.84,THE COMMUNITY CARE COMPANY UK LTD,Invoice
ASC,SOCIAL SERVICES,Revenue,PRIVATE,ONE TO ONE CARE,13.Feb.17,3194.88,TOTTERDOWN,Invoice
ASC,SOCIAL SERVICES,Revenue,PRIVATE,ONE TO ONE CARE,06.Feb.17,1028.57,VOYAGE CARE LTD,Invoice
ASC,SOCIAL SERVICES,Revenue,PRIVATE,ONE TO ONE CARE,06.Feb.17,1062.86,VOYAGE CARE LTD,Invoice
ASC,SOCIAL SERVICES,Revenue,PRIVATE,ONE TO ONE CARE,24.Feb.17,1776.88,ZERO THREE CARE HOMES LLP,Invoice
ASC,SOCIAL SERVICES,Revenue,VOL ASS,SUPPORTED HOUSING PROGRAMME,16.Feb.17,6124.00,A NEW LEAF,Invoice
ASC,SOCIAL SERVICES,Revenue,VOL ASS,SUPPORTED HOUSING PROGRAMME,16.Feb.17,1687.76,C M CARE LTD,Invoice
ASC,SOCIAL SERVICES,Revenue,VOL ASS,SUPPORTED HOUSING PROGRAMME,02.Feb.17,7972.24,CHOICE SUPPORT,Invoice
ASC,SOCIAL SERVICES,Revenue,VOL ASS,SUPPORTED HOUSING PROGRAMME,24.Feb.17,7876.84,CURANS CARE LTD,Invoice
ASC,SOCIAL SERVICES,Revenue,VOL ASS,SUPPORTED HOUSING PROGRAMME,24.Feb.17,3740.12,CURANS CARE LTD,Invoice
ASC,SOCIAL SERVICES,Revenue,VOL ASS,SUPPORTED HOUSING PROGRAMME,24.Feb.17,7882.08,CURANS CARE LTD,Invoice
ASC,SOCIAL SERVICES,Revenue,VOL ASS,SUPPORTED HOUSING PROGRAMME,24.Feb.17,6793.36,CURANS CARE LTD,Invoice
ASC,SOCIAL SERVICES,Revenue,VOL ASS,SUPPORTED HOUSING PROGRAMME,03.Feb.17,1535.60,FRONTIER SUPPORT SERVICES LTD,Invoice
ASC,SOCIAL SERVICES,Revenue,VOL ASS,SUPPORTED HOUSING PROGRAMME,03.Feb.17,1535.60,FRONTIER SUPPORT SERVICES LTD,Invoice
ASC,SOCIAL SERVICES,Revenue,VOL ASS,SUPPORTED HOUSING PROGRAMME,06.Feb.17,1251.12,FRONTIER SUPPORT SERVICES LTD,Invoice
ASC,SOCIAL SERVICES,Revenue,VOL ASS,SUPPORTED HOUSING PROGRAMME,09.Feb.17,1697.72,FRONTIER SUPPORT SERVICES LTD,Invoice
ASC,SOCIAL SERVICES,Revenue,VOL ASS,SUPPORTED HOUSING PROGRAMME,09.Feb.17,1251.12,FRONTIER SUPPORT SERVICES LTD,Invoice
ASC,SOCIAL SERVICES,Revenue,VOL ASS,SUPPORTED HOUSING PROGRAMME,09.Feb.17,1019.20,FRONTIER SUPPORT SERVICES LTD,Invoice
ASC,SOCIAL SERVICES,Revenue,VOL ASS,SUPPORTED HOUSING PROGRAMME,09.Feb.17,1543.72,FRONTIER SUPPORT SERVICES LTD,Invoice
ASC,SOCIAL SERVICES,Revenue,VOL ASS,SUPPORTED HOUSING PROGRAMME,09.Feb.17,1877.92,FRONTIER SUPPORT SERVICES LTD,Invoice
ASC,SOCIAL SERVICES,Revenue,VOL ASS,SUPPORTED HOUSING PROGRAMME,09.Feb.17,3447.88,FRONTIER SUPPORT SERVICES LTD,Invoice
ASC,SOCIAL SERVICES,Revenue,VOL ASS,SUPPORTED HOUSING PROGRAMME,09.Feb.17,1361.20,FRONTIER SUPPORT SERVICES LTD,Invoice
ASC,SOCIAL SERVICES,Revenue,VOL ASS,SUPPORTED HOUSING PROGRAMME,09.Feb.17,15981.92,FRONTIER SUPPORT SERVICES LTD,Invoice
ASC,SOCIAL SERVICES,Revenue,VOL ASS,SUPPORTED HOUSING PROGRAMME,09.Feb.17,1363.36,FRONTIER SUPPORT SERVICES LTD,Invoice
ASC,SOCIAL SERVICES,Revenue,VOL ASS,SUPPORTED HOUSING PROGRAMME,09.Feb.17,1105.20,FRONTIER SUPPORT SERVICES LTD,Invoice
ASC,SOCIAL SERVICES,Revenue,VOL ASS,SUPPORTED HOUSING PROGRAMME,09.Feb.17,1535.60,FRONTIER SUPPORT SERVICES LTD,Invoice
ASC,SOCIAL SERVICES,Revenue,VOL ASS,SUPPORTED HOUSING PROGRAMME,01.Feb.17,4059.10,HARINGEY ASSOCIATION FOR INDEPENDENT LIV,Invoice
ASC,SOCIAL SERVICES,Revenue,VOL ASS,SUPPORTED HOUSING PROGRAMME,01.Feb.17,1901.90,HARINGEY ASSOCIATION FOR INDEPENDENT LIV,Invoice
ASC,SOCIAL SERVICES,Revenue,VOL ASS,SUPPORTED HOUSING PROGRAMME,01.Feb.17,3247.28,HARINGEY ASSOCIATION FOR INDEPENDENT LIV,Invoice
ASC,SOCIAL SERVICES,Revenue,VOL ASS,SUPPORTED HOUSING PROGRAMME,01.Feb.17,1521.52,HARINGEY ASSOCIATION FOR INDEPENDENT LIV,Invoice
ASC,SOCIAL SERVICES,Revenue,VOL ASS,SUPPORTED HOUSING PROGRAMME,01.Feb.17,4059.10,HARINGEY ASSOCIATION FOR INDEPENDENT LIV,Invoice
ASC,SOCIAL SERVICES,Revenue,VOL ASS,SUPPORTED HOUSING PROGRAMME,01.Feb.17,1901.90,HARINGEY ASSOCIATION FOR INDEPENDENT LIV,Invoice
ASC,SOCIAL SERVICES,Revenue,VOL ASS,SUPPORTED HOUSING PROGRAMME,16.Feb.17,5454.68,INDEPENDENCE HOMES LTD,Invoice
ASC,SOCIAL SERVICES,Revenue,VOL ASS,SUPPORTED HOUSING PROGRAMME,16.Feb.17,5710.84,INDEPENDENCE HOMES LTD,Invoice
ASC,SOCIAL SERVICES,Revenue,VOL ASS,SUPPORTED HOUSING PROGRAMME,24.Feb.17,1700.00,LAETUS LODGE,Invoice
ASC,SOCIAL SERVICES,Revenue,VOL ASS,SUPPORTED HOUSING PROGRAMME,24.Feb.17,5645.88,LAETUS LODGE,Invoice
ASC,SOCIAL SERVICES,Revenue,VOL ASS,SUPPORTED HOUSING PROGRAMME,24.Feb.17,21730.12,LAETUS LODGE,Invoice
ASC,SOCIAL SERVICES,Revenue,VOL ASS,SUPPORTED HOUSING PROGRAMME,06.Feb.17,3885.44,LIFEWAYS COMMUNITY CARE LTD,Invoice
ASC,SOCIAL SERVICES,Revenue,VOL ASS,SUPPORTED HOUSING PROGRAMME,06.Feb.17,2596.04,LIFEWAYS COMMUNITY CARE LTD,Invoice
ASC,SOCIAL SERVICES,Revenue,VOL ASS,SUPPORTED HOUSING PROGRAMME,06.Feb.17,2166.24,LIFEWAYS COMMUNITY CARE LTD,Invoice
ASC,SOCIAL SERVICES,Revenue,VOL ASS,SUPPORTED HOUSING PROGRAMME,06.Feb.17,2227.64,LIFEWAYS COMMUNITY CARE LTD,Invoice
ASC,SOCIAL SERVICES,Revenue,VOL ASS,SUPPORTED HOUSING PROGRAMME,06.Feb.17,2289.04,LIFEWAYS COMMUNITY CARE LTD,Invoice
ASC,SOCIAL SERVICES,Revenue,VOL ASS,SUPPORTED HOUSING PROGRAMME,06.Feb.17,1982.04,LIFEWAYS COMMUNITY CARE LTD,Invoice
ASC,SOCIAL SERVICES,Revenue,VOL ASS,SUPPORTED HOUSING PROGRAMME,06.Feb.17,3885.44,LIFEWAYS COMMUNITY CARE LTD,Invoice
ASC,SOCIAL SERVICES,Revenue,VOL ASS,SUPPORTED HOUSING PROGRAMME,06.Feb.17,2411.84,LIFEWAYS COMMUNITY CARE LTD,Invoice
ASC,SOCIAL SERVICES,Revenue,VOL ASS,SUPPORTED HOUSING PROGRAMME,06.Feb.17,1736.44,LIFEWAYS COMMUNITY CARE LTD,Invoice
ASC,SOCIAL SERVICES,Revenue,VOL ASS,SUPPORTED HOUSING PROGRAMME,06.Feb.17,1920.64,LIFEWAYS COMMUNITY CARE LTD,Invoice
ASC,SOCIAL SERVICES,Revenue,VOL ASS,SUPPORTED HOUSING PROGRAMME,06.Feb.17,3210.04,LIFEWAYS COMMUNITY CARE LTD,Invoice
ASC,SOCIAL SERVICES,Revenue,VOL ASS,SUPPORTED HOUSING PROGRAMME,06.Feb.17,2394.20,LIFEWAYS COMMUNITY CARE LTD,Invoice
ASC,SOCIAL SERVICES,Revenue,VOL ASS,SUPPORTED HOUSING PROGRAMME,06.Feb.17,2551.16,LIFEWAYS COMMUNITY CARE LTD,Invoice
ASC,SOCIAL SERVICES,Revenue,VOL ASS,SUPPORTED HOUSING PROGRAMME,06.Feb.17,3335.96,LIFEWAYS COMMUNITY CARE LTD,Invoice
ASC,SOCIAL SERVICES,Revenue,VOL ASS,SUPPORTED HOUSING PROGRAMME,06.Feb.17,2969.72,LIFEWAYS COMMUNITY CARE LTD,Invoice
ASC,SOCIAL SERVICES,Revenue,VOL ASS,SUPPORTED HOUSING PROGRAMME,06.Feb.17,2341.88,LIFEWAYS COMMUNITY CARE LTD,Invoice
ASC,SOCIAL SERVICES,Revenue,VOL ASS,SUPPORTED HOUSING PROGRAMME,06.Feb.17,2551.16,LIFEWAYS COMMUNITY CARE LTD,Invoice
ASC,SOCIAL SERVICES,Revenue,VOL ASS,SUPPORTED HOUSING PROGRAMME,06.Feb.17,1444.56,LIFEWAYS COMMUNITY CARE LTD,Invoice
ASC,SOCIAL SERVICES,Revenue,VOL ASS,SUPPORTED HOUSING PROGRAMME,06.Feb.17,2025.24,LIFEWAYS COMMUNITY CARE LTD,Invoice
ASC,SOCIAL SERVICES,Revenue,VOL ASS,SUPPORTED HOUSING PROGRAMME,06.Feb.17,2025.24,LIFEWAYS COMMUNITY CARE LTD,Invoice
ASC,SOCIAL SERVICES,Revenue,VOL ASS,SUPPORTED HOUSING PROGRAMME,06.Feb.17,2244.28,LIFEWAYS COMMUNITY CARE LTD,Invoice
ASC,SOCIAL SERVICES,Revenue,VOL ASS,SUPPORTED HOUSING PROGRAMME,06.Feb.17,2518.08,LIFEWAYS COMMUNITY CARE LTD,Invoice
ASC,SOCIAL SERVICES,Revenue,VOL ASS,SUPPORTED HOUSING PROGRAMME,06.Feb.17,2025.24,LIFEWAYS COMMUNITY CARE LTD,Invoice
ASC,SOCIAL SERVICES,Revenue,VOL ASS,SUPPORTED HOUSING PROGRAMME,06.Feb.17,2244.28,LIFEWAYS COMMUNITY CARE LTD,Invoice
ASC,SOCIAL SERVICES,Revenue,VOL ASS,SUPPORTED HOUSING PROGRAMME,06.Feb.17,1860.96,LIFEWAYS COMMUNITY CARE LTD,Invoice
ASC,SOCIAL SERVICES,Revenue,VOL ASS,SUPPORTED HOUSING PROGRAMME,06.Feb.17,2341.88,LIFEWAYS COMMUNITY CARE LTD,Invoice
ASC,SOCIAL SERVICES,Revenue,VOL ASS,SUPPORTED HOUSING PROGRAMME,06.Feb.17,3100.52,LIFEWAYS COMMUNITY CARE LTD,Invoice
ASC,SOCIAL SERVICES,Revenue,VOL ASS,SUPPORTED HOUSING PROGRAMME,14.Feb.17,1982.04,LIFEWAYS COMMUNITY CARE LTD,Invoice
ASC,SOCIAL SERVICES,Revenue,VOL ASS,SUPPORTED HOUSING PROGRAMME,14.Feb.17,2603.48,LIFEWAYS COMMUNITY CARE LTD,Invoice
ASC,SOCIAL SERVICES,Revenue,VOL ASS,SUPPORTED HOUSING PROGRAMME,14.Feb.17,2025.24,LIFEWAYS COMMUNITY CARE LTD,Invoice
ASC,SOCIAL SERVICES,Revenue,VOL ASS,SUPPORTED HOUSING PROGRAMME,16.Feb.17,7336.00,LIFEWAYS COMMUNITY CARE LTD,Invoice
ASC,SOCIAL SERVICES,Revenue,VOL ASS,SUPPORTED HOUSING PROGRAMME,08.Feb.17,4230.00,LIVE TOO LIMITED,Invoice
ASC,SOCIAL SERVICES,Revenue,VOL ASS,SUPPORTED HOUSING PROGRAMME,08.Feb.17,1200.00,LIVE TOO LIMITED,Invoice
ASC,SOCIAL SERVICES,Revenue,VOL ASS,SUPPORTED HOUSING PROGRAMME,08.Feb.17,11760.00,LIVE TOO LIMITED,Invoice
ASC,SOCIAL SERVICES,Revenue,VOL ASS,SUPPORTED HOUSING PROGRAMME,08.Feb.17,1260.00,LIVE TOO LIMITED,Invoice
ASC,SOCIAL SERVICES,Revenue,VOL ASS,SUPPORTED HOUSING PROGRAMME,08.Feb.17,930.00,LIVE TOO LIMITED,Invoice
ASC,SOCIAL SERVICES,Revenue,VOL ASS,SUPPORTED HOUSING PROGRAMME,08.Feb.17,1440.00,LIVE TOO LIMITED,Invoice
ASC,SOCIAL SERVICES,Revenue,VOL ASS,SUPPORTED HOUSING PROGRAMME,08.Feb.17,1500.00,LIVE TOO LIMITED,Invoice
ASC,SOCIAL SERVICES,Revenue,VOL ASS,SUPPORTED HOUSING PROGRAMME,08.Feb.17,720.00,LIVE TOO LIMITED,Invoice
ASC,SOCIAL SERVICES,Revenue,VOL ASS,SUPPORTED HOUSING PROGRAMME,08.Feb.17,1350.00,LIVE TOO LIMITED,Invoice
ASC,SOCIAL SERVICES,Revenue,VOL ASS,SUPPORTED HOUSING PROGRAMME,08.Feb.17,2040.00,LIVE TOO LIMITED,Invoice
ASC,SOCIAL SERVICES,Revenue,VOL ASS,SUPPORTED HOUSING PROGRAMME,08.Feb.17,700.00,LIVE TOO LIMITED,Invoice
ASC,SOCIAL SERVICES,Revenue,VOL ASS,SUPPORTED HOUSING PROGRAMME,08.Feb.17,1568.00,LIVE TOO LIMITED,Invoice
ASC,SOCIAL SERVICES,Revenue,VOL ASS,SUPPORTED HOUSING PROGRAMME,08.Feb.17,784.00,LIVE TOO LIMITED,Invoice
ASC,SOCIAL SERVICES,Revenue,VOL ASS,SUPPORTED HOUSING PROGRAMME,08.Feb.17,663.80,LIVE TOO LIMITED,Invoice
ASC,SOCIAL SERVICES,Revenue,VOL ASS,SUPPORTED HOUSING PROGRAMME,08.Feb.17,1140.00,LIVE TOO LIMITED,Invoice
ASC,SOCIAL SERVICES,Revenue,VOL ASS,SUPPORTED HOUSING PROGRAMME,08.Feb.17,1662.40,LIVE TOO LIMITED,Invoice
ASC,SOCIAL SERVICES,Revenue,VOL ASS,SUPPORTED HOUSING PROGRAMME,16.Feb.17,2940.00,LIVE TOO LIMITED,Invoice
ASC,SOCIAL SERVICES,Revenue,VOL ASS,SUPPORTED HOUSING PROGRAMME,16.Feb.17,4400.00,MORTON GARDENS,Invoice
ASC,SOCIAL SERVICES,Revenue,VOL ASS,SUPPORTED HOUSING PROGRAMME,24.Feb.17,1056.25,MS J DAVIES-BENNETTS T/A HANDSON HORSES,Invoice
ASC,SOCIAL SERVICES,Revenue,VOL ASS,SUPPORTED HOUSING PROGRAMME,13.Feb.17,5543.72,NORWOOD SCHOOLS LTD,Invoice
ASC,SOCIAL SERVICES,Revenue,VOL ASS,SUPPORTED HOUSING PROGRAMME,09.Feb.17,10379.12,RAINBOW MEDICAL SERVICES,Invoice
ASC,SOCIAL SERVICES,Revenue,VOL ASS,SUPPORTED HOUSING PROGRAMME,09.Feb.17,6120.00,RELIABLE PERSONNEL LTD,Invoice
ASC,SOCIAL SERVICES,Revenue,VOL ASS,SUPPORTED HOUSING PROGRAMME,13.Feb.17,2490.04,ROYAL MENCAP SOCIETY,Invoice
ASC,SOCIAL SERVICES,Revenue,VOL ASS,SUPPORTED HOUSING PROGRAMME,13.Feb.17,2541.12,ROYAL MENCAP SOCIETY,Invoice
ASC,SOCIAL SERVICES,Revenue,VOL ASS,SUPPORTED HOUSING PROGRAMME,13.Feb.17,7211.20,ROYAL MENCAP SOCIETY,Invoice
ASC,SOCIAL SERVICES,Revenue,VOL ASS,SUPPORTED HOUSING PROGRAMME,13.Feb.17,1783.00,ROYAL MENCAP SOCIETY,Invoice
ASC,SOCIAL SERVICES,Revenue,VOL ASS,SUPPORTED HOUSING PROGRAMME,13.Feb.17,3338.80,ROYAL MENCAP SOCIETY,Invoice
ASC,SOCIAL SERVICES,Revenue,VOL ASS,SUPPORTED HOUSING PROGRAMME,13.Feb.17,5308.36,ROYAL MENCAP SOCIETY,Invoice
ASC,SOCIAL SERVICES,Revenue,VOL ASS,SUPPORTED HOUSING PROGRAMME,13.Feb.17,2296.56,ROYAL MENCAP SOCIETY,Invoice
ASC,SOCIAL SERVICES,Revenue,VOL ASS,SUPPORTED HOUSING PROGRAMME,16.Feb.17,2490.04,ROYAL MENCAP SOCIETY,Invoice
ASC,SOCIAL SERVICES,Revenue,VOL ASS,SUPPORTED HOUSING PROGRAMME,24.Feb.17,4796.96,ST ELIZABETHS CENTRE,Invoice
ASC,SOCIAL SERVICES,Revenue,VOL ASS,SUPPORTED HOUSING PROGRAMME,02.Feb.17,4400.00,STEP 4 YOU,Invoice
ASC,SOCIAL SERVICES,Revenue,VOL ASS,SUPPORTED HOUSING PROGRAMME,06.Feb.17,4000.00,STEP 4 YOU,Invoice
ASC,SOCIAL SERVICES,Revenue,VOL ASS,SUPPORTED HOUSING PROGRAMME,06.Feb.17,4000.00,STEP 4 YOU,Invoice
ASC,SOCIAL SERVICES,Revenue,VOL ASS,SUPPORTED HOUSING PROGRAMME,06.Feb.17,4000.00,STEP 4 YOU,Invoice
ASC,SOCIAL SERVICES,Revenue,VOL ASS,SUPPORTED HOUSING PROGRAMME,06.Feb.17,4000.00,STEP 4 YOU,Invoice
ASC,SOCIAL SERVICES,Revenue,VOL ASS,SUPPORTED HOUSING PROGRAMME,06.Feb.17,10620.00,STEP 4 YOU,Invoice
ASC,SOCIAL SERVICES,Revenue,VOL ASS,SUPPORTED HOUSING PROGRAMME,06.Feb.17,8040.00,STEP 4 YOU,Invoice
ASC,SOCIAL SERVICES,Revenue,VOL ASS,SUPPORTED HOUSING PROGRAMME,06.Feb.17,6604.28,STEP 4 YOU,Invoice
ASC,SOCIAL SERVICES,Revenue,VOL ASS,SUPPORTED HOUSING PROGRAMME,09.Feb.17,4740.00,STEP 4 YOU,Invoice
ASC,SOCIAL SERVICES,Revenue,VOL ASS,SUPPORTED HOUSING PROGRAMME,03.Feb.17,2969.12,THE BRANDON TRUST,Invoice
ASC,SOCIAL SERVICES,Revenue,VOL ASS,SUPPORTED HOUSING PROGRAMME,03.Feb.17,2969.12,THE BRANDON TRUST,Invoice
ASC,SOCIAL SERVICES,Revenue,VOL ASS,SUPPORTED HOUSING PROGRAMME,03.Feb.17,2969.12,THE BRANDON TRUST,Invoice
ASC,SOCIAL SERVICES,Revenue,VOL ASS,SUPPORTED HOUSING PROGRAMME,03.Feb.17,2969.12,THE BRANDON TRUST,Invoice
ASC,SOCIAL SERVICES,Revenue,VOL ASS,SUPPORTED HOUSING PROGRAMME,03.Feb.17,2969.12,THE BRANDON TRUST,Invoice
ASC,SOCIAL SERVICES,Revenue,VOL ASS,SUPPORTED HOUSING PROGRAMME,09.Feb.17,2442.08,THE BRANDON TRUST,Invoice
ASC,SOCIAL SERVICES,Revenue,VOL ASS,SUPPORTED HOUSING PROGRAMME,09.Feb.17,932.96,THE BRANDON TRUST,Invoice
ASC,SOCIAL SERVICES,Revenue,VOL ASS,SUPPORTED HOUSING PROGRAMME,09.Feb.17,932.96,THE BRANDON TRUST,Invoice
ASC,SOCIAL SERVICES,Revenue,VOL ASS,SUPPORTED HOUSING PROGRAMME,09.Feb.17,1936.52,THE BRANDON TRUST,Invoice
ASC,SOCIAL SERVICES,Revenue,VOL ASS,SUPPORTED HOUSING PROGRAMME,09.Feb.17,7764.16,THE BRANDON TRUST,Invoice
ASC,SOCIAL SERVICES,Revenue,VOL ASS,SUPPORTED HOUSING PROGRAMME,09.Feb.17,2319.84,THE BRANDON TRUST,Invoice
ASC,SOCIAL SERVICES,Revenue,VOL ASS,SUPPORTED HOUSING PROGRAMME,09.Feb.17,2980.60,THE BRANDON TRUST,Invoice
ASC,SOCIAL SERVICES,Revenue,VOL ASS,SUPPORTED HOUSING PROGRAMME,09.Feb.17,2969.12,THE BRANDON TRUST,Invoice
ASC,SOCIAL SERVICES,Revenue,VOL ASS,SUPPORTED HOUSING PROGRAMME,09.Feb.17,2979.92,THE BRANDON TRUST,Invoice
ASC,SOCIAL SERVICES,Revenue,VOL ASS,SUPPORTED HOUSING PROGRAMME,09.Feb.17,2140.32,THE BRANDON TRUST,Invoice
ASC,SOCIAL SERVICES,Revenue,VOL ASS,SUPPORTED HOUSING PROGRAMME,09.Feb.17,3585.60,THE BRANDON TRUST,Invoice
ASC,SOCIAL SERVICES,Revenue,VOL ASS,SUPPORTED HOUSING PROGRAMME,09.Feb.17,1125.08,THE BRANDON TRUST,Invoice
ASC,SOCIAL SERVICES,Revenue,VOL ASS,SUPPORTED HOUSING PROGRAMME,09.Feb.17,1155.88,THE BRANDON TRUST,Invoice
ASC,SOCIAL SERVICES,Revenue,VOL ASS,SUPPORTED HOUSING PROGRAMME,09.Feb.17,1854.72,THE BRANDON TRUST,Invoice
ASC,SOCIAL SERVICES,Revenue,VOL ASS,SUPPORTED HOUSING PROGRAMME,09.Feb.17,1380.64,THE BRANDON TRUST,Invoice
ASC,SOCIAL SERVICES,Revenue,VOL ASS,SUPPORTED HOUSING PROGRAMME,09.Feb.17,1466.16,THE BRANDON TRUST,Invoice
ASC,SOCIAL SERVICES,Revenue,VOL ASS,SUPPORTED HOUSING PROGRAMME,09.Feb.17,1513.68,THE BRANDON TRUST,Invoice
ASC,SOCIAL SERVICES,Revenue,VOL ASS,SUPPORTED HOUSING PROGRAMME,09.Feb.17,1513.68,THE BRANDON TRUST,Invoice
ASC,SOCIAL SERVICES,Revenue,VOL ASS,SUPPORTED HOUSING PROGRAMME,09.Feb.17,2856.96,THE BRANDON TRUST,Invoice
ASC,SOCIAL SERVICES,Revenue,VOL ASS,SUPPORTED HOUSING PROGRAMME,09.Feb.17,2260.80,THE BRANDON TRUST,Invoice
ASC,SOCIAL SERVICES,Revenue,VOL ASS,SUPPORTED HOUSING PROGRAMME,09.Feb.17,3453.12,THE BRANDON TRUST,Invoice
ASC,SOCIAL SERVICES,Revenue,VOL ASS,SUPPORTED HOUSING PROGRAMME,09.Feb.17,2096.40,THE BRANDON TRUST,Invoice
ASC,SOCIAL SERVICES,Revenue,VOL ASS,SUPPORTED HOUSING PROGRAMME,09.Feb.17,1797.12,THE BRANDON TRUST,Invoice
ASC,SOCIAL SERVICES,Revenue,VOL ASS,SUPPORTED HOUSING PROGRAMME,09.Feb.17,2062.08,THE BRANDON TRUST,Invoice
ASC,SOCIAL SERVICES,Revenue,VOL ASS,SUPPORTED HOUSING PROGRAMME,09.Feb.17,3718.84,THE BRANDON TRUST,Invoice
ASC,SOCIAL SERVICES,Revenue,VOL ASS,SUPPORTED HOUSING PROGRAMME,09.Feb.17,2592.00,THE BRANDON TRUST,Invoice
ASC,SOCIAL SERVICES,Revenue,VOL ASS,SUPPORTED HOUSING PROGRAMME,09.Feb.17,6152.80,THE BRANDON TRUST,Invoice
ASC,SOCIAL SERVICES,Revenue,VOL ASS,SUPPORTED HOUSING PROGRAMME,09.Feb.17,2923.88,THE BRANDON TRUST,Invoice
ASC,SOCIAL SERVICES,Revenue,VOL ASS,SUPPORTED HOUSING PROGRAMME,09.Feb.17,4688.56,THE BRANDON TRUST,Invoice
ASC,SOCIAL SERVICES,Revenue,VOL ASS,SUPPORTED HOUSING PROGRAMME,09.Feb.17,3320.64,THE BRANDON TRUST,Invoice
ASC,SOCIAL SERVICES,Revenue,VOL ASS,SUPPORTED HOUSING PROGRAMME,09.Feb.17,3702.20,THE BRANDON TRUST,Invoice
ASC,SOCIAL SERVICES,Revenue,VOL ASS,SUPPORTED HOUSING PROGRAMME,09.Feb.17,2790.72,THE BRANDON TRUST,Invoice
ASC,SOCIAL SERVICES,Revenue,VOL ASS,SUPPORTED HOUSING PROGRAMME,09.Feb.17,3472.96,THE BRANDON TRUST,Invoice
ASC,SOCIAL SERVICES,Revenue,VOL ASS,SUPPORTED HOUSING PROGRAMME,09.Feb.17,5064.12,THE BRANDON TRUST,Invoice
ASC,SOCIAL SERVICES,Revenue,VOL ASS,SUPPORTED HOUSING PROGRAMME,09.Feb.17,5688.08,THE BRANDON TRUST,Invoice
ASC,SOCIAL SERVICES,Revenue,VOL ASS,SUPPORTED HOUSING PROGRAMME,09.Feb.17,5983.44,THE BRANDON TRUST,Invoice
ASC,SOCIAL SERVICES,Revenue,VOL ASS,SUPPORTED HOUSING PROGRAMME,09.Feb.17,4827.60,THE BRANDON TRUST,Invoice
ASC,SOCIAL SERVICES,Revenue,VOL ASS,SUPPORTED HOUSING PROGRAMME,09.Feb.17,6146.20,THE BRANDON TRUST,Invoice
ASC,SOCIAL SERVICES,Revenue,VOL ASS,SUPPORTED HOUSING PROGRAMME,09.Feb.17,3324.96,THE BRANDON TRUST,Invoice
ASC,SOCIAL SERVICES,Revenue,VOL ASS,SUPPORTED HOUSING PROGRAMME,09.Feb.17,2886.04,THE BRANDON TRUST,Invoice
ASC,SOCIAL SERVICES,Revenue,VOL ASS,SUPPORTED HOUSING PROGRAMME,09.Feb.17,2856.96,THE BRANDON TRUST,Invoice
ASC,SOCIAL SERVICES,Revenue,VOL ASS,SUPPORTED HOUSING PROGRAMME,09.Feb.17,2128.32,THE BRANDON TRUST,Invoice
ASC,SOCIAL SERVICES,Revenue,VOL ASS,SUPPORTED HOUSING PROGRAMME,09.Feb.17,6233.52,THE BRANDON TRUST,Invoice
ASC,SOCIAL SERVICES,Revenue,VOL ASS,SUPPORTED HOUSING PROGRAMME,09.Feb.17,1465.92,THE BRANDON TRUST,Invoice
ASC,SOCIAL SERVICES,Revenue,VOL ASS,SUPPORTED HOUSING PROGRAMME,09.Feb.17,1482.48,THE BRANDON TRUST,Invoice
ASC,SOCIAL SERVICES,Revenue,VOL ASS,SUPPORTED HOUSING PROGRAMME,09.Feb.17,2592.60,THE BRANDON TRUST,Invoice
ASC,SOCIAL SERVICES,Revenue,VOL ASS,SUPPORTED HOUSING PROGRAMME,09.Feb.17,3564.56,THE BRANDON TRUST,Invoice
ASC,SOCIAL SERVICES,Revenue,VOL ASS,SUPPORTED HOUSING PROGRAMME,09.Feb.17,3416.80,THE BRANDON TRUST,Invoice
ASC,SOCIAL SERVICES,Revenue,VOL ASS,SUPPORTED HOUSING PROGRAMME,09.Feb.17,2848.72,THE BRANDON TRUST,Invoice
ASC,SOCIAL SERVICES,Revenue,VOL ASS,SUPPORTED HOUSING PROGRAMME,09.Feb.17,2327.24,THE BRANDON TRUST,Invoice
ASC,SOCIAL SERVICES,Revenue,VOL ASS,SUPPORTED HOUSING PROGRAMME,09.Feb.17,2327.24,THE BRANDON TRUST,Invoice
ASC,SOCIAL SERVICES,Revenue,VOL ASS,SUPPORTED HOUSING PROGRAMME,09.Feb.17,2065.12,THE BRANDON TRUST,Invoice
ASC,SOCIAL SERVICES,Revenue,VOL ASS,SUPPORTED HOUSING PROGRAMME,09.Feb.17,1626.12,THE BRANDON TRUST,Invoice
ASC,SOCIAL SERVICES,Revenue,VOL ASS,SUPPORTED HOUSING PROGRAMME,09.Feb.17,2856.96,THE BRANDON TRUST,Invoice
ASC,SOCIAL SERVICES,Revenue,VOL ASS,SUPPORTED HOUSING PROGRAMME,09.Feb.17,1034.48,THE BRANDON TRUST,Invoice
ASC,SOCIAL SERVICES,Revenue,VOL ASS,SUPPORTED HOUSING PROGRAMME,09.Feb.17,1625.36,THE BRANDON TRUST,Invoice
ASC,SOCIAL SERVICES,Revenue,VOL ASS,SUPPORTED HOUSING PROGRAMME,09.Feb.17,1674.84,THE BRANDON TRUST,Invoice
ASC,SOCIAL SERVICES,Revenue,VOL ASS,SUPPORTED HOUSING PROGRAMME,09.Feb.17,5630.08,THE BRANDON TRUST,Invoice
ASC,SOCIAL SERVICES,Revenue,VOL ASS,SUPPORTED HOUSING PROGRAMME,09.Feb.17,2459.52,THE BRANDON TRUST,Invoice
ASC,SOCIAL SERVICES,Revenue,VOL ASS,SUPPORTED HOUSING PROGRAMME,09.Feb.17,3883.68,THE BRANDON TRUST,Invoice
ASC,SOCIAL SERVICES,Revenue,VOL ASS,SUPPORTED HOUSING PROGRAMME,09.Feb.17,2618.48,THE BRANDON TRUST,Invoice
ASC,SOCIAL SERVICES,Revenue,VOL ASS,SUPPORTED HOUSING PROGRAMME,09.Feb.17,1465.92,THE BRANDON TRUST,Invoice
ASC,SOCIAL SERVICES,Revenue,VOL ASS,SUPPORTED HOUSING PROGRAMME,09.Feb.17,2606.80,THE BRANDON TRUST,Invoice
ASC,SOCIAL SERVICES,Revenue,VOL ASS,SUPPORTED HOUSING PROGRAMME,09.Feb.17,2631.48,THE BRANDON TRUST,Invoice
ASC,SOCIAL SERVICES,Revenue,VOL ASS,SUPPORTED HOUSING PROGRAMME,09.Feb.17,4177.52,THE BRANDON TRUST,Invoice
ASC,SOCIAL SERVICES,Revenue,VOL ASS,SUPPORTED HOUSING PROGRAMME,09.Feb.17,1020.12,THE BRANDON TRUST,Invoice
ASC,SOCIAL SERVICES,Revenue,VOL ASS,SUPPORTED HOUSING PROGRAMME,09.Feb.17,2812.76,THE BRANDON TRUST,Invoice
ASC,SOCIAL SERVICES,Revenue,VOL ASS,SUPPORTED HOUSING PROGRAMME,09.Feb.17,2112.52,THE BRANDON TRUST,Invoice
ASC,SOCIAL SERVICES,Revenue,VOL ASS,SUPPORTED HOUSING PROGRAMME,09.Feb.17,2112.52,THE BRANDON TRUST,Invoice
ASC,SOCIAL SERVICES,Revenue,VOL ASS,SUPPORTED HOUSING PROGRAMME,24.Feb.17,2980.60,THE BRANDON TRUST,Invoice
ASC,SOCIAL SERVICES,Revenue,VOL ASS,SUPPORTED HOUSING PROGRAMME,24.Feb.17,2980.60,THE BRANDON TRUST,Invoice
ASC,SOCIAL SERVICES,Revenue,VOL ASS,SUPPORTED HOUSING PROGRAMME,24.Feb.17,2980.60,THE BRANDON TRUST,Invoice
ASC,SOCIAL SERVICES,Revenue,VOL ASS,SUPPORTED HOUSING PROGRAMME,24.Feb.17,2980.60,THE BRANDON TRUST,Invoice
ASC,SOCIAL SERVICES,Revenue,VOL ASS,SUPPORTED HOUSING PROGRAMME,24.Feb.17,2980.60,THE BRANDON TRUST,Invoice
ASC,SOCIAL SERVICES,Revenue,VOL ASS,SUPPORTED HOUSING PROGRAMME,27.Feb.17,1766.08,THE BRANDON TRUST,Invoice
ASC,SOCIAL SERVICES,Revenue,VOL ASS,SUPPORTED HOUSING PROGRAMME,27.Feb.17,4273.64,THE BRANDON TRUST,Invoice
ASC,SOCIAL SERVICES,Revenue,VOL ASS,SUPPORTED HOUSING PROGRAMME,27.Feb.17,1766.08,THE BRANDON TRUST,Invoice
ASC,SOCIAL SERVICES,Revenue,VOL ASS,SUPPORTED HOUSING PROGRAMME,28.Feb.17,15736.24,THE HOME FARM TRUST LTD,Invoice
ASC,SOCIAL SERVICES,Revenue,DIRECT,DIRECT PAYMENTS,20.Feb.17,2218.20,EPAYROLLUK LTD,Invoice
ASC,SOCIAL SERVICES,Revenue,DIRECT,DIRECT PAYMENTS,20.Feb.17,2257.48,HESTIA HOUSING & SUPPORT,Invoice
ASC,SOCIAL SERVICES,Revenue,DIRECT,DIRECT PAYMENTS,20.Feb.17,1027.48,HESTIA HOUSING & SUPPORT,Invoice
ASC,SOCIAL SERVICES,Revenue,DIRECT,DIRECT PAYMENTS,20.Feb.17,643.88,HESTIA HOUSING & SUPPORT,Invoice
ASC,SOCIAL SERVICES,Revenue,DIRECT,DIRECT PAYMENTS,17.Feb.17,1839.32,VIBRANCE,Invoice
ASC,SOCIAL SERVICES,Revenue,DIRECT,DIRECT PAYMENTS,17.Feb.17,4738.97,VIBRANCE,Invoice
ASC,SOCIAL SERVICES,Revenue,DIRECT,DIRECT PAYMENTS,17.Feb.17,4398.06,VIBRANCE,Invoice
ASC,SOCIAL SERVICES,Revenue,DIRECT,DIRECT PAYMENTS,17.Feb.17,660.62,VIBRANCE,Invoice
ASC,SOCIAL SERVICES,Revenue,DIRECT,DIRECT PAYMENTS,17.Feb.17,4481.58,VIBRANCE,Invoice
ASC,SOCIAL SERVICES,Revenue,DIRECT,DIRECT PAYMENTS,20.Feb.17,829.12,VIBRANCE,Invoice
ASC,SOCIAL SERVICES,Revenue,DIRECT,DIRECT PAYMENTS,20.Feb.17,751.24,VIBRANCE,Invoice
ASC,SOCIAL SERVICES,Revenue,DIRECT,DIRECT PAYMENTS,20.Feb.17,2703.44,VIBRANCE,Invoice
ASC,SOCIAL SERVICES,Revenue,DIRECT,DIRECT PAYMENTS,20.Feb.17,769.76,VIBRANCE,Invoice
ASC,SOCIAL SERVICES,Revenue,DIRECT,DIRECT PAYMENTS,20.Feb.17,783.68,VIBRANCE,Invoice
ASC,SOCIAL SERVICES,Revenue,DIRECT,DIRECT PAYMENTS,20.Feb.17,606.56,VIBRANCE,Invoice
ASC,SOCIAL SERVICES,Revenue,DIRECT,DIRECT PAYMENTS,20.Feb.17,608.72,VIBRANCE,Invoice
ASC,SOCIAL SERVICES,Revenue,DIRECT,DIRECT PAYMENTS,20.Feb.17,3695.84,VIBRANCE,Invoice
ASC,SOCIAL SERVICES,Revenue,DIRECT,DIRECT PAYMENTS,20.Feb.17,714.00,VIBRANCE,Invoice
ASC,SOCIAL SERVICES,Revenue,DIRECT,DIRECT PAYMENTS,20.Feb.17,710.16,VIBRANCE,Invoice
ASC,SOCIAL SERVICES,Revenue,DIRECT,DIRECT PAYMENTS,20.Feb.17,1856.16,VIBRANCE,Invoice
ASC,SOCIAL SERVICES,Revenue,DIRECT,DIRECT PAYMENTS,20.Feb.17,930.56,VIBRANCE,Invoice
ASC,SOCIAL SERVICES,Revenue,DIRECT,DIRECT PAYMENTS,20.Feb.17,722.52,VIBRANCE,Invoice
ASC,SOCIAL SERVICES,Revenue,DIRECT,DIRECT PAYMENTS,20.Feb.17,895.36,VIBRANCE,Invoice
ASC,SOCIAL SERVICES,Revenue,DIRECT,DIRECT PAYMENTS,20.Feb.17,722.52,VIBRANCE,Invoice
ASC,SOCIAL SERVICES,Revenue,DIRECT,DIRECT PAYMENTS,20.Feb.17,626.88,VIBRANCE,Invoice
ASC,SOCIAL SERVICES,Revenue,DIRECT,DIRECT PAYMENTS,20.Feb.17,595.52,VIBRANCE,Invoice
ASC,SOCIAL SERVICES,Revenue,DIRECT,DIRECT PAYMENTS,20.Feb.17,1858.04,VIBRANCE,Invoice
ASC,SOCIAL SERVICES,Revenue,DIRECT,DIRECT PAYMENTS,20.Feb.17,1232.44,VIBRANCE,Invoice
ASC,SOCIAL SERVICES,Revenue,CUSTOMER & CLIENT RECPTS - EXT,CL CONT EXT RESIDEN S28A 100%,02.Feb.17,-505.20,ELEANOR NURSING & SOCIAL CARE,Invoice
ASC,SOCIAL SERVICES,Revenue,CUSTOMER & CLIENT RECPTS - EXT,CL CONT EXT RESIDEN S28A 100%,02.Feb.17,-505.20,ELEANOR NURSING & SOCIAL CARE,Invoice
ASC,SOCIAL SERVICES,Revenue,CUSTOMER & CLIENT RECPTS - EXT,CL CONT EXT RESIDEN S28A 100%,02.Feb.17,-546.04,VOYAGE CARE LTD,Invoice
ASC,SOCIAL SERVICES,Revenue,CUSTOMER & CLIENT RECPTS - EXT,CL CONT EXT RESIDEN S28A 100%,02.Feb.17,-443.52,VOYAGE CARE LTD,Invoice
ASC,SOCIAL SERVICES,Revenue,CUSTOMER & CLIENT RECPTS - EXT,CL CONT EXTERNAL RESIDENT S28A,09.Feb.17,-522.80,ASHTON CARE,Invoice
ASC,SOCIAL SERVICES,Revenue,CUSTOMER & CLIENT RECPTS - EXT,CL CONT EXTERNAL RESIDENT S28A,02.Feb.17,-321.80,METROPOLITAN HOUSING TRUST,Invoice
ASC,SOCIAL SERVICES,Revenue,CUSTOMER & CLIENT RECPTS - EXT,CL CONT EXTERNAL RESIDENT S28A,24.Feb.17,-321.80,METROPOLITAN HOUSING TRUST,Invoice
ASC,SOCIAL SERVICES,Revenue,CUSTOMER & CLIENT RECPTS - EXT,CL CONT EXTERNAL RESIDENT S28A,24.Feb.17,-321.80,PARKGATE MANOR,Invoice
ASC,SOCIAL SERVICES,Revenue,CUSTOMER & CLIENT RECPTS - EXT,CL CONT EXTERNAL RESIDENT S28A,24.Feb.17,-522.80,ST MARYS RESIDENTIAL HOME,Invoice
ASC,SOCIAL SERVICES,Revenue,CUSTOMER & CLIENT RECPTS - EXT,CL CONT EXTERNAL RESIDENTIAL,24.Feb.17,-443.52,ACH OF LONDON LLP,Invoice
ASC,SOCIAL SERVICES,Revenue,CUSTOMER & CLIENT RECPTS - EXT,CL CONT EXTERNAL RESIDENTIAL,24.Feb.17,-429.21,ACH OF LONDON LLP,Invoice
ASC,SOCIAL SERVICES,Revenue,CUSTOMER & CLIENT RECPTS - EXT,CL CONT EXTERNAL RESIDENTIAL,24.Feb.17,-443.52,ACH OF LONDON LLP,Invoice
ASC,SOCIAL SERVICES,Revenue,CUSTOMER & CLIENT RECPTS - EXT,CL CONT EXTERNAL RESIDENTIAL,24.Feb.17,-443.52,ACH OF LONDON LLP,Invoice
ASC,SOCIAL SERVICES,Revenue,CUSTOMER & CLIENT RECPTS - EXT,CL CONT EXTERNAL RESIDENTIAL,24.Feb.17,-320.16,AIMS CARE PARTNERSHIP,Invoice
ASC,SOCIAL SERVICES,Revenue,CUSTOMER & CLIENT RECPTS - EXT,CL CONT EXTERNAL RESIDENTIAL,24.Feb.17,-321.80,ASHCROFT CARE SERVICES,Invoice
ASC,SOCIAL SERVICES,Revenue,CUSTOMER & CLIENT RECPTS - EXT,CL CONT EXTERNAL RESIDENTIAL,24.Feb.17,-321.80,BEECH LODGE,Invoice
ASC,SOCIAL SERVICES,Revenue,CUSTOMER & CLIENT RECPTS - EXT,CL CONT EXTERNAL RESIDENTIAL,24.Feb.17,-321.80,BEECH LODGE,Invoice
ASC,SOCIAL SERVICES,Revenue,CUSTOMER & CLIENT RECPTS - EXT,CL CONT EXTERNAL RESIDENTIAL,24.Feb.17,-321.80,BEECH LODGE,Invoice
ASC,SOCIAL SERVICES,Revenue,CUSTOMER & CLIENT RECPTS - EXT,CL CONT EXTERNAL RESIDENTIAL,09.Feb.17,91.60,BROOKDALE CARE,Invoice
ASC,SOCIAL SERVICES,Revenue,CUSTOMER & CLIENT RECPTS - EXT,CL CONT EXTERNAL RESIDENTIAL,09.Feb.17,-130.85,BROOKDALE CARE,Invoice
ASC,SOCIAL SERVICES,Revenue,CUSTOMER & CLIENT RECPTS - EXT,CL CONT EXTERNAL RESIDENTIAL,09.Feb.17,-366.40,BROOKDALE CARE,Invoice
ASC,SOCIAL SERVICES,Revenue,CUSTOMER & CLIENT RECPTS - EXT,CL CONT EXTERNAL RESIDENTIAL,16.Feb.17,-321.80,C.H.O.I.C.E LIMITED,Invoice
ASC,SOCIAL SERVICES,Revenue,CUSTOMER & CLIENT RECPTS - EXT,CL CONT EXTERNAL RESIDENTIAL,09.Feb.17,-620.80,CAMERON LODGE LIMITED,Invoice
ASC,SOCIAL SERVICES,Revenue,CUSTOMER & CLIENT RECPTS - EXT,CL CONT EXTERNAL RESIDENTIAL,24.Feb.17,-321.80,CENTRUST CARE HOMES LTD,Invoice
ASC,SOCIAL SERVICES,Revenue,CUSTOMER & CLIENT RECPTS - EXT,CL CONT EXTERNAL RESIDENTIAL,24.Feb.17,-321.80,CHERRY LODGE,Invoice
ASC,SOCIAL SERVICES,Revenue,CUSTOMER & CLIENT RECPTS - EXT,CL CONT EXTERNAL RESIDENTIAL,13.Feb.17,-400.60,CMG HOMES LTD,Invoice
ASC,SOCIAL SERVICES,Revenue,CUSTOMER & CLIENT RECPTS - EXT,CL CONT EXTERNAL RESIDENTIAL,13.Feb.17,-523.00,CMG HOMES LTD,Invoice
ASC,SOCIAL SERVICES,Revenue,CUSTOMER & CLIENT RECPTS - EXT,CL CONT EXTERNAL RESIDENTIAL,13.Feb.17,-400.60,CMG HOMES LTD,Invoice
ASC,SOCIAL SERVICES,Revenue,CUSTOMER & CLIENT RECPTS - EXT,CL CONT EXTERNAL RESIDENTIAL,13.Feb.17,-400.60,CMG HOMES LTD,Invoice
ASC,SOCIAL SERVICES,Revenue,CUSTOMER & CLIENT RECPTS - EXT,CL CONT EXTERNAL RESIDENTIAL,13.Feb.17,-400.60,CMG HOMES LTD,Invoice
ASC,SOCIAL SERVICES,Revenue,CUSTOMER & CLIENT RECPTS - EXT,CL CONT EXTERNAL RESIDENTIAL,13.Feb.17,-321.80,CMG HOMES LTD,Invoice
ASC,SOCIAL SERVICES,Revenue,CUSTOMER & CLIENT RECPTS - EXT,CL CONT EXTERNAL RESIDENTIAL,13.Feb.17,-522.80,CMG HOMES LTD,Invoice
ASC,SOCIAL SERVICES,Revenue,CUSTOMER & CLIENT RECPTS - EXT,CL CONT EXTERNAL RESIDENTIAL,13.Feb.17,-359.80,CMG HOMES LTD,Invoice
ASC,SOCIAL SERVICES,Revenue,CUSTOMER & CLIENT RECPTS - EXT,CL CONT EXTERNAL RESIDENTIAL,23.Feb.17,-393.60,CRAEGMOOR OLD RECTORY BREDE PRIORY,Invoice
ASC,SOCIAL SERVICES,Revenue,CUSTOMER & CLIENT RECPTS - EXT,CL CONT EXTERNAL RESIDENTIAL,23.Feb.17,-132.00,"CRAEGMOOR, PARKCARE HOMES (NO2) LTD TA W",Invoice
ASC,SOCIAL SERVICES,Revenue,CUSTOMER & CLIENT RECPTS - EXT,CL CONT EXTERNAL RESIDENTIAL,24.Feb.17,-321.80,DOLPHIN HOMES LTD,Invoice
ASC,SOCIAL SERVICES,Revenue,CUSTOMER & CLIENT RECPTS - EXT,CL CONT EXTERNAL RESIDENTIAL,24.Feb.17,-321.80,DOLPHIN HOMES LTD,Invoice
ASC,SOCIAL SERVICES,Revenue,CUSTOMER & CLIENT RECPTS - EXT,CL CONT EXTERNAL RESIDENTIAL,14.Feb.17,-356.28,DOWNING (CHERTSEY ROAD) LTD,Invoice
ASC,SOCIAL SERVICES,Revenue,CUSTOMER & CLIENT RECPTS - EXT,CL CONT EXTERNAL RESIDENTIAL,24.Feb.17,-321.80,DOWNING (CHERTSEY ROAD) LTD,Invoice
ASC,SOCIAL SERVICES,Revenue,CUSTOMER & CLIENT RECPTS - EXT,CL CONT EXTERNAL RESIDENTIAL,24.Feb.17,-522.80,EAST VIEW HOUSING MANAGEMENT LTD,Invoice
ASC,SOCIAL SERVICES,Revenue,CUSTOMER & CLIENT RECPTS - EXT,CL CONT EXTERNAL RESIDENTIAL,14.Feb.17,-400.60,ENHAM,Invoice
ASC,SOCIAL SERVICES,Revenue,CUSTOMER & CLIENT RECPTS - EXT,CL CONT EXTERNAL RESIDENTIAL,23.Feb.17,-443.52,ESSEX CARE CONSORTIUM,Invoice
ASC,SOCIAL SERVICES,Revenue,CUSTOMER & CLIENT RECPTS - EXT,CL CONT EXTERNAL RESIDENTIAL,14.Feb.17,-321.80,EVERGREEN PARTNERSHIP,Invoice
ASC,SOCIAL SERVICES,Revenue,CUSTOMER & CLIENT RECPTS - EXT,CL CONT EXTERNAL RESIDENTIAL,24.Feb.17,-332.84,FIRCROFT,Invoice
ASC,SOCIAL SERVICES,Revenue,CUSTOMER & CLIENT RECPTS - EXT,CL CONT EXTERNAL RESIDENTIAL,08.Feb.17,-132.00,FLORENCE AVENUE CARE HOME,Invoice
ASC,SOCIAL SERVICES,Revenue,CUSTOMER & CLIENT RECPTS - EXT,CL CONT EXTERNAL RESIDENTIAL,08.Feb.17,-132.00,FLORENCE AVENUE CARE HOME,Invoice
ASC,SOCIAL SERVICES,Revenue,CUSTOMER & CLIENT RECPTS - EXT,CL CONT EXTERNAL RESIDENTIAL,28.Feb.17,-132.00,FLORENCE AVENUE CARE HOME,Invoice
ASC,SOCIAL SERVICES,Revenue,CUSTOMER & CLIENT RECPTS - EXT,CL CONT EXTERNAL RESIDENTIAL,24.Feb.17,-337.60,FRANCES TAYLOR FOUNDATION,Invoice
ASC,SOCIAL SERVICES,Revenue,CUSTOMER & CLIENT RECPTS - EXT,CL CONT EXTERNAL RESIDENTIAL,24.Feb.17,-321.80,FRANCES TAYLOR FOUNDATION,Invoice
ASC,SOCIAL SERVICES,Revenue,CUSTOMER & CLIENT RECPTS - EXT,CL CONT EXTERNAL RESIDENTIAL,24.Feb.17,-400.60,FRANCES TAYLOR FOUNDATION,Invoice
ASC,SOCIAL SERVICES,Revenue,CUSTOMER & CLIENT RECPTS - EXT,CL CONT EXTERNAL RESIDENTIAL,03.Feb.17,-400.60,HEATHCOTES(SOUTHERN)LTD,Invoice
ASC,SOCIAL SERVICES,Revenue,CUSTOMER & CLIENT RECPTS - EXT,CL CONT EXTERNAL RESIDENTIAL,03.Feb.17,-366.40,HEATHCOTES(SOUTHERN)LTD,Invoice
ASC,SOCIAL SERVICES,Revenue,CUSTOMER & CLIENT RECPTS - EXT,CL CONT EXTERNAL RESIDENTIAL,23.Feb.17,-361.05,HEATHCOTES(SOUTHERN)LTD,Invoice
ASC,SOCIAL SERVICES,Revenue,CUSTOMER & CLIENT RECPTS - EXT,CL CONT EXTERNAL RESIDENTIAL,24.Feb.17,-522.80,HEYWOODS GRANGE LTD,Invoice
ASC,SOCIAL SERVICES,Revenue,CUSTOMER & CLIENT RECPTS - EXT,CL CONT EXTERNAL RESIDENTIAL,24.Feb.17,-321.80,HOME FROM HOME CARE LIMITED,Invoice
ASC,SOCIAL SERVICES,Revenue,CUSTOMER & CLIENT RECPTS - EXT,CL CONT EXTERNAL RESIDENTIAL,02.Feb.17,-356.28,ILG LTD,Invoice
ASC,SOCIAL SERVICES,Revenue,CUSTOMER & CLIENT RECPTS - EXT,CL CONT EXTERNAL RESIDENTIAL,24.Feb.17,-321.80,IN CHORUS LTD,Invoice
ASC,SOCIAL SERVICES,Revenue,CUSTOMER & CLIENT RECPTS - EXT,CL CONT EXTERNAL RESIDENTIAL,21.Feb.17,-321.80,KENILWORTH RESIDENTIAL HOME,Invoice
ASC,SOCIAL SERVICES,Revenue,CUSTOMER & CLIENT RECPTS - EXT,CL CONT EXTERNAL RESIDENTIAL,21.Feb.17,-456.91,KENILWORTH RESIDENTIAL HOME,Invoice
ASC,SOCIAL SERVICES,Revenue,CUSTOMER & CLIENT RECPTS - EXT,CL CONT EXTERNAL RESIDENTIAL,24.Feb.17,-321.80,LAETUS LODGE,Invoice
ASC,SOCIAL SERVICES,Revenue,CUSTOMER & CLIENT RECPTS - EXT,CL CONT EXTERNAL RESIDENTIAL,24.Feb.17,-192.80,LAETUS LODGE,Invoice
ASC,SOCIAL SERVICES,Revenue,CUSTOMER & CLIENT RECPTS - EXT,CL CONT EXTERNAL RESIDENTIAL,24.Feb.17,-366.40,LAETUS LODGE,Invoice
ASC,SOCIAL SERVICES,Revenue,CUSTOMER & CLIENT RECPTS - EXT,CL CONT EXTERNAL RESIDENTIAL,24.Feb.17,-321.80,LAETUS LODGE,Invoice
ASC,SOCIAL SERVICES,Revenue,CUSTOMER & CLIENT RECPTS - EXT,CL CONT EXTERNAL RESIDENTIAL,24.Feb.17,-321.80,LAETUS LODGE,Invoice
ASC,SOCIAL SERVICES,Revenue,CUSTOMER & CLIENT RECPTS - EXT,CL CONT EXTERNAL RESIDENTIAL,16.Feb.17,-360.80,LARKFIELD HALL LTD T/A PEPENBURY,Invoice
ASC,SOCIAL SERVICES,Revenue,CUSTOMER & CLIENT RECPTS - EXT,CL CONT EXTERNAL RESIDENTIAL,02.Feb.17,-356.28,LEONARD CHESHIRE,Invoice
ASC,SOCIAL SERVICES,Revenue,CUSTOMER & CLIENT RECPTS - EXT,CL CONT EXTERNAL RESIDENTIAL,02.Feb.17,-321.80,LIVABILITY,Invoice
ASC,SOCIAL SERVICES,Revenue,CUSTOMER & CLIENT RECPTS - EXT,CL CONT EXTERNAL RESIDENTIAL,24.Feb.17,-431.83,LONDON CARE PARTNERSHIP LTD,Invoice
ASC,SOCIAL SERVICES,Revenue,CUSTOMER & CLIENT RECPTS - EXT,CL CONT EXTERNAL RESIDENTIAL,24.Feb.17,-472.14,LONDON CARE PARTNERSHIP LTD,Invoice
ASC,SOCIAL SERVICES,Revenue,CUSTOMER & CLIENT RECPTS - EXT,CL CONT EXTERNAL RESIDENTIAL,24.Feb.17,-379.26,LONDON CARE PARTNERSHIP LTD,Invoice
ASC,SOCIAL SERVICES,Revenue,CUSTOMER & CLIENT RECPTS - EXT,CL CONT EXTERNAL RESIDENTIAL,24.Feb.17,-472.14,LONDON CARE PARTNERSHIP LTD,Invoice
ASC,SOCIAL SERVICES,Revenue,CUSTOMER & CLIENT RECPTS - EXT,CL CONT EXTERNAL RESIDENTIAL,24.Feb.17,-227.23,LONDON CARE PARTNERSHIP LTD,Invoice
ASC,SOCIAL SERVICES,Revenue,CUSTOMER & CLIENT RECPTS - EXT,CL CONT EXTERNAL RESIDENTIAL,24.Feb.17,-431.83,LONDON CARE PARTNERSHIP LTD,Invoice
ASC,SOCIAL SERVICES,Revenue,CUSTOMER & CLIENT RECPTS - EXT,CL CONT EXTERNAL RESIDENTIAL,24.Feb.17,-577.48,LOVING CARE LTD,Invoice
ASC,SOCIAL SERVICES,Revenue,CUSTOMER & CLIENT RECPTS - EXT,CL CONT EXTERNAL RESIDENTIAL,24.Feb.17,-321.80,LOVING CARE LTD,Invoice
ASC,SOCIAL SERVICES,Revenue,CUSTOMER & CLIENT RECPTS - EXT,CL CONT EXTERNAL RESIDENTIAL,24.Feb.17,-400.60,LOVING CARE LTD,Invoice
ASC,SOCIAL SERVICES,Revenue,CUSTOMER & CLIENT RECPTS - EXT,CL CONT EXTERNAL RESIDENTIAL,24.Feb.17,-400.60,LOVING CARE LTD,Invoice
ASC,SOCIAL SERVICES,Revenue,CUSTOMER & CLIENT RECPTS - EXT,CL CONT EXTERNAL RESIDENTIAL,24.Feb.17,-321.80,LOVING CARE LTD,Invoice
ASC,SOCIAL SERVICES,Revenue,CUSTOMER & CLIENT RECPTS - EXT,CL CONT EXTERNAL RESIDENTIAL,24.Feb.17,-321.80,LOVING CARE LTD,Invoice
ASC,SOCIAL SERVICES,Revenue,CUSTOMER & CLIENT RECPTS - EXT,CL CONT EXTERNAL RESIDENTIAL,24.Feb.17,-321.80,LOVING CARE LTD,Invoice
ASC,SOCIAL SERVICES,Revenue,CUSTOMER & CLIENT RECPTS - EXT,CL CONT EXTERNAL RESIDENTIAL,02.Feb.17,-321.80,MACINTYRE CARE,Invoice
ASC,SOCIAL SERVICES,Revenue,CUSTOMER & CLIENT RECPTS - EXT,CL CONT EXTERNAL RESIDENTIAL,23.Feb.17,-321.80,MACINTYRE CARE,Invoice
ASC,SOCIAL SERVICES,Revenue,CUSTOMER & CLIENT RECPTS - EXT,CL CONT EXTERNAL RESIDENTIAL,23.Feb.17,-321.80,MACINTYRE CARE,Invoice
ASC,SOCIAL SERVICES,Revenue,CUSTOMER & CLIENT RECPTS - EXT,CL CONT EXTERNAL RESIDENTIAL,23.Feb.17,-321.80,MACINTYRE CARE,Invoice
ASC,SOCIAL SERVICES,Revenue,CUSTOMER & CLIENT RECPTS - EXT,CL CONT EXTERNAL RESIDENTIAL,23.Feb.17,-366.40,MACINTYRE CARE,Invoice
ASC,SOCIAL SERVICES,Revenue,CUSTOMER & CLIENT RECPTS - EXT,CL CONT EXTERNAL RESIDENTIAL,23.Feb.17,-400.60,MACINTYRE CARE,Invoice
ASC,SOCIAL SERVICES,Revenue,CUSTOMER & CLIENT RECPTS - EXT,CL CONT EXTERNAL RESIDENTIAL,23.Feb.17,-400.60,MACINTYRE CARE,Invoice
ASC,SOCIAL SERVICES,Revenue,CUSTOMER & CLIENT RECPTS - EXT,CL CONT EXTERNAL RESIDENTIAL,23.Feb.17,-321.80,MACINTYRE CARE,Invoice
ASC,SOCIAL SERVICES,Revenue,CUSTOMER & CLIENT RECPTS - EXT,CL CONT EXTERNAL RESIDENTIAL,23.Feb.17,-400.60,MACINTYRE CARE,Invoice
ASC,SOCIAL SERVICES,Revenue,CUSTOMER & CLIENT RECPTS - EXT,CL CONT EXTERNAL RESIDENTIAL,23.Feb.17,-321.80,MACINTYRE CARE,Invoice
ASC,SOCIAL SERVICES,Revenue,CUSTOMER & CLIENT RECPTS - EXT,CL CONT EXTERNAL RESIDENTIAL,23.Feb.17,-522.80,MACINTYRE CARE,Invoice
ASC,SOCIAL SERVICES,Revenue,CUSTOMER & CLIENT RECPTS - EXT,CL CONT EXTERNAL RESIDENTIAL,23.Feb.17,-321.80,MACINTYRE CARE,Invoice
ASC,SOCIAL SERVICES,Revenue,CUSTOMER & CLIENT RECPTS - EXT,CL CONT EXTERNAL RESIDENTIAL,23.Feb.17,-522.80,MACINTYRE CARE,Invoice
ASC,SOCIAL SERVICES,Revenue,CUSTOMER & CLIENT RECPTS - EXT,CL CONT EXTERNAL RESIDENTIAL,23.Feb.17,-522.80,MACINTYRE CARE,Invoice
ASC,SOCIAL SERVICES,Revenue,CUSTOMER & CLIENT RECPTS - EXT,CL CONT EXTERNAL RESIDENTIAL,23.Feb.17,-522.80,MACINTYRE CARE,Invoice
ASC,SOCIAL SERVICES,Revenue,CUSTOMER & CLIENT RECPTS - EXT,CL CONT EXTERNAL RESIDENTIAL,23.Feb.17,-522.80,MACINTYRE CARE,Invoice
ASC,SOCIAL SERVICES,Revenue,CUSTOMER & CLIENT RECPTS - EXT,CL CONT EXTERNAL RESIDENTIAL,23.Feb.17,-321.80,MACINTYRE CARE,Invoice
ASC,SOCIAL SERVICES,Revenue,CUSTOMER & CLIENT RECPTS - EXT,CL CONT EXTERNAL RESIDENTIAL,23.Feb.17,-321.80,MACINTYRE CARE,Invoice
ASC,SOCIAL SERVICES,Revenue,CUSTOMER & CLIENT RECPTS - EXT,CL CONT EXTERNAL RESIDENTIAL,24.Feb.17,-522.80,MACINTYRE CARE,Invoice
ASC,SOCIAL SERVICES,Revenue,CUSTOMER & CLIENT RECPTS - EXT,CL CONT EXTERNAL RESIDENTIAL,24.Feb.17,-526.48,MACINTYRE CARE,Invoice
ASC,SOCIAL SERVICES,Revenue,CUSTOMER & CLIENT RECPTS - EXT,CL CONT EXTERNAL RESIDENTIAL,02.Feb.17,-321.80,METROPOLITAN HOUSING TRUST,Invoice
ASC,SOCIAL SERVICES,Revenue,CUSTOMER & CLIENT RECPTS - EXT,CL CONT EXTERNAL RESIDENTIAL,02.Feb.17,-321.80,METROPOLITAN HOUSING TRUST,Invoice
ASC,SOCIAL SERVICES,Revenue,CUSTOMER & CLIENT RECPTS - EXT,CL CONT EXTERNAL RESIDENTIAL,02.Feb.17,-522.80,METROPOLITAN HOUSING TRUST,Invoice
ASC,SOCIAL SERVICES,Revenue,CUSTOMER & CLIENT RECPTS - EXT,CL CONT EXTERNAL RESIDENTIAL,02.Feb.17,-321.80,METROPOLITAN HOUSING TRUST,Invoice
ASC,SOCIAL SERVICES,Revenue,CUSTOMER & CLIENT RECPTS - EXT,CL CONT EXTERNAL RESIDENTIAL,02.Feb.17,-400.60,METROPOLITAN HOUSING TRUST,Invoice
ASC,SOCIAL SERVICES,Revenue,CUSTOMER & CLIENT RECPTS - EXT,CL CONT EXTERNAL RESIDENTIAL,02.Feb.17,-528.20,METROPOLITAN HOUSING TRUST,Invoice
ASC,SOCIAL SERVICES,Revenue,CUSTOMER & CLIENT RECPTS - EXT,CL CONT EXTERNAL RESIDENTIAL,02.Feb.17,-400.60,METROPOLITAN HOUSING TRUST,Invoice
ASC,SOCIAL SERVICES,Revenue,CUSTOMER & CLIENT RECPTS - EXT,CL CONT EXTERNAL RESIDENTIAL,02.Feb.17,-321.80,METROPOLITAN HOUSING TRUST,Invoice
ASC,SOCIAL SERVICES,Revenue,CUSTOMER & CLIENT RECPTS - EXT,CL CONT EXTERNAL RESIDENTIAL,02.Feb.17,-321.80,METROPOLITAN HOUSING TRUST,Invoice
ASC,SOCIAL SERVICES,Revenue,CUSTOMER & CLIENT RECPTS - EXT,CL CONT EXTERNAL RESIDENTIAL,02.Feb.17,-321.80,METROPOLITAN HOUSING TRUST,Invoice
ASC,SOCIAL SERVICES,Revenue,CUSTOMER & CLIENT RECPTS - EXT,CL CONT EXTERNAL RESIDENTIAL,02.Feb.17,-522.80,METROPOLITAN HOUSING TRUST,Invoice
ASC,SOCIAL SERVICES,Revenue,CUSTOMER & CLIENT RECPTS - EXT,CL CONT EXTERNAL RESIDENTIAL,02.Feb.17,-321.80,METROPOLITAN HOUSING TRUST,Invoice
ASC,SOCIAL SERVICES,Revenue,CUSTOMER & CLIENT RECPTS - EXT,CL CONT EXTERNAL RESIDENTIAL,02.Feb.17,-321.80,METROPOLITAN HOUSING TRUST,Invoice
ASC,SOCIAL SERVICES,Revenue,CUSTOMER & CLIENT RECPTS - EXT,CL CONT EXTERNAL RESIDENTIAL,22.Feb.17,-80.45,METROPOLITAN HOUSING TRUST,Invoice
ASC,SOCIAL SERVICES,Revenue,CUSTOMER & CLIENT RECPTS - EXT,CL CONT EXTERNAL RESIDENTIAL,02.Feb.17,-114.93,METROPOLITAN HOUSING TRUST,Invoice
ASC,SOCIAL SERVICES,Revenue,CUSTOMER & CLIENT RECPTS - EXT,CL CONT EXTERNAL RESIDENTIAL,16.Feb.17,-386.29,METROPOLITAN HOUSING TRUST,Invoice
ASC,SOCIAL SERVICES,Revenue,CUSTOMER & CLIENT RECPTS - EXT,CL CONT EXTERNAL RESIDENTIAL,24.Feb.17,-321.80,METROPOLITAN HOUSING TRUST,Invoice
ASC,SOCIAL SERVICES,Revenue,CUSTOMER & CLIENT RECPTS - EXT,CL CONT EXTERNAL RESIDENTIAL,24.Feb.17,-400.60,METROPOLITAN HOUSING TRUST,Invoice
ASC,SOCIAL SERVICES,Revenue,CUSTOMER & CLIENT RECPTS - EXT,CL CONT EXTERNAL RESIDENTIAL,24.Feb.17,-321.80,METROPOLITAN HOUSING TRUST,Invoice
ASC,SOCIAL SERVICES,Revenue,CUSTOMER & CLIENT RECPTS - EXT,CL CONT EXTERNAL RESIDENTIAL,24.Feb.17,-400.60,METROPOLITAN HOUSING TRUST,Invoice
ASC,SOCIAL SERVICES,Revenue,CUSTOMER & CLIENT RECPTS - EXT,CL CONT EXTERNAL RESIDENTIAL,24.Feb.17,-528.20,METROPOLITAN HOUSING TRUST,Invoice
ASC,SOCIAL SERVICES,Revenue,CUSTOMER & CLIENT RECPTS - EXT,CL CONT EXTERNAL RESIDENTIAL,24.Feb.17,-400.60,METROPOLITAN HOUSING TRUST,Invoice
ASC,SOCIAL SERVICES,Revenue,CUSTOMER & CLIENT RECPTS - EXT,CL CONT EXTERNAL RESIDENTIAL,24.Feb.17,-522.80,METROPOLITAN HOUSING TRUST,Invoice
ASC,SOCIAL SERVICES,Revenue,CUSTOMER & CLIENT RECPTS - EXT,CL CONT EXTERNAL RESIDENTIAL,24.Feb.17,-321.80,METROPOLITAN HOUSING TRUST,Invoice
ASC,SOCIAL SERVICES,Revenue,CUSTOMER & CLIENT RECPTS - EXT,CL CONT EXTERNAL RESIDENTIAL,24.Feb.17,-321.80,METROPOLITAN HOUSING TRUST,Invoice
ASC,SOCIAL SERVICES,Revenue,CUSTOMER & CLIENT RECPTS - EXT,CL CONT EXTERNAL RESIDENTIAL,24.Feb.17,-321.80,METROPOLITAN HOUSING TRUST,Invoice
ASC,SOCIAL SERVICES,Revenue,CUSTOMER & CLIENT RECPTS - EXT,CL CONT EXTERNAL RESIDENTIAL,24.Feb.17,-522.80,METROPOLITAN HOUSING TRUST,Invoice
ASC,SOCIAL SERVICES,Revenue,CUSTOMER & CLIENT RECPTS - EXT,CL CONT EXTERNAL RESIDENTIAL,24.Feb.17,-321.80,METROPOLITAN HOUSING TRUST,Invoice
ASC,SOCIAL SERVICES,Revenue,CUSTOMER & CLIENT RECPTS - EXT,CL CONT EXTERNAL RESIDENTIAL,24.Feb.17,-321.80,METROPOLITAN HOUSING TRUST,Invoice
ASC,SOCIAL SERVICES,Revenue,CUSTOMER & CLIENT RECPTS - EXT,CL CONT EXTERNAL RESIDENTIAL,06.Feb.17,-443.52,MIGHOUSE RESIDENTIAL CARE HOME LTD,Invoice
ASC,SOCIAL SERVICES,Revenue,CUSTOMER & CLIENT RECPTS - EXT,CL CONT EXTERNAL RESIDENTIAL,10.Feb.17,-372.46,NAS SERVICES LIMITED,Invoice
ASC,SOCIAL SERVICES,Revenue,CUSTOMER & CLIENT RECPTS - EXT,CL CONT EXTERNAL RESIDENTIAL,14.Feb.17,-400.60,NAS SERVICES LIMITED,Invoice
ASC,SOCIAL SERVICES,Revenue,CUSTOMER & CLIENT RECPTS - EXT,CL CONT EXTERNAL RESIDENTIAL,24.Feb.17,-348.60,NATIONAL SOCIETY FOR EPILEPSY,Invoice
ASC,SOCIAL SERVICES,Revenue,CUSTOMER & CLIENT RECPTS - EXT,CL CONT EXTERNAL RESIDENTIAL,13.Feb.17,-321.80,NORWOOD SCHOOLS LTD,Invoice
ASC,SOCIAL SERVICES,Revenue,CUSTOMER & CLIENT RECPTS - EXT,CL CONT EXTERNAL RESIDENTIAL,13.Feb.17,-400.60,NORWOOD SCHOOLS LTD,Invoice
ASC,SOCIAL SERVICES,Revenue,CUSTOMER & CLIENT RECPTS - EXT,CL CONT EXTERNAL RESIDENTIAL,24.Feb.17,-353.80,NUTLEY HALL LTD,Invoice
ASC,SOCIAL SERVICES,Revenue,CUSTOMER & CLIENT RECPTS - EXT,CL CONT EXTERNAL RESIDENTIAL,24.Feb.17,-321.80,PATHWAY HEALTHCARE,Invoice
ASC,SOCIAL SERVICES,Revenue,CUSTOMER & CLIENT RECPTS - EXT,CL CONT EXTERNAL RESIDENTIAL,21.Feb.17,-321.80,POTENSIAL LTD,Invoice
ASC,SOCIAL SERVICES,Revenue,CUSTOMER & CLIENT RECPTS - EXT,CL CONT EXTERNAL RESIDENTIAL,24.Feb.17,-400.60,PROGRESS HOUSING MARLOW,Invoice
ASC,SOCIAL SERVICES,Revenue,CUSTOMER & CLIENT RECPTS - EXT,CL CONT EXTERNAL RESIDENTIAL,24.Feb.17,-321.80,PROSPECTS,Invoice
ASC,SOCIAL SERVICES,Revenue,CUSTOMER & CLIENT RECPTS - EXT,CL CONT EXTERNAL RESIDENTIAL,07.Feb.17,-1942.29,QUALITIES SERVICES LTD,Invoice
ASC,SOCIAL SERVICES,Revenue,CUSTOMER & CLIENT RECPTS - EXT,CL CONT EXTERNAL RESIDENTIAL,02.Feb.17,-560.14,RALEIGH HOUSE LTD,Invoice
ASC,SOCIAL SERVICES,Revenue,CUSTOMER & CLIENT RECPTS - EXT,CL CONT EXTERNAL RESIDENTIAL,24.Feb.17,-522.80,RALEIGH HOUSE LTD,Invoice
ASC,SOCIAL SERVICES,Revenue,CUSTOMER & CLIENT RECPTS - EXT,CL CONT EXTERNAL RESIDENTIAL,08.Feb.17,-321.80,RESIDENTIAL CARE SERVICES T/A FRANKLYN L,Invoice
ASC,SOCIAL SERVICES,Revenue,CUSTOMER & CLIENT RECPTS - EXT,CL CONT EXTERNAL RESIDENTIAL,24.Feb.17,-400.60,RESIDENTIAL COMMUNITY CARE,Invoice
ASC,SOCIAL SERVICES,Revenue,CUSTOMER & CLIENT RECPTS - EXT,CL CONT EXTERNAL RESIDENTIAL,02.Feb.17,-321.80,RIDGEWOOD CARE SERVICES LTD,Invoice
ASC,SOCIAL SERVICES,Revenue,CUSTOMER & CLIENT RECPTS - EXT,CL CONT EXTERNAL RESIDENTIAL,16.Feb.17,-321.80,RIDGEWOOD CARE SERVICES LTD,Invoice
ASC,SOCIAL SERVICES,Revenue,CUSTOMER & CLIENT RECPTS - EXT,CL CONT EXTERNAL RESIDENTIAL,16.Feb.17,-400.60,RIDGEWOOD CARE SERVICES LTD,Invoice
ASC,SOCIAL SERVICES,Revenue,CUSTOMER & CLIENT RECPTS - EXT,CL CONT EXTERNAL RESIDENTIAL,13.Feb.17,-321.80,ROYAL MENCAP SOCIETY,Invoice
ASC,SOCIAL SERVICES,Revenue,CUSTOMER & CLIENT RECPTS - EXT,CL CONT EXTERNAL RESIDENTIAL,13.Feb.17,-321.80,ROYAL MENCAP SOCIETY,Invoice
ASC,SOCIAL SERVICES,Revenue,CUSTOMER & CLIENT RECPTS - EXT,CL CONT EXTERNAL RESIDENTIAL,24.Feb.17,-321.80,SANCTUARY HOME CARE LTD,Invoice
ASC,SOCIAL SERVICES,Revenue,CUSTOMER & CLIENT RECPTS - EXT,CL CONT EXTERNAL RESIDENTIAL,24.Feb.17,-400.60,SCOPE,Invoice
ASC,SOCIAL SERVICES,Revenue,CUSTOMER & CLIENT RECPTS - EXT,CL CONT EXTERNAL RESIDENTIAL,24.Feb.17,-343.80,SCOPE,Invoice
ASC,SOCIAL SERVICES,Revenue,CUSTOMER & CLIENT RECPTS - EXT,CL CONT EXTERNAL RESIDENTIAL,27.Feb.17,-391.60,SEEABILITY,Invoice
ASC,SOCIAL SERVICES,Revenue,CUSTOMER & CLIENT RECPTS - EXT,CL CONT EXTERNAL RESIDENTIAL,27.Feb.17,-171.69,SEEABILITY,Invoice
ASC,SOCIAL SERVICES,Revenue,CUSTOMER & CLIENT RECPTS - EXT,CL CONT EXTERNAL RESIDENTIAL,24.Feb.17,-321.80,ST DAVIDS CARE IN THE COMMUNITY,Invoice
ASC,SOCIAL SERVICES,Revenue,CUSTOMER & CLIENT RECPTS - EXT,CL CONT EXTERNAL RESIDENTIAL,24.Feb.17,-321.80,ST DAVIDS CARE IN THE COMMUNITY,Invoice
ASC,SOCIAL SERVICES,Revenue,CUSTOMER & CLIENT RECPTS - EXT,CL CONT EXTERNAL RESIDENTIAL,24.Feb.17,-400.60,ST DAVIDS CARE IN THE COMMUNITY,Invoice
ASC,SOCIAL SERVICES,Revenue,CUSTOMER & CLIENT RECPTS - EXT,CL CONT EXTERNAL RESIDENTIAL,02.Feb.17,-713.72,ST MARYS RESIDENTIAL HOME,Invoice
ASC,SOCIAL SERVICES,Revenue,CUSTOMER & CLIENT RECPTS - EXT,CL CONT EXTERNAL RESIDENTIAL,02.Feb.17,-1011.51,ST MARYS RESIDENTIAL HOME,Invoice
ASC,SOCIAL SERVICES,Revenue,CUSTOMER & CLIENT RECPTS - EXT,CL CONT EXTERNAL RESIDENTIAL,02.Feb.17,-522.80,ST MARYS RESIDENTIAL HOME,Invoice
ASC,SOCIAL SERVICES,Revenue,CUSTOMER & CLIENT RECPTS - EXT,CL CONT EXTERNAL RESIDENTIAL,24.Feb.17,-248.68,ST MARYS RESIDENTIAL HOME,Invoice
ASC,SOCIAL SERVICES,Revenue,CUSTOMER & CLIENT RECPTS - EXT,CL CONT EXTERNAL RESIDENTIAL,24.Feb.17,-321.80,ST MARYS RESIDENTIAL HOME,Invoice
ASC,SOCIAL SERVICES,Revenue,CUSTOMER & CLIENT RECPTS - EXT,CL CONT EXTERNAL RESIDENTIAL,24.Feb.17,-522.80,ST MARYS RESIDENTIAL HOME,Invoice
ASC,SOCIAL SERVICES,Revenue,CUSTOMER & CLIENT RECPTS - EXT,CL CONT EXTERNAL RESIDENTIAL,24.Feb.17,-337.60,ST MARYS RESIDENTIAL HOME,Invoice
ASC,SOCIAL SERVICES,Revenue,CUSTOMER & CLIENT RECPTS - EXT,CL CONT EXTERNAL RESIDENTIAL,24.Feb.17,-321.80,ST MARYS RESIDENTIAL HOME,Invoice
ASC,SOCIAL SERVICES,Revenue,CUSTOMER & CLIENT RECPTS - EXT,CL CONT EXTERNAL RESIDENTIAL,24.Feb.17,-400.60,ST MARYS RESIDENTIAL HOME,Invoice
ASC,SOCIAL SERVICES,Revenue,CUSTOMER & CLIENT RECPTS - EXT,CL CONT EXTERNAL RESIDENTIAL,24.Feb.17,-522.80,ST MARYS RESIDENTIAL HOME,Invoice
ASC,SOCIAL SERVICES,Revenue,CUSTOMER & CLIENT RECPTS - EXT,CL CONT EXTERNAL RESIDENTIAL,07.Feb.17,-443.52,STALLCOMBE HOUSE,Invoice
ASC,SOCIAL SERVICES,Revenue,CUSTOMER & CLIENT RECPTS - EXT,CL CONT EXTERNAL RESIDENTIAL,07.Feb.17,-356.28,STALLCOMBE HOUSE,Invoice
ASC,SOCIAL SERVICES,Revenue,CUSTOMER & CLIENT RECPTS - EXT,CL CONT EXTERNAL RESIDENTIAL,07.Feb.17,-443.52,STALLCOMBE HOUSE,Invoice
ASC,SOCIAL SERVICES,Revenue,CUSTOMER & CLIENT RECPTS - EXT,CL CONT EXTERNAL RESIDENTIAL,13.Feb.17,-522.80,SURREY & BORDERS PARTNERSHIP NHS TRUST,Invoice
ASC,SOCIAL SERVICES,Revenue,CUSTOMER & CLIENT RECPTS - EXT,CL CONT EXTERNAL RESIDENTIAL,13.Feb.17,-321.80,SURREY & BORDERS PARTNERSHIP NHS TRUST,Invoice
ASC,SOCIAL SERVICES,Revenue,CUSTOMER & CLIENT RECPTS - EXT,CL CONT EXTERNAL RESIDENTIAL,02.Feb.17,-356.28,SUSSEX AUTISTIC COMMUNITY TRUST(CARE SER,Invoice
ASC,SOCIAL SERVICES,Revenue,CUSTOMER & CLIENT RECPTS - EXT,CL CONT EXTERNAL RESIDENTIAL,09.Feb.17,-321.80,THE BRANDON TRUST,Invoice
ASC,SOCIAL SERVICES,Revenue,CUSTOMER & CLIENT RECPTS - EXT,CL CONT EXTERNAL RESIDENTIAL,24.Feb.17,-393.60,THE COMMUNITY CARE COMPANY UK LTD,Invoice
ASC,SOCIAL SERVICES,Revenue,CUSTOMER & CLIENT RECPTS - EXT,CL CONT EXTERNAL RESIDENTIAL,24.Feb.17,-522.80,THE COMMUNITY CARE COMPANY UK LTD,Invoice
ASC,SOCIAL SERVICES,Revenue,CUSTOMER & CLIENT RECPTS - EXT,CL CONT EXTERNAL RESIDENTIAL,24.Feb.17,-400.60,THE COMMUNITY CARE COMPANY UK LTD,Invoice
ASC,SOCIAL SERVICES,Revenue,CUSTOMER & CLIENT RECPTS - EXT,CL CONT EXTERNAL RESIDENTIAL,24.Feb.17,-400.60,THE COMMUNITY CARE COMPANY UK LTD,Invoice
ASC,SOCIAL SERVICES,Revenue,CUSTOMER & CLIENT RECPTS - EXT,CL CONT EXTERNAL RESIDENTIAL,24.Feb.17,-337.60,THE COMMUNITY CARE COMPANY UK LTD,Invoice
ASC,SOCIAL SERVICES,Revenue,CUSTOMER & CLIENT RECPTS - EXT,CL CONT EXTERNAL RESIDENTIAL,23.Feb.17,-321.80,THE LEO TRUST,Invoice
ASC,SOCIAL SERVICES,Revenue,CUSTOMER & CLIENT RECPTS - EXT,CL CONT EXTERNAL RESIDENTIAL,24.Feb.17,-321.80,THE MANOR HOUSE,Invoice
ASC,SOCIAL SERVICES,Revenue,CUSTOMER & CLIENT RECPTS - EXT,CL CONT EXTERNAL RESIDENTIAL,24.Feb.17,-443.52,THE REGARD PARTNERSHIP,Invoice
ASC,SOCIAL SERVICES,Revenue,CUSTOMER & CLIENT RECPTS - EXT,CL CONT EXTERNAL RESIDENTIAL,24.Feb.17,-400.60,THE REGARD PARTNERSHIP,Invoice
ASC,SOCIAL SERVICES,Revenue,CUSTOMER & CLIENT RECPTS - EXT,CL CONT EXTERNAL RESIDENTIAL,24.Feb.17,-400.60,THE REGARD PARTNERSHIP,Invoice
ASC,SOCIAL SERVICES,Revenue,CUSTOMER & CLIENT RECPTS - EXT,CL CONT EXTERNAL RESIDENTIAL,24.Feb.17,-356.28,THE REGARD PARTNERSHIP,Invoice
ASC,SOCIAL SERVICES,Revenue,CUSTOMER & CLIENT RECPTS - EXT,CL CONT EXTERNAL RESIDENTIAL,24.Feb.17,-578.81,THE REGARD PARTNERSHIP,Invoice
ASC,SOCIAL SERVICES,Revenue,CUSTOMER & CLIENT RECPTS - EXT,CL CONT EXTERNAL RESIDENTIAL,24.Feb.17,-443.52,THE REGARD PARTNERSHIP,Invoice
ASC,SOCIAL SERVICES,Revenue,CUSTOMER & CLIENT RECPTS - EXT,CL CONT EXTERNAL RESIDENTIAL,24.Feb.17,-443.52,THE REGARD PARTNERSHIP,Invoice
ASC,SOCIAL SERVICES,Revenue,CUSTOMER & CLIENT RECPTS - EXT,CL CONT EXTERNAL RESIDENTIAL,27.Feb.17,-400.60,THE REGARD PARTNERSHIP,Invoice
ASC,SOCIAL SERVICES,Revenue,CUSTOMER & CLIENT RECPTS - EXT,CL CONT EXTERNAL RESIDENTIAL,27.Feb.17,-443.52,THE REGARD PARTNERSHIP,Invoice
ASC,SOCIAL SERVICES,Revenue,CUSTOMER & CLIENT RECPTS - EXT,CL CONT EXTERNAL RESIDENTIAL,23.Feb.17,-343.80,THE WELL HOUSE,Invoice
ASC,SOCIAL SERVICES,Revenue,CUSTOMER & CLIENT RECPTS - EXT,CL CONT EXTERNAL RESIDENTIAL,23.Feb.17,-321.80,THE WELL HOUSE,Invoice
ASC,SOCIAL SERVICES,Revenue,CUSTOMER & CLIENT RECPTS - EXT,CL CONT EXTERNAL RESIDENTIAL,24.Feb.17,-132.00,THE WEST OF ENGLAND SCHOOL & COLLEGE,Invoice
ASC,SOCIAL SERVICES,Revenue,CUSTOMER & CLIENT RECPTS - EXT,CL CONT EXTERNAL RESIDENTIAL,24.Feb.17,-195.00,THE WEST OF ENGLAND SCHOOL & COLLEGE,Invoice
ASC,SOCIAL SERVICES,Revenue,CUSTOMER & CLIENT RECPTS - EXT,CL CONT EXTERNAL RESIDENTIAL,24.Feb.17,-348.60,TOTTERDOWN,Invoice
ASC,SOCIAL SERVICES,Revenue,CUSTOMER & CLIENT RECPTS - EXT,CL CONT EXTERNAL RESIDENTIAL,24.Feb.17,-343.80,TRACS,Invoice
ASC,SOCIAL SERVICES,Revenue,CUSTOMER & CLIENT RECPTS - EXT,CL CONT EXTERNAL RESIDENTIAL,24.Feb.17,-400.60,UNITED RESPONSE,Invoice
ASC,SOCIAL SERVICES,Revenue,CUSTOMER & CLIENT RECPTS - EXT,CL CONT EXTERNAL RESIDENTIAL,02.Feb.17,-356.28,VOYAGE CARE LTD,Invoice
ASC,SOCIAL SERVICES,Revenue,CUSTOMER & CLIENT RECPTS - EXT,CL CONT EXTERNAL RESIDENTIAL,02.Feb.17,-579.66,VOYAGE CARE LTD,Invoice
ASC,SOCIAL SERVICES,Revenue,CUSTOMER & CLIENT RECPTS - EXT,CL CONT EXTERNAL RESIDENTIAL,02.Feb.17,-385.95,VOYAGE CARE LTD,Invoice
ASC,SOCIAL SERVICES,Revenue,CUSTOMER & CLIENT RECPTS - EXT,CL CONT EXTERNAL RESIDENTIAL,02.Feb.17,-380.64,VOYAGE CARE LTD,Invoice
ASC,SOCIAL SERVICES,Revenue,CUSTOMER & CLIENT RECPTS - EXT,CL CONT EXTERNAL RESIDENTIAL,08.Feb.17,-348.60,WHITE ROSE CARE,Invoice
ASC,SOCIAL SERVICES,Revenue,CUSTOMER & CLIENT RECPTS - EXT,CL CONT EXTERNAL RESIDENTIAL,08.Feb.17,-348.60,WHITE ROSE CARE,Invoice
ASC,SOCIAL SERVICES,Revenue,CUSTOMER & CLIENT RECPTS - EXT,CL CONT EXTERNAL RESIDENTIAL,08.Feb.17,-348.60,WHITE ROSE CARE,Invoice
ASC,SOCIAL SERVICES,Revenue,CUSTOMER & CLIENT RECPTS - EXT,CL CONT EXTERNAL RESIDENTIAL,03.Feb.17,-522.80,WHITMORE VALE HOUSING ASSOCIATION LTD,Invoice
ASC,SOCIAL SERVICES,Revenue,CUSTOMER & CLIENT RECPTS - EXT,CL CONT EXTERNAL RESIDENTIAL,03.Feb.17,-522.80,WHITMORE VALE HOUSING ASSOCIATION LTD,Invoice
ASC,SOCIAL SERVICES,Revenue,CUSTOMER & CLIENT RECPTS - EXT,CL CONT EXTERNAL RESIDENTIAL,24.Feb.17,-400.60,ZERO THREE CARE HOMES LLP,Invoice
ASC,SOCIAL SERVICES,Revenue,CUSTOMER & CLIENT RECPTS - EXT,CL CONTS INTERNAL RESIDENTIAL,23.Feb.17,-321.80,MACINTYRE CARE,Invoice
ASC,SOCIAL SERVICES,Revenue,CUSTOMER & CLIENT RECPTS - EXT,CL CONTS INTERNAL RESIDENTIAL,02.Feb.17,-321.80,METROPOLITAN HOUSING TRUST,Invoice
ASC,SOCIAL SERVICES,Revenue,CUSTOMER & CLIENT RECPTS - EXT,CL CONTS INTERNAL RESIDENTIAL,24.Feb.17,-321.80,METROPOLITAN HOUSING TRUST,Invoice
ASC,SOCIAL SERVICES,Revenue,CUSTOMER & CLIENT RECPTS - EXT,CLIENT CONTS - DIRECT PAYMENTS,20.Feb.17,-74.80,EPAYROLLUK LTD,Invoice
ASC,SOCIAL SERVICES,Revenue,CUSTOMER & CLIENT RECPTS - EXT,CLIENT CONTS - DIRECT PAYMENTS,20.Feb.17,-209.60,HESTIA HOUSING & SUPPORT,Invoice
ASC,SOCIAL SERVICES,Revenue,CUSTOMER & CLIENT RECPTS - EXT,CLIENT CONTS - DIRECT PAYMENTS,20.Feb.17,-38.80,HESTIA HOUSING & SUPPORT,Invoice
ASC,SOCIAL SERVICES,Revenue,CUSTOMER & CLIENT RECPTS - EXT,CLIENT CONTS - DIRECT PAYMENTS,20.Feb.17,-235.40,VIBRANCE,Invoice
ASC,SOCIAL SERVICES,Revenue,CUSTOMER & CLIENT RECPTS - EXT,CLIENT CONTS - DIRECT PAYMENTS,20.Feb.17,-114.52,VIBRANCE,Invoice
ASC,SOCIAL SERVICES,Revenue,CUSTOMER & CLIENT RECPTS - EXT,CLIENT CONTS - DIRECT PAYMENTS,20.Feb.17,-57.60,VIBRANCE,Invoice
ASC,SOCIAL SERVICES,Revenue,CUSTOMER & CLIENT RECPTS - EXT,CLIENT CONTS EXTERNAL NURSING,17.Feb.17,-321.80,ACTION ON HEARING LOSS,Invoice
ASC,SOCIAL SERVICES,Revenue,CUSTOMER & CLIENT RECPTS - EXT,CLIENT CONTS EXTERNAL NURSING,24.Feb.17,-905.84,BUPA CARE SERVICES BACS RECEIPTS,Invoice
ASC,SOCIAL SERVICES,Revenue,CUSTOMER & CLIENT RECPTS - EXT,CLIENT CONTS EXTERNAL NURSING,24.Feb.17,-522.80,BUPA CARE SERVICES BACS RECEIPTS,Invoice
ASC,SOCIAL SERVICES,Revenue,CUSTOMER & CLIENT RECPTS - EXT,CLIENT CONTS EXTERNAL NURSING,24.Feb.17,-321.80,BUPA CARE SERVICES BACS RECEIPTS,Invoice
ASC,SOCIAL SERVICES,Revenue,CUSTOMER & CLIENT RECPTS - EXT,CLIENT CONTS EXTERNAL NURSING,17.Feb.17,-343.80,HIGH HURLANDS HOMES,Invoice
ASC,SOCIAL SERVICES,Revenue,CUSTOMER & CLIENT RECPTS - EXT,CLIENT CONTS EXTERNAL NURSING,24.Feb.17,-564.88,ROSEDENE NURSING HOME,Invoice
ASC,SOCIAL SERVICES,Revenue,CUSTOMER & CLIENT RECPTS - EXT,CLIENT CONTS EXTERNAL NURSING,24.Feb.17,-366.40,SUSSEX HEALTH CARE,Invoice
ASC,SOCIAL SERVICES,Revenue,CUSTOMER & CLIENT RECPTS - EXT,CLIENT CONTS EXTERNAL NURSING,02.Feb.17,-315.09,VOYAGE CARE LTD,Invoice
ASC,SOCIAL SERVICES,Revenue,CUSTOMER & CLIENT RECPTS - EXT,CLIENT CONTS EXTERNAL NURSING,02.Feb.17,-443.52,VOYAGE CARE LTD,Invoice
ASC,SOCIAL SERVICES,Revenue,CUSTOMER & CLIENT RECPTS - EXT,RNCC,17.Feb.17,-625.00,ACTION ON HEARING LOSS,Invoice
ASC,SOCIAL SERVICES,Revenue,CUSTOMER & CLIENT RECPTS - EXT,RNCC,24.Feb.17,-625.00,BUPA CARE SERVICES BACS RECEIPTS,Invoice
ASC,SOCIAL SERVICES,Revenue,CUSTOMER & CLIENT RECPTS - EXT,RNCC,24.Feb.17,-625.00,BUPA CARE SERVICES BACS RECEIPTS,Invoice
ASC,SOCIAL SERVICES,Revenue,CUSTOMER & CLIENT RECPTS - EXT,RNCC,24.Feb.17,-625.00,BUPA CARE SERVICES BACS RECEIPTS,Invoice
ASC,SOCIAL SERVICES,Revenue,CUSTOMER & CLIENT RECPTS - EXT,RNCC,24.Feb.17,-625.00,BUPA CARE SERVICES BACS RECEIPTS,Invoice
ASC,SOCIAL SERVICES,Revenue,CUSTOMER & CLIENT RECPTS - EXT,RNCC,17.Feb.17,-860.16,HIGH HURLANDS HOMES,Invoice
ASC,SOCIAL SERVICES,Revenue,CUSTOMER & CLIENT RECPTS - EXT,RNCC,24.Feb.17,-625.00,ROSEDENE NURSING HOME,Invoice
ASC,SOCIAL SERVICES,Revenue,CUSTOMER & CLIENT RECPTS - EXT,RNCC,24.Feb.17,-625.00,SUSSEX HEALTH CARE,Invoice
ASC,SOCIAL SERVICES,Revenue,CUSTOMER & CLIENT RECPTS - EXT,RNCC,02.Feb.17,-691.96,VOYAGE CARE LTD,Invoice
ASC,SOCIAL SERVICES,Revenue,CUSTOMER & CLIENT RECPTS - EXT,RNCC,02.Feb.17,-691.96,VOYAGE CARE LTD,Invoice
ASC,,Revenue,"REPAIRS, ALTERATIONS & MTCE","REPS, ALTS & MTCE-BUILDINGS",20.Feb.17,1571.30,VIRIDIAN HOUSING,Invoice
ASC,,Revenue,"REPAIRS, ALTERATIONS & MTCE","REPS, ALTS & MTCE-BUILDINGS",20.Feb.17,1414.17,VIRIDIAN HOUSING,Invoice
PH,SOCIAL SERVICES,Revenue,PRIVATE,EXTERNAL HOMECARE,03.Feb.17,625.00,EXTREME ENVIRONMENTAL SERVICES LTD,Invoice
PH,SOCIAL SERVICES,Revenue,PRIVATE,EXTERNAL RESIDENTIAL CARE,16.Feb.17,7622.59,KAIROS COMMUNITY TRUST,Invoice
PH,SOCIAL SERVICES,Revenue,PRIVATE,EXTERNAL RESIDENTIAL CARE,03.Feb.17,3100.00,MOUNT CARMEL,Invoice
PH,SOCIAL SERVICES,Revenue,PRIVATE,EXTERNAL RESIDENTIAL CARE,24.Feb.17,3680.00,TREVI HOUSE LTD,Invoice
PH,SOCIAL SERVICES,Revenue,PRIVATE,EXTERNAL RESIDENTIAL CARE,02.Feb.17,3665.41,WESTCLIFFE HOUSE LTD,Invoice
PH,SOCIAL SERVICES,Revenue,PRIVATE,EXTERNAL RESIDENTIAL CARE,02.Feb.17,2643.38,WESTCLIFFE HOUSE LTD,Invoice
PH,SOCIAL SERVICES,Revenue,CUSTOMER & CLIENT RECPTS - EXT,CL CONT EXTERNAL RESIDENTIAL,16.Feb.17,-935.11,KAIROS COMMUNITY TRUST,Invoice
PH,SOCIAL SERVICES,Revenue,CUSTOMER & CLIENT RECPTS - EXT,CL CONT EXTERNAL RESIDENTIAL,03.Feb.17,-31.97,MOUNT CARMEL,Invoice
PH,SOCIAL SERVICES,Revenue,CUSTOMER & CLIENT RECPTS - EXT,CL CONT EXTERNAL RESIDENTIAL,24.Feb.17,-192.80,TREVI HOUSE LTD,Invoice
PH,SOCIAL SERVICES,Revenue,CUSTOMER & CLIENT RECPTS - EXT,CL CONT EXTERNAL RESIDENTIAL,02.Feb.17,-275.43,WESTCLIFFE HOUSE LTD,Invoice
PH,SOCIAL SERVICES,Revenue,CUSTOMER & CLIENT RECPTS - EXT,CL CONT EXTERNAL RESIDENTIAL,02.Feb.17,-199.69,WESTCLIFFE HOUSE LTD,Invoice
ASC,SOCIAL SERVICES,Revenue,OTHER AGENCIES,EXTERNAL OUTREACH,16.Feb.17,919.44,ACTION ON HEARING LOSS,Invoice
ASC,SOCIAL SERVICES,Revenue,OTHER AGENCIES,EXTERNAL OUTREACH,16.Feb.17,684.45,ACTION ON HEARING LOSS,Invoice
ASC,SOCIAL SERVICES,Revenue,OTHER AGENCIES,EXTERNAL LODGINGS,09.Feb.17,1395.00,EURO HOTELS (GILROY COURT) LTD,Invoice
ASC,SOCIAL SERVICES,Revenue,OTHER AGENCIES,EXTERNAL OUTREACH,16.Feb.17,0.16,ACTION ON HEARING LOSS,Invoice
ASC,SOCIAL SERVICES,Revenue,OTHER AGENCIES,EXTERNAL OUTREACH,16.Feb.17,992.00,ACTION ON HEARING LOSS,Invoice
ASC,SOCIAL SERVICES,Revenue,OTHER AGENCIES,EXTERNAL OUTREACH,17.Feb.17,940.56,ACTION ON HEARING LOSS,Invoice
ASC,SOCIAL SERVICES,Revenue,OTHER AGENCIES,EXTERNAL OUTREACH,27.Feb.17,1240.00,ACTION ON HEARING LOSS,Invoice
ASC,SOCIAL SERVICES,Revenue,OTHER AGENCIES,EXTERNAL OUTREACH,27.Feb.17,992.00,ACTION ON HEARING LOSS,Invoice
ASC,SOCIAL SERVICES,Revenue,OTHER AGENCIES,EXTERNAL OUTREACH,27.Feb.17,992.00,ACTION ON HEARING LOSS,Invoice
ASC,SOCIAL SERVICES,Revenue,OTHER AGENCIES,EXTERNAL OUTREACH,08.Feb.17,560.00,SIGNHEALTH,Invoice
ASC,SOCIAL SERVICES,Revenue,PRIVATE,EXTERNAL DAYCARE,09.Feb.17,515.88,NAS SERVICES LIMITED,Invoice
ASC,SOCIAL SERVICES,Revenue,PRIVATE,EXTERNAL DAYCARE,01.Feb.17,718.12,SHARE COMMUNITY,Invoice
ASC,SOCIAL SERVICES,Revenue,PRIVATE,EXTERNAL DAYCARE,01.Feb.17,957.52,SHARE COMMUNITY,Invoice
ASC,SOCIAL SERVICES,Revenue,PRIVATE,EXTERNAL DAYCARE,08.Feb.17,1163.70,SHARE COMMUNITY,Invoice
ASC,SOCIAL SERVICES,Revenue,PRIVATE,EXTERNAL DAYCARE,14.Feb.17,578.00,SOUND MINDS,Invoice
ASC,SOCIAL SERVICES,Revenue,PRIVATE,EXTERNAL HOMECARE,14.Feb.17,2150.00,AOCS PROPERTY MAINTENANCE LTD,Invoice
ASC,SOCIAL SERVICES,Revenue,PRIVATE,EXTERNAL HOMECARE,13.Feb.17,505.86,GOLDSBOROUGH HOMECARE & NURSING SERVICES,Invoice
ASC,SOCIAL SERVICES,Revenue,PRIVATE,EXTERNAL HOMECARE,22.Feb.17,578.69,HOLISTIC COMMUNITY CARE LTD,Invoice
ASC,SOCIAL SERVICES,Revenue,PRIVATE,EXTERNAL HOMECARE,14.Feb.17,597.00,HOME INSTEAD SENIOR CARE LTD,Invoice
ASC,SOCIAL SERVICES,Revenue,PRIVATE,EXTERNAL HOMECARE,22.Feb.17,567.00,HOME INSTEAD SENIOR CARE LTD,Invoice
ASC,SOCIAL SERVICES,Revenue,PRIVATE,EXTERNAL HOMECARE,14.Feb.17,504.80,MANAGING CARE LIMITED,Invoice
ASC,SOCIAL SERVICES,Revenue,PRIVATE,EXTERNAL HOMECARE,14.Feb.17,532.20,MANAGING CARE LIMITED,Invoice
ASC,SOCIAL SERVICES,Revenue,PRIVATE,EXTERNAL HOMECARE,06.Feb.17,1812.98,MCCALLUM CARE LTD CAREMARK (WANDSWORTH),Invoice
ASC,SOCIAL SERVICES,Revenue,PRIVATE,EXTERNAL HOMECARE,20.Feb.17,1812.98,MCCALLUM CARE LTD CAREMARK (WANDSWORTH),Invoice
ASC,SOCIAL SERVICES,Revenue,PRIVATE,EXTERNAL HOMECARE,27.Feb.17,1812.98,MCCALLUM CARE LTD CAREMARK (WANDSWORTH),Invoice
ASC,SOCIAL SERVICES,Revenue,PRIVATE,EXTERNAL HOMECARE,01.Feb.17,1586.83,MUSHKIL AASAAN LTD,Invoice
ASC,SOCIAL SERVICES,Revenue,PRIVATE,EXTERNAL HOMECARE,13.Feb.17,805.96,PARKGATE NURSING AGENCY,Invoice
ASC,SOCIAL SERVICES,Revenue,PRIVATE,EXTERNAL HOMECARE,14.Feb.17,633.68,PROFESSIONAL CARE SUPPORT SERVICES LTD,Invoice
ASC,SOCIAL SERVICES,Revenue,PRIVATE,EXTERNAL HOMECARE,16.Feb.17,1257.48,PROFESSIONAL CARE SUPPORT SERVICES LTD,Invoice
ASC,SOCIAL SERVICES,Revenue,PRIVATE,EXTERNAL HOMECARE,16.Feb.17,731.88,PROFESSIONAL CARE SUPPORT SERVICES LTD,Invoice
ASC,SOCIAL SERVICES,Revenue,PRIVATE,EXTERNAL HOMECARE,16.Feb.17,807.60,PROFESSIONAL CARE SUPPORT SERVICES LTD,Invoice
ASC,SOCIAL SERVICES,Revenue,PRIVATE,EXTERNAL HOMECARE,16.Feb.17,1079.72,PROFESSIONAL CARE SUPPORT SERVICES LTD,Invoice
ASC,SOCIAL SERVICES,Revenue,PRIVATE,EXTERNAL HOMECARE,08.Feb.17,948.25,SOMA HEALTHCARE LTD,Invoice
ASC,SOCIAL SERVICES,Revenue,PRIVATE,EXTERNAL HOMECARE,08.Feb.17,1132.50,SOMA HEALTHCARE LTD,Invoice
ASC,SOCIAL SERVICES,Revenue,PRIVATE,EXTERNAL HOMECARE,08.Feb.17,1034.25,SOMA HEALTHCARE LTD,Invoice
ASC,SOCIAL SERVICES,Revenue,PRIVATE,EXTERNAL HOMECARE,17.Feb.17,1170.00,SOMA HEALTHCARE LTD,Invoice
ASC,SOCIAL SERVICES,Revenue,PRIVATE,EXTERNAL HOMECARE,17.Feb.17,1019.00,SOMA HEALTHCARE LTD,Invoice
ASC,SOCIAL SERVICES,Revenue,PRIVATE,EXTERNAL HOMECARE,17.Feb.17,946.75,SOMA HEALTHCARE LTD,Invoice
ASC,SOCIAL SERVICES,Revenue,PRIVATE,EXTERNAL HOMECARE,14.Feb.17,1236.04,STOCKWELLCARE SUPPORT SERVICES,Invoice
ASC,SOCIAL SERVICES,Revenue,PRIVATE,EXTERNAL HOMECARE,14.Feb.17,955.44,STOCKWELLCARE SUPPORT SERVICES,Invoice
ASC,SOCIAL SERVICES,Revenue,PRIVATE,EXTERNAL HOMECARE,14.Feb.17,884.24,SUPREME CARE SERVICE LTD,Invoice
ASC,SOCIAL SERVICES,Revenue,PRIVATE,EXTERNAL HOMECARE,14.Feb.17,1060.60,SUPREME CARE SERVICE LTD,Invoice
ASC,SOCIAL SERVICES,Revenue,PRIVATE,EXTERNAL HOMECARE,14.Feb.17,627.04,SUPREME CARE SERVICE LTD,Invoice
ASC,SOCIAL SERVICES,Revenue,PRIVATE,EXTERNAL HOMECARE,06.Feb.17,569.75,WESTMINSTER HOMECARE LTD,Invoice
ASC,SOCIAL SERVICES,Revenue,PRIVATE,EXTERNAL HOMECARE,06.Feb.17,830.32,WESTMINSTER HOMECARE LTD,Invoice
ASC,SOCIAL SERVICES,Revenue,PRIVATE,EXTERNAL HOMECARE,17.Feb.17,755.25,WESTMINSTER HOMECARE LTD,Invoice
ASC,SOCIAL SERVICES,Revenue,PRIVATE,EXTERNAL HOMECARE,17.Feb.17,800.03,WESTMINSTER HOMECARE LTD,Invoice
ASC,SOCIAL SERVICES,Revenue,PRIVATE,EXTERNAL HOMECARE,17.Feb.17,535.30,WESTMINSTER HOMECARE LTD,Invoice
ASC,SOCIAL SERVICES,Revenue,PRIVATE,EXTERNAL NURSING CARE,09.Feb.17,3770.23,ACTION ON HEARING LOSS,Invoice
ASC,SOCIAL SERVICES,Revenue,PRIVATE,EXTERNAL NURSING CARE,17.Feb.17,3939.31,ACTION ON HEARING LOSS,Invoice
ASC,SOCIAL SERVICES,Revenue,PRIVATE,EXTERNAL NURSING CARE,24.Feb.17,2893.60,GEORGE POTTER CARE HOME LTD,Invoice
ASC,SOCIAL SERVICES,Revenue,PRIVATE,EXTERNAL NURSING CARE,24.Feb.17,10237.39,HAVELOCK COURT NURSING HOME,Invoice
ASC,SOCIAL SERVICES,Revenue,PRIVATE,EXTERNAL NURSING CARE,08.Feb.17,3792.96,HEALTH CARE HOMES - SOVEREIGN LODGE,Invoice
ASC,SOCIAL SERVICES,Revenue,PRIVATE,EXTERNAL NURSING CARE,24.Feb.17,2999.16,LIFE STYLE CARE (2011) PLC,Invoice
ASC,SOCIAL SERVICES,Revenue,PRIVATE,EXTERNAL NURSING CARE,24.Feb.17,2792.52,LIFESTYLE CARE MANAGEMENT LTD,Invoice
ASC,SOCIAL SERVICES,Revenue,PRIVATE,EXTERNAL NURSING CARE,24.Feb.17,2880.84,LIFESTYLE CARE MANAGEMENT LTD,Invoice
ASC,SOCIAL SERVICES,Revenue,PRIVATE,EXTERNAL NURSING CARE,24.Feb.17,9845.96,LYNTON HALL NURSING HOME,Invoice
ASC,SOCIAL SERVICES,Revenue,PRIVATE,EXTERNAL NURSING CARE,27.Feb.17,3198.00,MHA CARE GROUP,Invoice
ASC,SOCIAL SERVICES,Revenue,PRIVATE,EXTERNAL NURSING CARE,27.Feb.17,3198.00,MHA CARE GROUP,Invoice
ASC,SOCIAL SERVICES,Revenue,PRIVATE,EXTERNAL NURSING CARE,24.Feb.17,3546.80,ROSEDENE NURSING HOME,Invoice
ASC,SOCIAL SERVICES,Revenue,PRIVATE,EXTERNAL NURSING CARE,24.Feb.17,3546.80,ROSEDENE NURSING HOME,Invoice
ASC,SOCIAL SERVICES,Revenue,PRIVATE,EXTERNAL NURSING CARE,24.Feb.17,3546.80,ROSEDENE NURSING HOME,Invoice
ASC,SOCIAL SERVICES,Revenue,PRIVATE,EXTERNAL NURSING CARE,24.Feb.17,4177.00,ROSEDENE NURSING HOME,Invoice
ASC,SOCIAL SERVICES,Revenue,PRIVATE,EXTERNAL NURSING CARE,24.Feb.17,3577.00,ROSEDENE NURSING HOME,Invoice
ASC,SOCIAL SERVICES,Revenue,PRIVATE,EXTERNAL NURSING CARE,24.Feb.17,3643.60,ROSEDENE NURSING HOME,Invoice
ASC,SOCIAL SERVICES,Revenue,PRIVATE,EXTERNAL NURSING CARE,24.Feb.17,3957.00,ROSEDENE NURSING HOME,Invoice
ASC,SOCIAL SERVICES,Revenue,PRIVATE,EXTERNAL NURSING CARE,24.Feb.17,3434.00,ROSEDENE NURSING HOME,Invoice
ASC,SOCIAL SERVICES,Revenue,PRIVATE,EXTERNAL NURSING CARE,24.Feb.17,3560.00,ROSEDENE NURSING HOME,Invoice
ASC,SOCIAL SERVICES,Revenue,PRIVATE,EXTERNAL NURSING CARE,24.Feb.17,3369.80,ROSEDENE NURSING HOME,Invoice
ASC,SOCIAL SERVICES,Revenue,PRIVATE,EXTERNAL NURSING CARE,24.Feb.17,3408.80,TRILODGE LTD,Invoice
ASC,SOCIAL SERVICES,Revenue,PRIVATE,EXTERNAL NURSING CARE,24.Feb.17,3406.68,TRINITY COURT NURSING HOME,Invoice
ASC,SOCIAL SERVICES,Revenue,PRIVATE,EXTERNAL NURSING CARE,24.Feb.17,3096.44,TRINITY COURT NURSING HOME,Invoice
ASC,SOCIAL SERVICES,Revenue,PRIVATE,EXTERNAL NURSING CARE,24.Feb.17,3416.52,TRINITY COURT NURSING HOME,Invoice
ASC,SOCIAL SERVICES,Revenue,PRIVATE,EXTERNAL NURSING CARE,24.Feb.17,3146.44,TRINITY COURT NURSING HOME,Invoice
ASC,SOCIAL SERVICES,Revenue,PRIVATE,EXTERNAL NURSING CARE,24.Feb.17,2969.44,TRINITY COURT NURSING HOME,Invoice
ASC,SOCIAL SERVICES,Revenue,PRIVATE,EXTERNAL NURSING CARE,24.Feb.17,2948.80,TRINITY COURT NURSING HOME,Invoice
ASC,SOCIAL SERVICES,Revenue,PRIVATE,EXTERNAL NURSING CARE,24.Feb.17,3054.72,TRINITY COURT NURSING HOME,Invoice
ASC,SOCIAL SERVICES,Revenue,PRIVATE,EXTERNAL NURSING CARE,24.Feb.17,3150.12,TRINITY COURT NURSING HOME,Invoice
ASC,SOCIAL SERVICES,Revenue,PRIVATE,EXTERNAL NURSING CARE,24.Feb.17,3146.44,TRINITY COURT NURSING HOME,Invoice
ASC,SOCIAL SERVICES,Revenue,PRIVATE,EXTERNAL RESIDENTIAL CARE,08.Feb.17,1314.32,229 MITCHAM LANE LTD,Invoice
ASC,SOCIAL SERVICES,Revenue,PRIVATE,EXTERNAL RESIDENTIAL CARE,03.Feb.17,928.57,ABBEY HOUSE,Invoice
ASC,SOCIAL SERVICES,Revenue,PRIVATE,EXTERNAL RESIDENTIAL CARE,24.Feb.17,2440.00,ABBEY HOUSE,Invoice
ASC,SOCIAL SERVICES,Revenue,PRIVATE,EXTERNAL RESIDENTIAL CARE,24.Feb.17,3000.00,ABBEY HOUSE,Invoice
ASC,SOCIAL SERVICES,Revenue,PRIVATE,EXTERNAL RESIDENTIAL CARE,24.Feb.17,3400.00,ABBEY HOUSE,Invoice
ASC,SOCIAL SERVICES,Revenue,PRIVATE,EXTERNAL RESIDENTIAL CARE,24.Feb.17,5200.00,ABBEY HOUSE,Invoice
ASC,SOCIAL SERVICES,Revenue,PRIVATE,EXTERNAL RESIDENTIAL CARE,09.Feb.17,3398.72,ACTION ON HEARING LOSS,Invoice
ASC,SOCIAL SERVICES,Revenue,PRIVATE,EXTERNAL RESIDENTIAL CARE,09.Feb.17,3480.00,ACTION ON HEARING LOSS,Invoice
ASC,SOCIAL SERVICES,Revenue,PRIVATE,EXTERNAL RESIDENTIAL CARE,09.Feb.17,3679.96,ACTION ON HEARING LOSS,Invoice
ASC,SOCIAL SERVICES,Revenue,PRIVATE,EXTERNAL RESIDENTIAL CARE,16.Feb.17,3984.80,ACTION ON HEARING LOSS,Invoice
ASC,SOCIAL SERVICES,Revenue,PRIVATE,EXTERNAL RESIDENTIAL CARE,17.Feb.17,4800.00,ACTION ON HEARING LOSS,Invoice
ASC,SOCIAL SERVICES,Revenue,PRIVATE,EXTERNAL RESIDENTIAL CARE,17.Feb.17,4800.00,ACTION ON HEARING LOSS,Invoice
ASC,SOCIAL SERVICES,Revenue,PRIVATE,EXTERNAL RESIDENTIAL CARE,17.Feb.17,4800.00,ACTION ON HEARING LOSS,Invoice
ASC,SOCIAL SERVICES,Revenue,PRIVATE,EXTERNAL RESIDENTIAL CARE,17.Feb.17,4800.00,ACTION ON HEARING LOSS,Invoice
ASC,SOCIAL SERVICES,Revenue,PRIVATE,EXTERNAL RESIDENTIAL CARE,17.Feb.17,3398.72,ACTION ON HEARING LOSS,Invoice
ASC,SOCIAL SERVICES,Revenue,PRIVATE,EXTERNAL RESIDENTIAL CARE,17.Feb.17,3480.00,ACTION ON HEARING LOSS,Invoice
ASC,SOCIAL SERVICES,Revenue,PRIVATE,EXTERNAL RESIDENTIAL CARE,22.Feb.17,3679.96,ACTION ON HEARING LOSS,Invoice
ASC,SOCIAL SERVICES,Revenue,PRIVATE,EXTERNAL RESIDENTIAL CARE,16.Feb.17,3628.00,ADMIRAL HEALTHCARE LTD,Invoice
ASC,SOCIAL SERVICES,Revenue,PRIVATE,EXTERNAL RESIDENTIAL CARE,16.Feb.17,3400.00,ADMIRAL HEALTHCARE LTD,Invoice
ASC,SOCIAL SERVICES,Revenue,PRIVATE,EXTERNAL RESIDENTIAL CARE,24.Feb.17,9404.00,ADMIRAL HEALTHCARE LTD,Invoice
ASC,SOCIAL SERVICES,Revenue,PRIVATE,EXTERNAL RESIDENTIAL CARE,24.Feb.17,3400.00,ADMIRAL HEALTHCARE LTD,Invoice
ASC,SOCIAL SERVICES,Revenue,PRIVATE,EXTERNAL RESIDENTIAL CARE,24.Feb.17,3434.00,ADMIRAL HEALTHCARE LTD,Invoice
ASC,SOCIAL SERVICES,Revenue,PRIVATE,EXTERNAL RESIDENTIAL CARE,24.Feb.17,3700.00,AMBLESIDE LODGE,Invoice
ASC,SOCIAL SERVICES,Revenue,PRIVATE,EXTERNAL RESIDENTIAL CARE,24.Feb.17,3640.00,AMBLESIDE LODGE,Invoice
ASC,SOCIAL SERVICES,Revenue,PRIVATE,EXTERNAL RESIDENTIAL CARE,02.Feb.17,3542.85,ASTRA HOMES LTD,Invoice
ASC,SOCIAL SERVICES,Revenue,PRIVATE,EXTERNAL RESIDENTIAL CARE,02.Feb.17,3428.57,ASTRA HOMES LTD,Invoice
ASC,SOCIAL SERVICES,Revenue,PRIVATE,EXTERNAL RESIDENTIAL CARE,02.Feb.17,3542.86,ASTRA HOMES LTD,Invoice
ASC,SOCIAL SERVICES,Revenue,PRIVATE,EXTERNAL RESIDENTIAL CARE,08.Feb.17,3542.85,ASTRA HOMES LTD,Invoice
ASC,SOCIAL SERVICES,Revenue,PRIVATE,EXTERNAL RESIDENTIAL CARE,09.Feb.17,4834.78,ASTRA HOMES LTD,Invoice
ASC,SOCIAL SERVICES,Revenue,PRIVATE,EXTERNAL RESIDENTIAL CARE,24.Feb.17,3200.00,ASTRA HOMES LTD,Invoice
ASC,SOCIAL SERVICES,Revenue,PRIVATE,EXTERNAL RESIDENTIAL CARE,23.Feb.17,3840.53,BROADREACH HOUSE,Invoice
ASC,SOCIAL SERVICES,Revenue,PRIVATE,EXTERNAL RESIDENTIAL CARE,08.Feb.17,10511.04,BUTTERFLYS CARE HOMES LTD,Invoice
ASC,SOCIAL SERVICES,Revenue,PRIVATE,EXTERNAL RESIDENTIAL CARE,13.Feb.17,10584.60,BUTTERFLYS CARE HOMES LTD,Invoice
ASC,SOCIAL SERVICES,Revenue,PRIVATE,EXTERNAL RESIDENTIAL CARE,24.Feb.17,2555.40,CENTRAL AND CECIL HOUSING TRUST,Invoice
ASC,SOCIAL SERVICES,Revenue,PRIVATE,EXTERNAL RESIDENTIAL CARE,13.Feb.17,8075.64,CMG HOMES LTD,Invoice
ASC,SOCIAL SERVICES,Revenue,PRIVATE,EXTERNAL RESIDENTIAL CARE,08.Feb.17,3808.57,COMMUNITY HOUSING & THERAPY,Invoice
ASC,SOCIAL SERVICES,Revenue,PRIVATE,EXTERNAL RESIDENTIAL CARE,24.Feb.17,2783.44,COUNTRY COURT CARE,Invoice
ASC,SOCIAL SERVICES,Revenue,PRIVATE,EXTERNAL RESIDENTIAL CARE,24.Feb.17,2800.00,CROWNWISE LTD,Invoice
ASC,SOCIAL SERVICES,Revenue,PRIVATE,EXTERNAL RESIDENTIAL CARE,24.Feb.17,2280.00,CROWNWISE LTD,Invoice
ASC,SOCIAL SERVICES,Revenue,PRIVATE,EXTERNAL RESIDENTIAL CARE,24.Feb.17,2800.00,CROWNWISE LTD,Invoice
ASC,SOCIAL SERVICES,Revenue,PRIVATE,EXTERNAL RESIDENTIAL CARE,24.Feb.17,2780.00,DEEPDENE CARE LTD,Invoice
ASC,SOCIAL SERVICES,Revenue,PRIVATE,EXTERNAL RESIDENTIAL CARE,24.Feb.17,2762.96,DEEPDENE CARE LTD,Invoice
ASC,SOCIAL SERVICES,Revenue,PRIVATE,EXTERNAL RESIDENTIAL CARE,24.Feb.17,2013.04,DEEPDENE CARE LTD,Invoice
ASC,SOCIAL SERVICES,Revenue,PRIVATE,EXTERNAL RESIDENTIAL CARE,24.Feb.17,2222.00,DEEPDENE CARE LTD,Invoice
ASC,SOCIAL SERVICES,Revenue,PRIVATE,EXTERNAL RESIDENTIAL CARE,24.Feb.17,2850.72,DEEPDENE CARE LTD,Invoice
ASC,SOCIAL SERVICES,Revenue,PRIVATE,EXTERNAL RESIDENTIAL CARE,24.Feb.17,2013.00,DEEPDENE CARE LTD,Invoice
ASC,SOCIAL SERVICES,Revenue,PRIVATE,EXTERNAL RESIDENTIAL CARE,06.Feb.17,3200.00,EVERSLEIGH CARE HOME,Invoice
ASC,SOCIAL SERVICES,Revenue,PRIVATE,EXTERNAL RESIDENTIAL CARE,24.Feb.17,2063.36,JEWISH CARE,Invoice
ASC,SOCIAL SERVICES,Revenue,PRIVATE,EXTERNAL RESIDENTIAL CARE,24.Feb.17,2545.20,JOYCARE HOME SERVICES LTD,Invoice
ASC,SOCIAL SERVICES,Revenue,PRIVATE,EXTERNAL RESIDENTIAL CARE,24.Feb.17,3200.12,LANGLEY COURT REST HOME,Invoice
ASC,SOCIAL SERVICES,Revenue,PRIVATE,EXTERNAL RESIDENTIAL CARE,24.Feb.17,5200.00,LONA LODGE,Invoice
ASC,SOCIAL SERVICES,Revenue,PRIVATE,EXTERNAL RESIDENTIAL CARE,24.Feb.17,2199.96,MINSA CARE LTD,Invoice
ASC,SOCIAL SERVICES,Revenue,PRIVATE,EXTERNAL RESIDENTIAL CARE,24.Feb.17,2299.92,MINSA CARE LTD,Invoice
ASC,SOCIAL SERVICES,Revenue,PRIVATE,EXTERNAL RESIDENTIAL CARE,03.Feb.17,3100.00,MOUNT CARMEL,Invoice
ASC,SOCIAL SERVICES,Revenue,PRIVATE,EXTERNAL RESIDENTIAL CARE,24.Feb.17,2626.00,ORCHID HOMES T/A LA ROSA 2,Invoice
ASC,SOCIAL SERVICES,Revenue,PRIVATE,EXTERNAL RESIDENTIAL CARE,17.Feb.17,2504.80,QUANTUM CARE LTD,Invoice
ASC,SOCIAL SERVICES,Revenue,PRIVATE,EXTERNAL RESIDENTIAL CARE,24.Feb.17,2625.04,REDACTED PERSONAL DATA,Invoice
ASC,SOCIAL SERVICES,Revenue,PRIVATE,EXTERNAL RESIDENTIAL CARE,24.Feb.17,2625.04,REDACTED PERSONAL DATA,Invoice
ASC,SOCIAL SERVICES,Revenue,PRIVATE,EXTERNAL RESIDENTIAL CARE,24.Feb.17,2714.40,REDACTED PERSONAL DATA,Invoice
ASC,SOCIAL SERVICES,Revenue,PRIVATE,EXTERNAL RESIDENTIAL CARE,24.Feb.17,2828.00,REDACTED PERSONAL DATA,Invoice
ASC,SOCIAL SERVICES,Revenue,PRIVATE,EXTERNAL RESIDENTIAL CARE,24.Feb.17,2700.00,ROSENMANOR LTD,Invoice
ASC,SOCIAL SERVICES,Revenue,PRIVATE,EXTERNAL RESIDENTIAL CARE,24.Feb.17,3320.00,ROSENMANOR LTD,Invoice
ASC,SOCIAL SERVICES,Revenue,PRIVATE,EXTERNAL RESIDENTIAL CARE,24.Feb.17,2800.00,ROSENMANOR LTD,Invoice
ASC,SOCIAL SERVICES,Revenue,PRIVATE,EXTERNAL RESIDENTIAL CARE,24.Feb.17,3360.00,ROSENMANOR LTD,Invoice
ASC,SOCIAL SERVICES,Revenue,PRIVATE,EXTERNAL RESIDENTIAL CARE,24.Feb.17,3155.00,ROSENMANOR LTD,Invoice
ASC,SOCIAL SERVICES,Revenue,PRIVATE,EXTERNAL RESIDENTIAL CARE,02.Feb.17,2421.00,SANCTUARY HOME CARE LTD,Invoice
ASC,SOCIAL SERVICES,Revenue,PRIVATE,EXTERNAL RESIDENTIAL CARE,24.Feb.17,3139.00,SIGNATURE HEALTH AND LIVING LTD,Invoice
ASC,SOCIAL SERVICES,Revenue,PRIVATE,EXTERNAL RESIDENTIAL CARE,24.Feb.17,2999.00,SIGNATURE HEALTH AND LIVING LTD,Invoice
ASC,SOCIAL SERVICES,Revenue,PRIVATE,EXTERNAL RESIDENTIAL CARE,24.Feb.17,3000.00,SIGNATURE HEALTH AND LIVING LTD,Invoice
ASC,SOCIAL SERVICES,Revenue,PRIVATE,EXTERNAL RESIDENTIAL CARE,24.Feb.17,5454.00,SIGNHEALTH,Invoice
ASC,SOCIAL SERVICES,Revenue,PRIVATE,EXTERNAL RESIDENTIAL CARE,24.Feb.17,6360.44,SIGNHEALTH,Invoice
ASC,SOCIAL SERVICES,Revenue,PRIVATE,EXTERNAL RESIDENTIAL CARE,24.Feb.17,5374.88,SIGNHEALTH,Invoice
ASC,SOCIAL SERVICES,Revenue,PRIVATE,EXTERNAL RESIDENTIAL CARE,27.Feb.17,6399.96,THANET HEALTHCARE LTD,Invoice
ASC,SOCIAL SERVICES,Revenue,PRIVATE,EXTERNAL RESIDENTIAL CARE,24.Feb.17,2280.00,THORNTON LODGE,Invoice
ASC,SOCIAL SERVICES,Revenue,PRIVATE,EXTERNAL RESIDENTIAL CARE,24.Feb.17,2184.00,THORNTON LODGE,Invoice
ASC,SOCIAL SERVICES,Revenue,PRIVATE,EXTERNAL RESIDENTIAL CARE,24.Feb.17,2032.76,THORNTON LODGE,Invoice
ASC,SOCIAL SERVICES,Revenue,PRIVATE,EXTERNAL RESIDENTIAL CARE,03.Feb.17,2643.38,WESTCLIFFE HOUSE LTD,Invoice
ASC,SOCIAL SERVICES,Revenue,PRIVATE,EXTERNAL RESIDENTIAL CARE,23.Feb.17,1975.88,WILLOWMEAD RESIDENTIAL HOME LTD,Invoice
ASC,SOCIAL SERVICES,Revenue,VOL ASS,SUPPORTED HOUSING PROGRAMME,24.Feb.17,1400.00,ASTRA HOMES LTD,Invoice
ASC,SOCIAL SERVICES,Revenue,VOL ASS,SUPPORTED HOUSING PROGRAMME,24.Feb.17,1396.00,ASTRA HOMES LTD,Invoice
ASC,SOCIAL SERVICES,Revenue,VOL ASS,SUPPORTED HOUSING PROGRAMME,16.Feb.17,1218.44,C M CARE LTD,Invoice
ASC,SOCIAL SERVICES,Revenue,VOL ASS,SUPPORTED HOUSING PROGRAMME,16.Feb.17,1803.00,C M CARE LTD,Invoice
ASC,SOCIAL SERVICES,Revenue,VOL ASS,SUPPORTED HOUSING PROGRAMME,16.Feb.17,473.20,C M CARE LTD,Invoice
ASC,SOCIAL SERVICES,Revenue,VOL ASS,SUPPORTED HOUSING PROGRAMME,16.Feb.17,1895.04,C M CARE LTD,Invoice
ASC,SOCIAL SERVICES,Revenue,VOL ASS,SUPPORTED HOUSING PROGRAMME,16.Feb.17,2576.68,C M CARE LTD,Invoice
ASC,SOCIAL SERVICES,Revenue,VOL ASS,SUPPORTED HOUSING PROGRAMME,16.Feb.17,1961.64,C M CARE LTD,Invoice
ASC,SOCIAL SERVICES,Revenue,VOL ASS,SUPPORTED HOUSING PROGRAMME,16.Feb.17,1895.04,C M CARE LTD,Invoice
ASC,SOCIAL SERVICES,Revenue,VOL ASS,SUPPORTED HOUSING PROGRAMME,16.Feb.17,1803.00,C M CARE LTD,Invoice
ASC,SOCIAL SERVICES,Revenue,VOL ASS,SUPPORTED HOUSING PROGRAMME,16.Feb.17,1803.00,C M CARE LTD,Invoice
ASC,SOCIAL SERVICES,Revenue,VOL ASS,SUPPORTED HOUSING PROGRAMME,16.Feb.17,1895.04,C M CARE LTD,Invoice
ASC,SOCIAL SERVICES,Revenue,VOL ASS,SUPPORTED HOUSING PROGRAMME,16.Feb.17,1895.04,C M CARE LTD,Invoice
ASC,SOCIAL SERVICES,Revenue,VOL ASS,SUPPORTED HOUSING PROGRAMME,16.Feb.17,432.00,C M CARE LTD,Invoice
ASC,SOCIAL SERVICES,Revenue,VOL ASS,SUPPORTED HOUSING PROGRAMME,16.Feb.17,1895.04,C M CARE LTD,Invoice
ASC,SOCIAL SERVICES,Revenue,VOL ASS,SUPPORTED HOUSING PROGRAMME,16.Feb.17,1803.00,C M CARE LTD,Invoice
ASC,SOCIAL SERVICES,Revenue,VOL ASS,SUPPORTED HOUSING PROGRAMME,16.Feb.17,1895.04,C M CARE LTD,Invoice
ASC,SOCIAL SERVICES,Revenue,VOL ASS,SUPPORTED HOUSING PROGRAMME,16.Feb.17,1803.00,C M CARE LTD,Invoice
ASC,SOCIAL SERVICES,Revenue,VOL ASS,SUPPORTED HOUSING PROGRAMME,16.Feb.17,1803.00,C M CARE LTD,Invoice
ASC,SOCIAL SERVICES,Revenue,VOL ASS,SUPPORTED HOUSING PROGRAMME,16.Feb.17,2274.84,C M CARE LTD,Invoice
ASC,SOCIAL SERVICES,Revenue,VOL ASS,SUPPORTED HOUSING PROGRAMME,24.Feb.17,3526.96,COGHLAN LODGES LIMITED,Invoice
ASC,SOCIAL SERVICES,Revenue,VOL ASS,SUPPORTED HOUSING PROGRAMME,08.Feb.17,2147.86,COMMUNITY HOUSING & THERAPY,Invoice
ASC,SOCIAL SERVICES,Revenue,VOL ASS,SUPPORTED HOUSING PROGRAMME,08.Feb.17,620.00,COMMUNITY HOUSING & THERAPY,Invoice
ASC,SOCIAL SERVICES,Revenue,VOL ASS,SUPPORTED HOUSING PROGRAMME,24.Feb.17,1800.00,CROWNWISE LTD,Invoice
ASC,SOCIAL SERVICES,Revenue,VOL ASS,SUPPORTED HOUSING PROGRAMME,24.Feb.17,2700.00,CROWNWISE LTD,Invoice
ASC,SOCIAL SERVICES,Revenue,VOL ASS,SUPPORTED HOUSING PROGRAMME,24.Feb.17,1800.00,CROWNWISE LTD,Invoice
ASC,SOCIAL SERVICES,Revenue,VOL ASS,SUPPORTED HOUSING PROGRAMME,24.Feb.17,2200.00,CROWNWISE LTD,Invoice
ASC,SOCIAL SERVICES,Revenue,VOL ASS,SUPPORTED HOUSING PROGRAMME,24.Feb.17,1800.00,CROWNWISE LTD,Invoice
ASC,SOCIAL SERVICES,Revenue,VOL ASS,SUPPORTED HOUSING PROGRAMME,24.Feb.17,1800.00,CROWNWISE LTD,Invoice
ASC,SOCIAL SERVICES,Revenue,VOL ASS,SUPPORTED HOUSING PROGRAMME,24.Feb.17,2700.00,CROWNWISE LTD,Invoice
ASC,SOCIAL SERVICES,Revenue,VOL ASS,SUPPORTED HOUSING PROGRAMME,24.Feb.17,1160.16,CROWNWISE LTD,Invoice
ASC,SOCIAL SERVICES,Revenue,VOL ASS,SUPPORTED HOUSING PROGRAMME,24.Feb.17,2000.00,CROWNWISE LTD,Invoice
ASC,SOCIAL SERVICES,Revenue,VOL ASS,SUPPORTED HOUSING PROGRAMME,24.Feb.17,1800.00,CROWNWISE LTD,Invoice
ASC,SOCIAL SERVICES,Revenue,VOL ASS,SUPPORTED HOUSING PROGRAMME,17.Feb.17,2000.00,H FRANCIS,Invoice
ASC,SOCIAL SERVICES,Revenue,VOL ASS,SUPPORTED HOUSING PROGRAMME,17.Feb.17,2000.00,H FRANCIS,Invoice
ASC,SOCIAL SERVICES,Revenue,VOL ASS,SUPPORTED HOUSING PROGRAMME,06.Feb.17,626.24,METROPOLITAN HOUSING TRUST,Invoice
ASC,SOCIAL SERVICES,Revenue,VOL ASS,SUPPORTED HOUSING PROGRAMME,06.Feb.17,536.78,METROPOLITAN HOUSING TRUST,Invoice
ASC,SOCIAL SERVICES,Revenue,VOL ASS,SUPPORTED HOUSING PROGRAMME,06.Feb.17,626.24,METROPOLITAN HOUSING TRUST,Invoice
ASC,SOCIAL SERVICES,Revenue,VOL ASS,SUPPORTED HOUSING PROGRAMME,23.Feb.17,626.24,METROPOLITAN HOUSING TRUST,Invoice
ASC,SOCIAL SERVICES,Revenue,VOL ASS,SUPPORTED HOUSING PROGRAMME,23.Feb.17,626.24,METROPOLITAN HOUSING TRUST,Invoice
ASC,SOCIAL SERVICES,Revenue,VOL ASS,SUPPORTED HOUSING PROGRAMME,23.Feb.17,626.24,METROPOLITAN HOUSING TRUST,Invoice
ASC,SOCIAL SERVICES,Revenue,VOL ASS,SUPPORTED HOUSING PROGRAMME,23.Feb.17,626.24,METROPOLITAN HOUSING TRUST,Invoice
ASC,SOCIAL SERVICES,Revenue,VOL ASS,SUPPORTED HOUSING PROGRAMME,03.Feb.17,4320.00,MR A A PALMER,Invoice
ASC,SOCIAL SERVICES,Revenue,VOL ASS,SUPPORTED HOUSING PROGRAMME,14.Feb.17,1100.00,MR A A PALMER,Invoice
ASC,SOCIAL SERVICES,Revenue,VOL ASS,SUPPORTED HOUSING PROGRAMME,14.Feb.17,1100.00,MR A A PALMER,Invoice
ASC,SOCIAL SERVICES,Revenue,VOL ASS,SUPPORTED HOUSING PROGRAMME,14.Feb.17,1100.00,MR A A PALMER,Invoice
ASC,SOCIAL SERVICES,Revenue,VOL ASS,SUPPORTED HOUSING PROGRAMME,14.Feb.17,960.00,MR A A PALMER,Invoice
ASC,SOCIAL SERVICES,Revenue,VOL ASS,SUPPORTED HOUSING PROGRAMME,22.Feb.17,2200.00,MR A A PALMER,Invoice
ASC,SOCIAL SERVICES,Revenue,VOL ASS,SUPPORTED HOUSING PROGRAMME,22.Feb.17,1100.00,MR A A PALMER,Invoice
ASC,SOCIAL SERVICES,Revenue,VOL ASS,SUPPORTED HOUSING PROGRAMME,23.Feb.17,1100.00,MR A A PALMER,Invoice
ASC,SOCIAL SERVICES,Revenue,VOL ASS,SUPPORTED HOUSING PROGRAMME,23.Feb.17,1100.00,MR A A PALMER,Invoice
ASC,SOCIAL SERVICES,Revenue,VOL ASS,SUPPORTED HOUSING PROGRAMME,23.Feb.17,1100.00,MR A A PALMER,Invoice
ASC,SOCIAL SERVICES,Revenue,VOL ASS,SUPPORTED HOUSING PROGRAMME,23.Feb.17,960.00,MR A A PALMER,Invoice
ASC,SOCIAL SERVICES,Revenue,VOL ASS,SUPPORTED HOUSING PROGRAMME,23.Feb.17,2610.72,ORDINARY LIVING LTD,Invoice
ASC,SOCIAL SERVICES,Revenue,VOL ASS,SUPPORTED HOUSING PROGRAMME,02.Feb.17,692.20,SERVOL COMMUNITY TRUST,Invoice
ASC,SOCIAL SERVICES,Revenue,VOL ASS,SUPPORTED HOUSING PROGRAMME,06.Feb.17,1573.45,SERVOL COMMUNITY TRUST,Invoice
ASC,SOCIAL SERVICES,Revenue,VOL ASS,SUPPORTED HOUSING PROGRAMME,24.Feb.17,673.72,SERVOL COMMUNITY TRUST,Invoice
ASC,SOCIAL SERVICES,Revenue,VOL ASS,SUPPORTED HOUSING PROGRAMME,24.Feb.17,612.56,SERVOL COMMUNITY TRUST,Invoice
ASC,SOCIAL SERVICES,Revenue,VOL ASS,SUPPORTED HOUSING PROGRAMME,24.Feb.17,673.72,SERVOL COMMUNITY TRUST,Invoice
ASC,SOCIAL SERVICES,Revenue,VOL ASS,SUPPORTED HOUSING PROGRAMME,24.Feb.17,612.56,SERVOL COMMUNITY TRUST,Invoice
ASC,SOCIAL SERVICES,Revenue,VOL ASS,SUPPORTED HOUSING PROGRAMME,24.Feb.17,673.72,SERVOL COMMUNITY TRUST,Invoice
ASC,SOCIAL SERVICES,Revenue,VOL ASS,SUPPORTED HOUSING PROGRAMME,24.Feb.17,591.84,SERVOL COMMUNITY TRUST,Invoice
ASC,SOCIAL SERVICES,Revenue,VOL ASS,SUPPORTED HOUSING PROGRAMME,24.Feb.17,616.88,SERVOL COMMUNITY TRUST,Invoice
ASC,SOCIAL SERVICES,Revenue,VOL ASS,SUPPORTED HOUSING PROGRAMME,24.Feb.17,788.80,SERVOL COMMUNITY TRUST,Invoice
ASC,SOCIAL SERVICES,Revenue,VOL ASS,SUPPORTED HOUSING PROGRAMME,24.Feb.17,842.68,SERVOL COMMUNITY TRUST,Invoice
ASC,SOCIAL SERVICES,Revenue,VOL ASS,SUPPORTED HOUSING PROGRAMME,24.Feb.17,842.68,SERVOL COMMUNITY TRUST,Invoice
ASC,SOCIAL SERVICES,Revenue,VOL ASS,SUPPORTED HOUSING PROGRAMME,24.Feb.17,842.68,SERVOL COMMUNITY TRUST,Invoice
ASC,SOCIAL SERVICES,Revenue,VOL ASS,SUPPORTED HOUSING PROGRAMME,24.Feb.17,842.68,SERVOL COMMUNITY TRUST,Invoice
ASC,SOCIAL SERVICES,Revenue,VOL ASS,SUPPORTED HOUSING PROGRAMME,24.Feb.17,842.68,SERVOL COMMUNITY TRUST,Invoice
ASC,SOCIAL SERVICES,Revenue,VOL ASS,SUPPORTED HOUSING PROGRAMME,24.Feb.17,842.68,SERVOL COMMUNITY TRUST,Invoice
ASC,SOCIAL SERVICES,Revenue,VOL ASS,SUPPORTED HOUSING PROGRAMME,24.Feb.17,842.68,SERVOL COMMUNITY TRUST,Invoice
ASC,SOCIAL SERVICES,Revenue,VOL ASS,SUPPORTED HOUSING PROGRAMME,24.Feb.17,794.32,SERVOL COMMUNITY TRUST,Invoice
ASC,SOCIAL SERVICES,Revenue,VOL ASS,SUPPORTED HOUSING PROGRAMME,24.Feb.17,842.68,SERVOL COMMUNITY TRUST,Invoice
ASC,SOCIAL SERVICES,Revenue,VOL ASS,SUPPORTED HOUSING PROGRAMME,24.Feb.17,842.68,SERVOL COMMUNITY TRUST,Invoice
ASC,SOCIAL SERVICES,Revenue,VOL ASS,SUPPORTED HOUSING PROGRAMME,24.Feb.17,842.68,SERVOL COMMUNITY TRUST,Invoice
ASC,SOCIAL SERVICES,Revenue,VOL ASS,SUPPORTED HOUSING PROGRAMME,27.Feb.17,818.09,SERVOL COMMUNITY TRUST,Invoice
ASC,SOCIAL SERVICES,Revenue,VOL ASS,SUPPORTED HOUSING PROGRAMME,27.Feb.17,745.90,SERVOL COMMUNITY TRUST,Invoice
ASC,SOCIAL SERVICES,Revenue,VOL ASS,SUPPORTED HOUSING PROGRAMME,27.Feb.17,673.72,SERVOL COMMUNITY TRUST,Invoice
ASC,SOCIAL SERVICES,Revenue,VOL ASS,SUPPORTED HOUSING PROGRAMME,03.Feb.17,3055.71,SUMMIT LODGE,Invoice
ASC,SOCIAL SERVICES,Revenue,VOL ASS,SUPPORTED HOUSING PROGRAMME,03.Feb.17,2967.14,SUMMIT LODGE,Invoice
ASC,SOCIAL SERVICES,Revenue,VOL ASS,SUPPORTED HOUSING PROGRAMME,03.Feb.17,2878.57,SUMMIT LODGE,Invoice
ASC,SOCIAL SERVICES,Revenue,VOL ASS,SUPPORTED HOUSING PROGRAMME,22.Feb.17,1084.29,SUMMIT LODGE,Invoice
ASC,SOCIAL SERVICES,Revenue,VOL ASS,SUPPORTED HOUSING PROGRAMME,22.Feb.17,3055.71,SUMMIT LODGE,Invoice
ASC,SOCIAL SERVICES,Revenue,VOL ASS,SUPPORTED HOUSING PROGRAMME,17.Feb.17,543.96,THE RICHMOND FELLOWSHIP,Invoice
ASC,SOCIAL SERVICES,Revenue,VOL ASS,SUPPORTED HOUSING PROGRAMME,17.Feb.17,543.96,THE RICHMOND FELLOWSHIP,Invoice
ASC,SOCIAL SERVICES,Revenue,VOL ASS,SUPPORTED HOUSING PROGRAMME,17.Feb.17,543.88,THE RICHMOND FELLOWSHIP,Invoice
ASC,SOCIAL SERVICES,Revenue,VOL ASS,SUPPORTED HOUSING PROGRAMME,17.Feb.17,543.88,THE RICHMOND FELLOWSHIP,Invoice
ASC,SOCIAL SERVICES,Revenue,VOL ASS,SUPPORTED HOUSING PROGRAMME,17.Feb.17,543.96,THE RICHMOND FELLOWSHIP,Invoice
ASC,SOCIAL SERVICES,Revenue,VOL ASS,SUPPORTED HOUSING PROGRAMME,15.Feb.17,865.84,VIRIDIAN HOUSING,Invoice
ASC,SOCIAL SERVICES,Revenue,DIRECT,DIRECT PAYMENTS,07.Feb.17,526.11,VIBRANCE,Invoice
ASC,SOCIAL SERVICES,Revenue,DIRECT,DIRECT PAYMENTS,09.Feb.17,1429.39,VIBRANCE,Invoice
ASC,SOCIAL SERVICES,Revenue,DIRECT,DIRECT PAYMENTS,17.Feb.17,738.78,VIBRANCE,Invoice
ASC,SOCIAL SERVICES,Revenue,DIRECT,DIRECT PAYMENTS,20.Feb.17,664.44,VIBRANCE,Invoice
ASC,SOCIAL SERVICES,Revenue,DIRECT,DIRECT PAYMENTS,20.Feb.17,1403.56,VIBRANCE,Invoice
ASC,SOCIAL SERVICES,Revenue,DIRECT,DIRECT PAYMENTS,20.Feb.17,718.16,VIBRANCE,Invoice
ASC,SOCIAL SERVICES,Revenue,DIRECT,DIRECT PAYMENTS,20.Feb.17,724.80,VIBRANCE,Invoice
ASC,SOCIAL SERVICES,Revenue,DIRECT,DIRECT PAYMENTS,20.Feb.17,1255.84,VIBRANCE,Invoice
ASC,SOCIAL SERVICES,Revenue,DIRECT,DIRECT PAYMENTS,20.Feb.17,1018.96,VIBRANCE,Invoice
ASC,SOCIAL SERVICES,Revenue,CUSTOMER & CLIENT RECPTS - EXT,CL CONT EXTERNAL NURSING S28A,24.Feb.17,-522.80,ROSEDENE NURSING HOME,Invoice
ASC,SOCIAL SERVICES,Revenue,CUSTOMER & CLIENT RECPTS - EXT,CL CONT EXTERNAL RESIDENTIAL,24.Feb.17,-1038.52,ABBEY HOUSE,Invoice
ASC,SOCIAL SERVICES,Revenue,CUSTOMER & CLIENT RECPTS - EXT,CL CONT EXTERNAL RESIDENTIAL,09.Feb.17,-418.32,ACTION ON HEARING LOSS,Invoice
ASC,SOCIAL SERVICES,Revenue,CUSTOMER & CLIENT RECPTS - EXT,CL CONT EXTERNAL RESIDENTIAL,16.Feb.17,-321.80,ACTION ON HEARING LOSS,Invoice
ASC,SOCIAL SERVICES,Revenue,CUSTOMER & CLIENT RECPTS - EXT,CL CONT EXTERNAL RESIDENTIAL,17.Feb.17,-321.80,ACTION ON HEARING LOSS,Invoice
ASC,SOCIAL SERVICES,Revenue,CUSTOMER & CLIENT RECPTS - EXT,CL CONT EXTERNAL RESIDENTIAL,17.Feb.17,-321.80,ACTION ON HEARING LOSS,Invoice
ASC,SOCIAL SERVICES,Revenue,CUSTOMER & CLIENT RECPTS - EXT,CL CONT EXTERNAL RESIDENTIAL,17.Feb.17,-321.80,ACTION ON HEARING LOSS,Invoice
ASC,SOCIAL SERVICES,Revenue,CUSTOMER & CLIENT RECPTS - EXT,CL CONT EXTERNAL RESIDENTIAL,17.Feb.17,-321.80,ACTION ON HEARING LOSS,Invoice
ASC,SOCIAL SERVICES,Revenue,CUSTOMER & CLIENT RECPTS - EXT,CL CONT EXTERNAL RESIDENTIAL,17.Feb.17,-418.32,ACTION ON HEARING LOSS,Invoice
ASC,SOCIAL SERVICES,Revenue,CUSTOMER & CLIENT RECPTS - EXT,CL CONT EXTERNAL RESIDENTIAL,02.Feb.17,-578.81,ASTRA HOMES LTD,Invoice
ASC,SOCIAL SERVICES,Revenue,CUSTOMER & CLIENT RECPTS - EXT,CL CONT EXTERNAL RESIDENTIAL,02.Feb.17,-560.14,ASTRA HOMES LTD,Invoice
ASC,SOCIAL SERVICES,Revenue,CUSTOMER & CLIENT RECPTS - EXT,CL CONT EXTERNAL RESIDENTIAL,02.Feb.17,-578.82,ASTRA HOMES LTD,Invoice
ASC,SOCIAL SERVICES,Revenue,CUSTOMER & CLIENT RECPTS - EXT,CL CONT EXTERNAL RESIDENTIAL,08.Feb.17,-389.71,ASTRA HOMES LTD,Invoice
ASC,SOCIAL SERVICES,Revenue,CUSTOMER & CLIENT RECPTS - EXT,CL CONT EXTERNAL RESIDENTIAL,09.Feb.17,-452.57,ASTRA HOMES LTD,Invoice
ASC,SOCIAL SERVICES,Revenue,CUSTOMER & CLIENT RECPTS - EXT,CL CONT EXTERNAL RESIDENTIAL,24.Feb.17,-522.80,ASTRA HOMES LTD,Invoice
ASC,SOCIAL SERVICES,Revenue,CUSTOMER & CLIENT RECPTS - EXT,CL CONT EXTERNAL RESIDENTIAL,23.Feb.17,-464.50,BROADREACH HOUSE,Invoice
ASC,SOCIAL SERVICES,Revenue,CUSTOMER & CLIENT RECPTS - EXT,CL CONT EXTERNAL RESIDENTIAL,24.Feb.17,-522.80,COUNTRY COURT CARE,Invoice
ASC,SOCIAL SERVICES,Revenue,CUSTOMER & CLIENT RECPTS - EXT,CL CONT EXTERNAL RESIDENTIAL,24.Feb.17,-400.60,CROWNWISE LTD,Invoice
ASC,SOCIAL SERVICES,Revenue,CUSTOMER & CLIENT RECPTS - EXT,CL CONT EXTERNAL RESIDENTIAL,24.Feb.17,-522.80,CROWNWISE LTD,Invoice
ASC,SOCIAL SERVICES,Revenue,CUSTOMER & CLIENT RECPTS - EXT,CL CONT EXTERNAL RESIDENTIAL,24.Feb.17,-400.60,DEEPDENE CARE LTD,Invoice
ASC,SOCIAL SERVICES,Revenue,CUSTOMER & CLIENT RECPTS - EXT,CL CONT EXTERNAL RESIDENTIAL,24.Feb.17,-522.80,DEEPDENE CARE LTD,Invoice
ASC,SOCIAL SERVICES,Revenue,CUSTOMER & CLIENT RECPTS - EXT,CL CONT EXTERNAL RESIDENTIAL,24.Feb.17,-522.80,DEEPDENE CARE LTD,Invoice
ASC,SOCIAL SERVICES,Revenue,CUSTOMER & CLIENT RECPTS - EXT,CL CONT EXTERNAL RESIDENTIAL,24.Feb.17,-522.80,DEEPDENE CARE LTD,Invoice
ASC,SOCIAL SERVICES,Revenue,CUSTOMER & CLIENT RECPTS - EXT,CL CONT EXTERNAL RESIDENTIAL,03.Feb.17,-443.52,MOUNT CARMEL,Invoice
ASC,SOCIAL SERVICES,Revenue,CUSTOMER & CLIENT RECPTS - EXT,CL CONT EXTERNAL RESIDENTIAL,17.Feb.17,-578.81,QUANTUM CARE LTD,Invoice
ASC,SOCIAL SERVICES,Revenue,CUSTOMER & CLIENT RECPTS - EXT,CL CONT EXTERNAL RESIDENTIAL,24.Feb.17,-559.76,REDACTED PERSONAL DATA,Invoice
ASC,SOCIAL SERVICES,Revenue,CUSTOMER & CLIENT RECPTS - EXT,CL CONT EXTERNAL RESIDENTIAL,24.Feb.17,-522.80,REDACTED PERSONAL DATA,Invoice
ASC,SOCIAL SERVICES,Revenue,CUSTOMER & CLIENT RECPTS - EXT,CL CONT EXTERNAL RESIDENTIAL,24.Feb.17,-522.80,REDACTED PERSONAL DATA,Invoice
ASC,SOCIAL SERVICES,Revenue,CUSTOMER & CLIENT RECPTS - EXT,CL CONT EXTERNAL RESIDENTIAL,24.Feb.17,-400.60,ROSENMANOR LTD,Invoice
ASC,SOCIAL SERVICES,Revenue,CUSTOMER & CLIENT RECPTS - EXT,CL CONT EXTERNAL RESIDENTIAL,03.Feb.17,-199.69,WESTCLIFFE HOUSE LTD,Invoice
ASC,SOCIAL SERVICES,Revenue,CUSTOMER & CLIENT RECPTS - EXT,CL CONT EXTERNAL RESIDENTIAL,23.Feb.17,-522.80,WILLOWMEAD RESIDENTIAL HOME LTD,Invoice
ASC,SOCIAL SERVICES,Revenue,CUSTOMER & CLIENT RECPTS - EXT,CLIENT CONTS EXTERNAL NURSING,09.Feb.17,-252.84,ACTION ON HEARING LOSS,Invoice
ASC,SOCIAL SERVICES,Revenue,CUSTOMER & CLIENT RECPTS - EXT,CLIENT CONTS EXTERNAL NURSING,17.Feb.17,-310.31,ACTION ON HEARING LOSS,Invoice
ASC,SOCIAL SERVICES,Revenue,CUSTOMER & CLIENT RECPTS - EXT,CLIENT CONTS EXTERNAL NURSING,24.Feb.17,-530.12,LIFESTYLE CARE MANAGEMENT LTD,Invoice
ASC,SOCIAL SERVICES,Revenue,CUSTOMER & CLIENT RECPTS - EXT,CLIENT CONTS EXTERNAL NURSING,24.Feb.17,-522.80,ROSEDENE NURSING HOME,Invoice
ASC,SOCIAL SERVICES,Revenue,CUSTOMER & CLIENT RECPTS - EXT,CLIENT CONTS EXTERNAL NURSING,24.Feb.17,-797.48,TRILODGE LTD,Invoice
ASC,SOCIAL SERVICES,Revenue,CUSTOMER & CLIENT RECPTS - EXT,CLIENT CONTS EXTERNAL NURSING,24.Feb.17,-652.35,TRINITY COURT NURSING HOME,Invoice
ASC,SOCIAL SERVICES,Revenue,CUSTOMER & CLIENT RECPTS - EXT,CLIENT CONTS EXTERNAL NURSING,24.Feb.17,-859.15,TRINITY COURT NURSING HOME,Invoice
ASC,SOCIAL SERVICES,Revenue,CUSTOMER & CLIENT RECPTS - EXT,RNCC,09.Feb.17,-491.07,ACTION ON HEARING LOSS,Invoice
ASC,SOCIAL SERVICES,Revenue,CUSTOMER & CLIENT RECPTS - EXT,RNCC,17.Feb.17,-602.68,ACTION ON HEARING LOSS,Invoice
ASC,SOCIAL SERVICES,Revenue,CUSTOMER & CLIENT RECPTS - EXT,RNCC,24.Feb.17,-625.00,GEORGE POTTER CARE HOME LTD,Invoice
ASC,SOCIAL SERVICES,Revenue,CUSTOMER & CLIENT RECPTS - EXT,RNCC,24.Feb.17,-1741.07,HAVELOCK COURT NURSING HOME,Invoice
ASC,SOCIAL SERVICES,Revenue,CUSTOMER & CLIENT RECPTS - EXT,RNCC,24.Feb.17,-625.00,LIFESTYLE CARE MANAGEMENT LTD,Invoice
ASC,SOCIAL SERVICES,Revenue,CUSTOMER & CLIENT RECPTS - EXT,RNCC,24.Feb.17,-625.00,LIFESTYLE CARE MANAGEMENT LTD,Invoice
ASC,SOCIAL SERVICES,Revenue,CUSTOMER & CLIENT RECPTS - EXT,RNCC,24.Feb.17,-1606.75,LYNTON HALL NURSING HOME,Invoice
ASC,SOCIAL SERVICES,Revenue,CUSTOMER & CLIENT RECPTS - EXT,RNCC,27.Feb.17,-625.00,MHA CARE GROUP,Invoice
ASC,SOCIAL SERVICES,Revenue,CUSTOMER & CLIENT RECPTS - EXT,RNCC,27.Feb.17,-625.00,MHA CARE GROUP,Invoice
ASC,SOCIAL SERVICES,Revenue,CUSTOMER & CLIENT RECPTS - EXT,RNCC,24.Feb.17,-625.00,ROSEDENE NURSING HOME,Invoice
ASC,SOCIAL SERVICES,Revenue,CUSTOMER & CLIENT RECPTS - EXT,RNCC,24.Feb.17,-625.00,ROSEDENE NURSING HOME,Invoice
ASC,SOCIAL SERVICES,Revenue,CUSTOMER & CLIENT RECPTS - EXT,RNCC,24.Feb.17,-625.00,ROSEDENE NURSING HOME,Invoice
ASC,SOCIAL SERVICES,Revenue,CUSTOMER & CLIENT RECPTS - EXT,RNCC,24.Feb.17,-625.00,ROSEDENE NURSING HOME,Invoice
ASC,SOCIAL SERVICES,Revenue,CUSTOMER & CLIENT RECPTS - EXT,RNCC,24.Feb.17,-625.00,ROSEDENE NURSING HOME,Invoice
ASC,SOCIAL SERVICES,Revenue,CUSTOMER & CLIENT RECPTS - EXT,RNCC,24.Feb.17,-625.00,TRILODGE LTD,Invoice
ASC,SOCIAL SERVICES,Revenue,CUSTOMER & CLIENT RECPTS - EXT,RNCC,24.Feb.17,-625.00,TRINITY COURT NURSING HOME,Invoice
ASC,SOCIAL SERVICES,Revenue,CUSTOMER & CLIENT RECPTS - EXT,RNCC,24.Feb.17,-625.00,TRINITY COURT NURSING HOME,Invoice
ASC,SOCIAL SERVICES,Revenue,CUSTOMER & CLIENT RECPTS - EXT,RNCC,24.Feb.17,-625.00,TRINITY COURT NURSING HOME,Invoice
ASC,SOCIAL SERVICES,Revenue,CUSTOMER & CLIENT RECPTS - EXT,RNCC,24.Feb.17,-625.00,TRINITY COURT NURSING HOME,Invoice
ASC,SOCIAL SERVICES,Revenue,CUSTOMER & CLIENT RECPTS - EXT,RNCC,24.Feb.17,-625.00,TRINITY COURT NURSING HOME,Invoice
ASC,SOCIAL SERVICES,Revenue,CUSTOMER & CLIENT RECPTS - EXT,SECTION 117 CONT,24.Feb.17,-2747.20,ROSEDENE NURSING HOME,Invoice
ASC,SOCIAL SERVICES,Revenue,PRIVATE,EXTERNAL HOMECARE,10.Feb.17,649.68,DAY AND NITE CARE,Invoice
ASC,SOCIAL SERVICES,Revenue,PRIVATE,EXTERNAL RESIDENTIAL CARE,24.Feb.17,4656.00,CROWNWISE LTD,Invoice
ASC,SOCIAL SERVICES,Revenue,VOL ASS,SUPPORTED HOUSING PROGRAMME,17.Feb.17,543.96,THE RICHMOND FELLOWSHIP,Invoice
ASC,SOCIAL SERVICES,Revenue,CUSTOMER & CLIENT RECPTS - EXT,CL CONT EXTERNAL RESIDENTIAL,24.Feb.17,-715.77,CROWNWISE LTD,Invoice
ASC,SOCIAL SERVICES,Revenue,CUSTOMER & CLIENT RECPTS - EXT,CL CONT EXTERNAL RESIDENTIAL,09.Feb.17,107.00,ASTRA HOMES LTD,Invoice
PH,,Revenue,GRANTS & SUBSCRIPTIONS,CONTRACTS TO VOLUNTARY ORGS,24.Feb.17,32954.25,TOGETHER WORKING FOR WELLBEING,Invoice
PH,,Revenue,GRANTS & SUBSCRIPTIONS,CONTRACTS TO VOLUNTARY ORGS,20.Feb.17,32954.25,TOGETHER WORKING FOR WELLBEING,Invoice
ASC,,Revenue,"EQUIPMENT, FURNITURE & MATS","EQUIPMENT, FURNITURE & MATS",22.Feb.17,375.00,HUMANWARE EUROPE LTD,Invoice
ASC,,Revenue,"EQUIPMENT, FURNITURE & MATS","EQUIPMENT, FURNITURE & MATS",22.Feb.17,2300.00,HUMANWARE EUROPE LTD,Invoice
ASC,,Revenue,"EQUIPMENT, FURNITURE & MATS","EQUIPMENT, FURNITURE & MATS",22.Feb.17,20.00,HUMANWARE EUROPE LTD,Invoice
ASC,SOCIAL SERVICES,Revenue,HIRE,HIRE - TRANSPORT,03.Feb.17,816.00,PARKER CARS LIMITED,Invoice
ASC,SOCIAL SERVICES,Revenue,PRIVATE,EXTERNAL HOMECARE,09.Feb.17,532.50,DAY AND NITE CARE,Invoice
ASC,SOCIAL SERVICES,Revenue,PRIVATE,EXTERNAL HOMECARE,10.Feb.17,1053.68,DAY AND NITE CARE,Invoice
ASC,SOCIAL SERVICES,Revenue,PRIVATE,EXTERNAL HOMECARE,10.Feb.17,661.00,DAY AND NITE CARE,Invoice
ASC,SOCIAL SERVICES,Revenue,PRIVATE,EXTERNAL HOMECARE,10.Feb.17,1025.68,DAY AND NITE CARE,Invoice
ASC,SOCIAL SERVICES,Revenue,PRIVATE,EXTERNAL HOMECARE,13.Feb.17,744.16,GOLDSBOROUGH HOMECARE & NURSING SERVICES,Invoice
ASC,SOCIAL SERVICES,Revenue,PRIVATE,EXTERNAL HOMECARE,13.Feb.17,968.51,GOLDSBOROUGH HOMECARE & NURSING SERVICES,Invoice
ASC,SOCIAL SERVICES,Revenue,PRIVATE,EXTERNAL HOMECARE,13.Feb.17,2590.92,GOLDSBOROUGH HOMECARE & NURSING SERVICES,Invoice
ASC,SOCIAL SERVICES,Revenue,PRIVATE,EXTERNAL HOMECARE,13.Feb.17,916.37,GOLDSBOROUGH HOMECARE & NURSING SERVICES,Invoice
ASC,SOCIAL SERVICES,Revenue,PRIVATE,EXTERNAL HOMECARE,13.Feb.17,545.56,GOLDSBOROUGH HOMECARE & NURSING SERVICES,Invoice
ASC,SOCIAL SERVICES,Revenue,PRIVATE,EXTERNAL HOMECARE,13.Feb.17,780.64,GOLDSBOROUGH HOMECARE & NURSING SERVICES,Invoice
ASC,SOCIAL SERVICES,Revenue,PRIVATE,EXTERNAL HOMECARE,13.Feb.17,1094.25,GOLDSBOROUGH HOMECARE & NURSING SERVICES,Invoice
ASC,SOCIAL SERVICES,Revenue,PRIVATE,EXTERNAL HOMECARE,03.Feb.17,1124.50,KERR-CARE AT HOME SERVICE LTD T/A RIGHT,Invoice
ASC,SOCIAL SERVICES,Revenue,PRIVATE,EXTERNAL HOMECARE,03.Feb.17,681.28,KERR-CARE AT HOME SERVICE LTD T/A RIGHT,Invoice
ASC,SOCIAL SERVICES,Revenue,PRIVATE,EXTERNAL HOMECARE,24.Feb.17,1124.50,KERR-CARE AT HOME SERVICE LTD T/A RIGHT,Invoice
ASC,SOCIAL SERVICES,Revenue,PRIVATE,EXTERNAL HOMECARE,24.Feb.17,681.28,KERR-CARE AT HOME SERVICE LTD T/A RIGHT,Invoice
ASC,SOCIAL SERVICES,Revenue,PRIVATE,EXTERNAL HOMECARE,24.Feb.17,1124.50,KERR-CARE AT HOME SERVICE LTD T/A RIGHT,Invoice
ASC,SOCIAL SERVICES,Revenue,PRIVATE,EXTERNAL HOMECARE,24.Feb.17,681.28,KERR-CARE AT HOME SERVICE LTD T/A RIGHT,Invoice
ASC,SOCIAL SERVICES,Revenue,PRIVATE,EXTERNAL HOMECARE,13.Feb.17,1319.00,LIM INDEPENDENT LIVEING & COMMUNITY CARE,Invoice
ASC,SOCIAL SERVICES,Revenue,PRIVATE,EXTERNAL HOMECARE,20.Feb.17,1864.00,LIM INDEPENDENT LIVEING & COMMUNITY CARE,Invoice
ASC,SOCIAL SERVICES,Revenue,PRIVATE,EXTERNAL HOMECARE,20.Feb.17,985.00,LIM INDEPENDENT LIVEING & COMMUNITY CARE,Invoice
ASC,SOCIAL SERVICES,Revenue,PRIVATE,EXTERNAL HOMECARE,20.Feb.17,636.25,LIM INDEPENDENT LIVEING & COMMUNITY CARE,Invoice
ASC,SOCIAL SERVICES,Revenue,PRIVATE,EXTERNAL HOMECARE,20.Feb.17,1080.00,LIM INDEPENDENT LIVEING & COMMUNITY CARE,Invoice
ASC,SOCIAL SERVICES,Revenue,PRIVATE,EXTERNAL HOMECARE,14.Feb.17,640.00,MANAGING CARE LIMITED,Invoice
ASC,SOCIAL SERVICES,Revenue,PRIVATE,EXTERNAL HOMECARE,14.Feb.17,1659.20,MANAGING CARE LIMITED,Invoice
ASC,SOCIAL SERVICES,Revenue,PRIVATE,EXTERNAL HOMECARE,14.Feb.17,1286.40,MANAGING CARE LIMITED,Invoice
ASC,SOCIAL SERVICES,Revenue,PRIVATE,EXTERNAL HOMECARE,20.Feb.17,829.60,MANAGING CARE LIMITED,Invoice
ASC,SOCIAL SERVICES,Revenue,PRIVATE,EXTERNAL HOMECARE,20.Feb.17,643.20,MANAGING CARE LIMITED,Invoice
ASC,SOCIAL SERVICES,Revenue,PRIVATE,EXTERNAL HOMECARE,03.Feb.17,709.00,MEARS CARE LTD,Invoice
ASC,SOCIAL SERVICES,Revenue,PRIVATE,EXTERNAL HOMECARE,03.Feb.17,1002.50,MEARS CARE LTD,Invoice
ASC,SOCIAL SERVICES,Revenue,PRIVATE,EXTERNAL HOMECARE,03.Feb.17,876.96,MEARS CARE LTD,Invoice
ASC,SOCIAL SERVICES,Revenue,PRIVATE,EXTERNAL HOMECARE,03.Feb.17,636.19,MEARS CARE LTD,Invoice
ASC,SOCIAL SERVICES,Revenue,PRIVATE,EXTERNAL HOMECARE,03.Feb.17,1038.00,MEARS CARE LTD,Invoice
ASC,SOCIAL SERVICES,Revenue,PRIVATE,EXTERNAL HOMECARE,03.Feb.17,2338.77,MEARS CARE LTD,Invoice
ASC,SOCIAL SERVICES,Revenue,PRIVATE,EXTERNAL HOMECARE,03.Feb.17,785.25,MEARS CARE LTD,Invoice
ASC,SOCIAL SERVICES,Revenue,PRIVATE,EXTERNAL HOMECARE,03.Feb.17,1179.12,MEARS CARE LTD,Invoice
ASC,SOCIAL SERVICES,Revenue,PRIVATE,EXTERNAL HOMECARE,03.Feb.17,1210.66,MEARS CARE LTD,Invoice
ASC,SOCIAL SERVICES,Revenue,PRIVATE,EXTERNAL HOMECARE,03.Feb.17,1108.00,MEARS CARE LTD,Invoice
ASC,SOCIAL SERVICES,Revenue,PRIVATE,EXTERNAL HOMECARE,03.Feb.17,625.96,MEARS CARE LTD,Invoice
ASC,SOCIAL SERVICES,Revenue,PRIVATE,EXTERNAL HOMECARE,03.Feb.17,876.96,MEARS CARE LTD,Invoice
ASC,SOCIAL SERVICES,Revenue,PRIVATE,EXTERNAL HOMECARE,03.Feb.17,704.20,MEARS CARE LTD,Invoice
ASC,SOCIAL SERVICES,Revenue,PRIVATE,EXTERNAL HOMECARE,03.Feb.17,1031.68,MEARS CARE LTD,Invoice
ASC,SOCIAL SERVICES,Revenue,PRIVATE,EXTERNAL HOMECARE,03.Feb.17,2007.70,MEARS CARE LTD,Invoice
ASC,SOCIAL SERVICES,Revenue,PRIVATE,EXTERNAL HOMECARE,03.Feb.17,627.02,MEARS CARE LTD,Invoice
ASC,SOCIAL SERVICES,Revenue,PRIVATE,EXTERNAL HOMECARE,17.Feb.17,598.13,MEARS CARE LTD,Invoice
ASC,SOCIAL SERVICES,Revenue,PRIVATE,EXTERNAL HOMECARE,17.Feb.17,1232.80,MEARS CARE LTD,Invoice
ASC,SOCIAL SERVICES,Revenue,PRIVATE,EXTERNAL HOMECARE,09.Feb.17,680.00,MOP AND BROOM,Invoice
ASC,SOCIAL SERVICES,Revenue,PRIVATE,EXTERNAL HOMECARE,01.Feb.17,717.58,MUSHKIL AASAAN LTD,Invoice
ASC,SOCIAL SERVICES,Revenue,PRIVATE,EXTERNAL HOMECARE,01.Feb.17,1248.69,MUSHKIL AASAAN LTD,Invoice
ASC,SOCIAL SERVICES,Revenue,PRIVATE,EXTERNAL HOMECARE,01.Feb.17,553.71,MUSHKIL AASAAN LTD,Invoice
ASC,SOCIAL SERVICES,Revenue,PRIVATE,EXTERNAL HOMECARE,03.Feb.17,615.52,PARKGATE NURSING AGENCY,Invoice
ASC,SOCIAL SERVICES,Revenue,PRIVATE,EXTERNAL HOMECARE,03.Feb.17,652.24,PARKGATE NURSING AGENCY,Invoice
ASC,SOCIAL SERVICES,Revenue,PRIVATE,EXTERNAL HOMECARE,14.Feb.17,850.88,PARKGATE NURSING AGENCY,Invoice
ASC,SOCIAL SERVICES,Revenue,PRIVATE,EXTERNAL HOMECARE,14.Feb.17,627.10,PARKGATE NURSING AGENCY,Invoice
ASC,SOCIAL SERVICES,Revenue,PRIVATE,EXTERNAL HOMECARE,14.Feb.17,962.43,PARKGATE NURSING AGENCY,Invoice
ASC,SOCIAL SERVICES,Revenue,PRIVATE,EXTERNAL HOMECARE,16.Feb.17,282.00,PROFESSIONAL CARE SUPPORT SERVICES LTD,Invoice
ASC,SOCIAL SERVICES,Revenue,PRIVATE,EXTERNAL HOMECARE,16.Feb.17,1211.40,PROFESSIONAL CARE SUPPORT SERVICES LTD,Invoice
ASC,SOCIAL SERVICES,Revenue,PRIVATE,EXTERNAL HOMECARE,16.Feb.17,1043.40,PROFESSIONAL CARE SUPPORT SERVICES LTD,Invoice
ASC,SOCIAL SERVICES,Revenue,PRIVATE,EXTERNAL HOMECARE,16.Feb.17,1201.48,PROFESSIONAL CARE SUPPORT SERVICES LTD,Invoice
ASC,SOCIAL SERVICES,Revenue,PRIVATE,EXTERNAL HOMECARE,16.Feb.17,1319.60,PROFESSIONAL CARE SUPPORT SERVICES LTD,Invoice
ASC,SOCIAL SERVICES,Revenue,PRIVATE,EXTERNAL HOMECARE,16.Feb.17,1249.80,PROFESSIONAL CARE SUPPORT SERVICES LTD,Invoice
ASC,SOCIAL SERVICES,Revenue,PRIVATE,EXTERNAL HOMECARE,16.Feb.17,1249.80,PROFESSIONAL CARE SUPPORT SERVICES LTD,Invoice
ASC,SOCIAL SERVICES,Revenue,PRIVATE,EXTERNAL HOMECARE,16.Feb.17,675.64,PROFESSIONAL CARE SUPPORT SERVICES LTD,Invoice
ASC,SOCIAL SERVICES,Revenue,PRIVATE,EXTERNAL HOMECARE,16.Feb.17,1822.00,PROFESSIONAL CARE SUPPORT SERVICES LTD,Invoice
ASC,SOCIAL SERVICES,Revenue,PRIVATE,EXTERNAL HOMECARE,22.Feb.17,43.48,PROFESSIONAL CARE SUPPORT SERVICES LTD,Invoice
ASC,SOCIAL SERVICES,Revenue,PRIVATE,EXTERNAL HOMECARE,09.Feb.17,1447.35,RAINBOW MEDICAL SERVICES,Invoice
ASC,SOCIAL SERVICES,Revenue,PRIVATE,EXTERNAL HOMECARE,08.Feb.17,834.75,SOMA HEALTHCARE LTD,Invoice
ASC,SOCIAL SERVICES,Revenue,PRIVATE,EXTERNAL HOMECARE,14.Feb.17,1989.88,SUPREME CARE SERVICE LTD,Invoice
ASC,SOCIAL SERVICES,Revenue,PRIVATE,EXTERNAL HOMECARE,14.Feb.17,2040.08,SUPREME CARE SERVICE LTD,Invoice
ASC,SOCIAL SERVICES,Revenue,PRIVATE,EXTERNAL HOMECARE,14.Feb.17,552.72,SUPREME CARE SERVICE LTD,Invoice
ASC,SOCIAL SERVICES,Revenue,PRIVATE,EXTERNAL HOMECARE,14.Feb.17,128.22,SUPREME CARE SERVICE LTD,Invoice
ASC,SOCIAL SERVICES,Revenue,PRIVATE,EXTERNAL HOMECARE,14.Feb.17,831.65,SUPREME CARE SERVICE LTD,Invoice
ASC,SOCIAL SERVICES,Revenue,PRIVATE,EXTERNAL HOMECARE,14.Feb.17,524.25,SUPREME CARE SERVICE LTD,Invoice
ASC,SOCIAL SERVICES,Revenue,PRIVATE,EXTERNAL HOMECARE,06.Feb.17,1769.07,WESTMINSTER HOMECARE LTD,Invoice
ASC,SOCIAL SERVICES,Revenue,PRIVATE,EXTERNAL HOMECARE,06.Feb.17,601.12,WESTMINSTER HOMECARE LTD,Invoice
ASC,SOCIAL SERVICES,Revenue,PRIVATE,EXTERNAL HOMECARE,06.Feb.17,781.75,WESTMINSTER HOMECARE LTD,Invoice
ASC,SOCIAL SERVICES,Revenue,PRIVATE,EXTERNAL HOMECARE,06.Feb.17,604.76,WESTMINSTER HOMECARE LTD,Invoice
ASC,SOCIAL SERVICES,Revenue,PRIVATE,EXTERNAL HOMECARE,06.Feb.17,770.28,WESTMINSTER HOMECARE LTD,Invoice
ASC,SOCIAL SERVICES,Revenue,PRIVATE,EXTERNAL HOMECARE,06.Feb.17,588.04,WESTMINSTER HOMECARE LTD,Invoice
ASC,SOCIAL SERVICES,Revenue,PRIVATE,EXTERNAL HOMECARE,06.Feb.17,652.28,WESTMINSTER HOMECARE LTD,Invoice
ASC,SOCIAL SERVICES,Revenue,PRIVATE,EXTERNAL HOMECARE,06.Feb.17,612.93,WESTMINSTER HOMECARE LTD,Invoice
ASC,SOCIAL SERVICES,Revenue,PRIVATE,EXTERNAL HOMECARE,06.Feb.17,614.76,WESTMINSTER HOMECARE LTD,Invoice
ASC,SOCIAL SERVICES,Revenue,PRIVATE,EXTERNAL HOMECARE,06.Feb.17,664.43,WESTMINSTER HOMECARE LTD,Invoice
ASC,SOCIAL SERVICES,Revenue,PRIVATE,EXTERNAL HOMECARE,06.Feb.17,553.56,WESTMINSTER HOMECARE LTD,Invoice
ASC,SOCIAL SERVICES,Revenue,PRIVATE,EXTERNAL HOMECARE,06.Feb.17,826.84,WESTMINSTER HOMECARE LTD,Invoice
ASC,SOCIAL SERVICES,Revenue,PRIVATE,EXTERNAL HOMECARE,06.Feb.17,578.39,WESTMINSTER HOMECARE LTD,Invoice
ASC,SOCIAL SERVICES,Revenue,PRIVATE,EXTERNAL HOMECARE,06.Feb.17,841.52,WESTMINSTER HOMECARE LTD,Invoice
ASC,SOCIAL SERVICES,Revenue,PRIVATE,EXTERNAL HOMECARE,06.Feb.17,686.09,WESTMINSTER HOMECARE LTD,Invoice
ASC,SOCIAL SERVICES,Revenue,PRIVATE,EXTERNAL HOMECARE,06.Feb.17,742.00,WESTMINSTER HOMECARE LTD,Invoice
ASC,SOCIAL SERVICES,Revenue,PRIVATE,EXTERNAL HOMECARE,06.Feb.17,755.95,WESTMINSTER HOMECARE LTD,Invoice
ASC,SOCIAL SERVICES,Revenue,PRIVATE,EXTERNAL HOMECARE,06.Feb.17,672.84,WESTMINSTER HOMECARE LTD,Invoice
ASC,SOCIAL SERVICES,Revenue,PRIVATE,EXTERNAL HOMECARE,06.Feb.17,1105.60,WESTMINSTER HOMECARE LTD,Invoice
ASC,SOCIAL SERVICES,Revenue,PRIVATE,EXTERNAL HOMECARE,06.Feb.17,774.68,WESTMINSTER HOMECARE LTD,Invoice
ASC,SOCIAL SERVICES,Revenue,PRIVATE,EXTERNAL HOMECARE,06.Feb.17,1003.89,WESTMINSTER HOMECARE LTD,Invoice
ASC,SOCIAL SERVICES,Revenue,PRIVATE,EXTERNAL HOMECARE,06.Feb.17,1145.18,WESTMINSTER HOMECARE LTD,Invoice
ASC,SOCIAL SERVICES,Revenue,PRIVATE,EXTERNAL HOMECARE,06.Feb.17,734.28,WESTMINSTER HOMECARE LTD,Invoice
ASC,SOCIAL SERVICES,Revenue,PRIVATE,EXTERNAL HOMECARE,06.Feb.17,722.84,WESTMINSTER HOMECARE LTD,Invoice
ASC,SOCIAL SERVICES,Revenue,PRIVATE,EXTERNAL HOMECARE,06.Feb.17,595.28,WESTMINSTER HOMECARE LTD,Invoice
ASC,SOCIAL SERVICES,Revenue,PRIVATE,EXTERNAL HOMECARE,06.Feb.17,1157.08,WESTMINSTER HOMECARE LTD,Invoice
ASC,SOCIAL SERVICES,Revenue,PRIVATE,EXTERNAL HOMECARE,06.Feb.17,675.55,WESTMINSTER HOMECARE LTD,Invoice
ASC,SOCIAL SERVICES,Revenue,PRIVATE,EXTERNAL HOMECARE,06.Feb.17,592.14,WESTMINSTER HOMECARE LTD,Invoice
ASC,SOCIAL SERVICES,Revenue,PRIVATE,EXTERNAL HOMECARE,06.Feb.17,1133.06,WESTMINSTER HOMECARE LTD,Invoice
ASC,SOCIAL SERVICES,Revenue,PRIVATE,EXTERNAL HOMECARE,06.Feb.17,685.42,WESTMINSTER HOMECARE LTD,Invoice
ASC,SOCIAL SERVICES,Revenue,PRIVATE,EXTERNAL HOMECARE,06.Feb.17,526.86,WESTMINSTER HOMECARE LTD,Invoice
ASC,SOCIAL SERVICES,Revenue,PRIVATE,EXTERNAL HOMECARE,17.Feb.17,1771.64,WESTMINSTER HOMECARE LTD,Invoice
ASC,SOCIAL SERVICES,Revenue,PRIVATE,EXTERNAL HOMECARE,17.Feb.17,627.32,WESTMINSTER HOMECARE LTD,Invoice
ASC,SOCIAL SERVICES,Revenue,PRIVATE,EXTERNAL HOMECARE,17.Feb.17,780.66,WESTMINSTER HOMECARE LTD,Invoice
ASC,SOCIAL SERVICES,Revenue,PRIVATE,EXTERNAL HOMECARE,17.Feb.17,768.28,WESTMINSTER HOMECARE LTD,Invoice
ASC,SOCIAL SERVICES,Revenue,PRIVATE,EXTERNAL HOMECARE,17.Feb.17,544.80,WESTMINSTER HOMECARE LTD,Invoice
ASC,SOCIAL SERVICES,Revenue,PRIVATE,EXTERNAL HOMECARE,17.Feb.17,543.45,WESTMINSTER HOMECARE LTD,Invoice
ASC,SOCIAL SERVICES,Revenue,PRIVATE,EXTERNAL HOMECARE,17.Feb.17,714.76,WESTMINSTER HOMECARE LTD,Invoice
ASC,SOCIAL SERVICES,Revenue,PRIVATE,EXTERNAL HOMECARE,17.Feb.17,632.77,WESTMINSTER HOMECARE LTD,Invoice
ASC,SOCIAL SERVICES,Revenue,PRIVATE,EXTERNAL HOMECARE,17.Feb.17,834.84,WESTMINSTER HOMECARE LTD,Invoice
ASC,SOCIAL SERVICES,Revenue,PRIVATE,EXTERNAL HOMECARE,17.Feb.17,527.63,WESTMINSTER HOMECARE LTD,Invoice
ASC,SOCIAL SERVICES,Revenue,PRIVATE,EXTERNAL HOMECARE,17.Feb.17,848.00,WESTMINSTER HOMECARE LTD,Invoice
ASC,SOCIAL SERVICES,Revenue,PRIVATE,EXTERNAL HOMECARE,17.Feb.17,672.84,WESTMINSTER HOMECARE LTD,Invoice
ASC,SOCIAL SERVICES,Revenue,PRIVATE,EXTERNAL HOMECARE,17.Feb.17,742.00,WESTMINSTER HOMECARE LTD,Invoice
ASC,SOCIAL SERVICES,Revenue,PRIVATE,EXTERNAL HOMECARE,17.Feb.17,826.25,WESTMINSTER HOMECARE LTD,Invoice
ASC,SOCIAL SERVICES,Revenue,PRIVATE,EXTERNAL HOMECARE,17.Feb.17,1087.64,WESTMINSTER HOMECARE LTD,Invoice
ASC,SOCIAL SERVICES,Revenue,PRIVATE,EXTERNAL HOMECARE,17.Feb.17,578.78,WESTMINSTER HOMECARE LTD,Invoice
ASC,SOCIAL SERVICES,Revenue,PRIVATE,EXTERNAL HOMECARE,17.Feb.17,872.56,WESTMINSTER HOMECARE LTD,Invoice
ASC,SOCIAL SERVICES,Revenue,PRIVATE,EXTERNAL HOMECARE,17.Feb.17,1028.46,WESTMINSTER HOMECARE LTD,Invoice
ASC,SOCIAL SERVICES,Revenue,PRIVATE,EXTERNAL HOMECARE,17.Feb.17,1137.86,WESTMINSTER HOMECARE LTD,Invoice
ASC,SOCIAL SERVICES,Revenue,PRIVATE,EXTERNAL HOMECARE,17.Feb.17,743.29,WESTMINSTER HOMECARE LTD,Invoice
ASC,SOCIAL SERVICES,Revenue,PRIVATE,EXTERNAL HOMECARE,17.Feb.17,698.84,WESTMINSTER HOMECARE LTD,Invoice
ASC,SOCIAL SERVICES,Revenue,PRIVATE,EXTERNAL HOMECARE,17.Feb.17,557.56,WESTMINSTER HOMECARE LTD,Invoice
ASC,SOCIAL SERVICES,Revenue,PRIVATE,EXTERNAL HOMECARE,17.Feb.17,1174.88,WESTMINSTER HOMECARE LTD,Invoice
ASC,SOCIAL SERVICES,Revenue,PRIVATE,EXTERNAL HOMECARE,17.Feb.17,759.00,WESTMINSTER HOMECARE LTD,Invoice
ASC,SOCIAL SERVICES,Revenue,PRIVATE,EXTERNAL HOMECARE,17.Feb.17,701.28,WESTMINSTER HOMECARE LTD,Invoice
ASC,SOCIAL SERVICES,Revenue,PRIVATE,EXTERNAL HOMECARE,17.Feb.17,689.96,WESTMINSTER HOMECARE LTD,Invoice
ASC,SOCIAL SERVICES,Revenue,PRIVATE,EXTERNAL NURSING CARE,24.Feb.17,9145.50,ANS HOMES LTD,Invoice
ASC,SOCIAL SERVICES,Revenue,PRIVATE,EXTERNAL NURSING CARE,24.Feb.17,3198.00,ASHTON LODGE,Invoice
ASC,SOCIAL SERVICES,Revenue,PRIVATE,EXTERNAL NURSING CARE,02.Feb.17,3609.00,BARBARA AYLESBUR T/A WATERMEAD CARE HOME,Invoice
ASC,SOCIAL SERVICES,Revenue,PRIVATE,EXTERNAL NURSING CARE,16.Feb.17,3625.00,BARBARA AYLESBUR T/A WATERMEAD CARE HOME,Invoice
ASC,SOCIAL SERVICES,Revenue,PRIVATE,EXTERNAL NURSING CARE,24.Feb.17,3213.28,BUPA CARE SERVICES BACS RECEIPTS,Invoice
ASC,SOCIAL SERVICES,Revenue,PRIVATE,EXTERNAL NURSING CARE,24.Feb.17,3977.00,CARE UK COMMUNITY PARTNERSHIP,Invoice
ASC,SOCIAL SERVICES,Revenue,PRIVATE,EXTERNAL NURSING CARE,24.Feb.17,3977.00,CARE UK COMMUNITY PARTNERSHIP,Invoice
ASC,SOCIAL SERVICES,Revenue,PRIVATE,EXTERNAL NURSING CARE,24.Feb.17,-914.90,CHEGWORTH NURSING HOME (BAYSWIFT LTD),Invoice
ASC,SOCIAL SERVICES,Revenue,PRIVATE,EXTERNAL NURSING CARE,24.Feb.17,3054.72,CHEGWORTH NURSING HOME (BAYSWIFT LTD),Invoice
ASC,SOCIAL SERVICES,Revenue,PRIVATE,EXTERNAL NURSING CARE,24.Feb.17,3054.72,CHEGWORTH NURSING HOME (BAYSWIFT LTD),Invoice
ASC,SOCIAL SERVICES,Revenue,PRIVATE,EXTERNAL NURSING CARE,24.Feb.17,3577.00,CHEGWORTH NURSING HOME (BAYSWIFT LTD),Invoice
ASC,SOCIAL SERVICES,Revenue,PRIVATE,EXTERNAL NURSING CARE,24.Feb.17,3238.28,CHEGWORTH NURSING HOME (BAYSWIFT LTD),Invoice
ASC,SOCIAL SERVICES,Revenue,PRIVATE,EXTERNAL NURSING CARE,24.Feb.17,3054.72,CHEGWORTH NURSING HOME (BAYSWIFT LTD),Invoice
ASC,SOCIAL SERVICES,Revenue,PRIVATE,EXTERNAL NURSING CARE,24.Feb.17,2943.44,GEORGE POTTER CARE HOME LTD,Invoice
ASC,SOCIAL SERVICES,Revenue,PRIVATE,EXTERNAL NURSING CARE,24.Feb.17,2924.20,GEORGE POTTER CARE HOME LTD,Invoice
ASC,SOCIAL SERVICES,Revenue,PRIVATE,EXTERNAL NURSING CARE,24.Feb.17,3051.00,HYDEFALL LTD,Invoice
ASC,SOCIAL SERVICES,Revenue,PRIVATE,EXTERNAL NURSING CARE,02.Feb.17,11149.76,JESMUND CARE HOMES LIMITED,Invoice
ASC,SOCIAL SERVICES,Revenue,PRIVATE,EXTERNAL NURSING CARE,24.Feb.17,2975.56,LIFE STYLE CARE (2011) PLC,Invoice
ASC,SOCIAL SERVICES,Revenue,PRIVATE,EXTERNAL NURSING CARE,24.Feb.17,2818.16,LIFE STYLE CARE (2011) PLC,Invoice
ASC,SOCIAL SERVICES,Revenue,PRIVATE,EXTERNAL NURSING CARE,24.Feb.17,2995.16,LIFE STYLE CARE (2011) PLC,Invoice
ASC,SOCIAL SERVICES,Revenue,PRIVATE,EXTERNAL NURSING CARE,24.Feb.17,27.22,LIFESTYLE CARE MANAGEMENT LTD,Invoice
ASC,SOCIAL SERVICES,Revenue,PRIVATE,EXTERNAL NURSING CARE,24.Feb.17,0.38,LIFESTYLE CARE MANAGEMENT LTD,Invoice
ASC,SOCIAL SERVICES,Revenue,PRIVATE,EXTERNAL NURSING CARE,24.Feb.17,2800.20,LIFESTYLE CARE MANAGEMENT LTD,Invoice
ASC,SOCIAL SERVICES,Revenue,PRIVATE,EXTERNAL NURSING CARE,24.Feb.17,2800.20,LIFESTYLE CARE MANAGEMENT LTD,Invoice
ASC,SOCIAL SERVICES,Revenue,PRIVATE,EXTERNAL NURSING CARE,24.Feb.17,2800.20,LIFESTYLE CARE MANAGEMENT LTD,Invoice
ASC,SOCIAL SERVICES,Revenue,PRIVATE,EXTERNAL NURSING CARE,24.Feb.17,2899.76,LIFESTYLE CARE MANAGEMENT LTD,Invoice
ASC,SOCIAL SERVICES,Revenue,PRIVATE,EXTERNAL NURSING CARE,24.Feb.17,2899.76,LIFESTYLE CARE MANAGEMENT LTD,Invoice
ASC,SOCIAL SERVICES,Revenue,PRIVATE,EXTERNAL NURSING CARE,24.Feb.17,2899.76,LIFESTYLE CARE MANAGEMENT LTD,Invoice
ASC,SOCIAL SERVICES,Revenue,PRIVATE,EXTERNAL NURSING CARE,24.Feb.17,2899.76,LIFESTYLE CARE MANAGEMENT LTD,Invoice
ASC,SOCIAL SERVICES,Revenue,PRIVATE,EXTERNAL NURSING CARE,24.Feb.17,2899.76,LIFESTYLE CARE MANAGEMENT LTD,Invoice
ASC,SOCIAL SERVICES,Revenue,PRIVATE,EXTERNAL NURSING CARE,24.Feb.17,2899.76,LIFESTYLE CARE MANAGEMENT LTD,Invoice
ASC,SOCIAL SERVICES,Revenue,PRIVATE,EXTERNAL NURSING CARE,24.Feb.17,2800.20,LIFESTYLE CARE MANAGEMENT LTD,Invoice
ASC,SOCIAL SERVICES,Revenue,PRIVATE,EXTERNAL NURSING CARE,24.Feb.17,2899.76,LIFESTYLE CARE MANAGEMENT LTD,Invoice
ASC,SOCIAL SERVICES,Revenue,PRIVATE,EXTERNAL NURSING CARE,24.Feb.17,2800.20,LIFESTYLE CARE MANAGEMENT LTD,Invoice
ASC,SOCIAL SERVICES,Revenue,PRIVATE,EXTERNAL NURSING CARE,24.Feb.17,2848.74,LIFESTYLE CARE MANAGEMENT LTD,Invoice
ASC,SOCIAL SERVICES,Revenue,PRIVATE,EXTERNAL NURSING CARE,24.Feb.17,2899.76,LIFESTYLE CARE MANAGEMENT LTD,Invoice
ASC,SOCIAL SERVICES,Revenue,PRIVATE,EXTERNAL NURSING CARE,24.Feb.17,2800.20,LIFESTYLE CARE MANAGEMENT LTD,Invoice
ASC,SOCIAL SERVICES,Revenue,PRIVATE,EXTERNAL NURSING CARE,24.Feb.17,2880.84,LIFESTYLE CARE MANAGEMENT LTD,Invoice
ASC,SOCIAL SERVICES,Revenue,PRIVATE,EXTERNAL NURSING CARE,24.Feb.17,2899.76,LIFESTYLE CARE MANAGEMENT LTD,Invoice
ASC,SOCIAL SERVICES,Revenue,PRIVATE,EXTERNAL NURSING CARE,24.Feb.17,2899.76,LIFESTYLE CARE MANAGEMENT LTD,Invoice
ASC,SOCIAL SERVICES,Revenue,PRIVATE,EXTERNAL NURSING CARE,24.Feb.17,2899.76,LIFESTYLE CARE MANAGEMENT LTD,Invoice
ASC,SOCIAL SERVICES,Revenue,PRIVATE,EXTERNAL NURSING CARE,24.Feb.17,2880.84,LIFESTYLE CARE MANAGEMENT LTD,Invoice
ASC,SOCIAL SERVICES,Revenue,PRIVATE,EXTERNAL NURSING CARE,24.Feb.17,2800.20,LIFESTYLE CARE MANAGEMENT LTD,Invoice
ASC,SOCIAL SERVICES,Revenue,PRIVATE,EXTERNAL NURSING CARE,24.Feb.17,2800.20,LIFESTYLE CARE MANAGEMENT LTD,Invoice
ASC,SOCIAL SERVICES,Revenue,PRIVATE,EXTERNAL NURSING CARE,24.Feb.17,2800.20,LIFESTYLE CARE MANAGEMENT LTD,Invoice
ASC,SOCIAL SERVICES,Revenue,PRIVATE,EXTERNAL NURSING CARE,24.Feb.17,13150.32,LIFESTYLE CARE MANAGEMENT LTD,Invoice
ASC,SOCIAL SERVICES,Revenue,PRIVATE,EXTERNAL NURSING CARE,24.Feb.17,4763.89,LIFESTYLE CARE MANAGEMENT LTD,Invoice
ASC,SOCIAL SERVICES,Revenue,PRIVATE,EXTERNAL NURSING CARE,24.Feb.17,5322.69,LIFESTYLE CARE MANAGEMENT LTD,Invoice
ASC,SOCIAL SERVICES,Revenue,PRIVATE,EXTERNAL NURSING CARE,24.Feb.17,22284.33,LYNTON HALL NURSING HOME,Invoice
ASC,SOCIAL SERVICES,Revenue,PRIVATE,EXTERNAL NURSING CARE,24.Feb.17,10779.11,LYNTON HALL NURSING HOME,Invoice
ASC,SOCIAL SERVICES,Revenue,PRIVATE,EXTERNAL NURSING CARE,23.Feb.17,3123.16,MHA CARE GROUP,Invoice
ASC,SOCIAL SERVICES,Revenue,PRIVATE,EXTERNAL NURSING CARE,14.Feb.17,2890.04,MULLINVAN LTD,Invoice
ASC,SOCIAL SERVICES,Revenue,PRIVATE,EXTERNAL NURSING CARE,23.Feb.17,2855.00,REDACTED PERSONAL DATA,Invoice
ASC,SOCIAL SERVICES,Revenue,PRIVATE,EXTERNAL NURSING CARE,09.Feb.17,10824.54,ROYAL HOSPITAL FOR NEURO-DISABILITY,Invoice
ASC,SOCIAL SERVICES,Revenue,PRIVATE,EXTERNAL NURSING CARE,08.Feb.17,16578.07,SOUTHDOWN NURSING HOME,Invoice
ASC,SOCIAL SERVICES,Revenue,PRIVATE,EXTERNAL NURSING CARE,16.Feb.17,2816.43,SUTTON NURSING HOMES LTD,Invoice
ASC,SOCIAL SERVICES,Revenue,PRIVATE,EXTERNAL NURSING CARE,24.Feb.17,3054.72,TRINITY COURT NURSING HOME,Invoice
ASC,SOCIAL SERVICES,Revenue,PRIVATE,EXTERNAL NURSING CARE,24.Feb.17,3096.32,TRINITY COURT NURSING HOME,Invoice
ASC,SOCIAL SERVICES,Revenue,PRIVATE,EXTERNAL NURSING CARE,13.Feb.17,2496.52,WESTBANK NURSING HOME T/A NEW CENTURY CA,Invoice
ASC,SOCIAL SERVICES,Revenue,PRIVATE,EXTERNAL NURSING RESPITE CARE,08.Feb.17,5233.82,GEORGE POTTER CARE HOME LTD,Invoice
ASC,SOCIAL SERVICES,Revenue,PRIVATE,EXTERNAL NURSING RESPITE CARE,06.Feb.17,3522.04,LIFESTYLE CARE MANAGEMENT LTD,Invoice
ASC,SOCIAL SERVICES,Revenue,PRIVATE,EXTERNAL NURSING RESPITE CARE,06.Feb.17,4155.49,LIFESTYLE CARE MANAGEMENT LTD,Invoice
ASC,SOCIAL SERVICES,Revenue,PRIVATE,EXTERNAL NURSING RESPITE CARE,06.Feb.17,4152.33,LIFESTYLE CARE MANAGEMENT LTD,Invoice
ASC,SOCIAL SERVICES,Revenue,PRIVATE,EXTERNAL NURSING RESPITE CARE,13.Feb.17,1531.12,LIFESTYLE CARE MANAGEMENT LTD,Invoice
ASC,SOCIAL SERVICES,Revenue,PRIVATE,EXTERNAL RESIDENTIAL CARE,27.Feb.17,7369.92,ALEXANDER HOUSE,Invoice
ASC,SOCIAL SERVICES,Revenue,PRIVATE,EXTERNAL RESIDENTIAL CARE,24.Feb.17,2118.60,BARTON LODGE CARE HOME,Invoice
ASC,SOCIAL SERVICES,Revenue,PRIVATE,EXTERNAL RESIDENTIAL CARE,24.Feb.17,2480.88,BUPA CARE SERVICES BACS RECEIPTS,Invoice
ASC,SOCIAL SERVICES,Revenue,PRIVATE,EXTERNAL RESIDENTIAL CARE,24.Feb.17,2480.88,BUPA CARE SERVICES BACS RECEIPTS,Invoice
ASC,SOCIAL SERVICES,Revenue,PRIVATE,EXTERNAL RESIDENTIAL CARE,24.Feb.17,2480.88,BUPA CARE SERVICES BACS RECEIPTS,Invoice
